Workbook

Sheet 18M202218
B3: Nom | C3: Club | D3: Matricule | E3: Cat. | F3: Tir 1 | G3: Tir 2 | H3: Tir 3 | I3: Tir 4 | J3: Tir 5 | K3: Total | L3: M/600 | M3: M/300 | S3: ITW | T3: GAU | U3: ANT | V3: FAO | W3: LIE | X3: HUY | Y3: HAC | Z3: LFU | AA3: 2022 | AB3: FBG | AC3: CAT | AD3: SSC | AE3: CTH | AF3: BEA | AG3: ADS | AH3: FAC | AI3: GPE | AJ3: LFE | AK3: MDY | AL3: FAO | AM3: DSA | AN3: CMA | AO3: LAC | AP3: ECA | AQ3: LIE | AR3: BTS | AS3: 2023 | AT3: ANT
A5: 1 | B5: MEYER Marc | C5: GPE | D5: 59H04233 | E5: RHV | F5: 521 | G5: 518 | K5: =SUM(F5:J5) -> 1039 | L5: =K5/5 -> 207.8 | M5: =L5/2 -> 103.9 | AB5: 518 | AD5: 521
A6: =IF(B6<>"",A5+1,"") -> 2 | B6: LEJOLY Daniel | C6: LIE | D6: 61H01569 | E6: RHV | F6: 555 | K6: 555 | L6: 111 | M6: 55.5 | AD6: 555
A7: =IF(B7<>"",A6+1,"") -> 3 | B7: SKORUPKA Guy | C7: CEN | D7: 57H01040 | E7: RHV | F7: 499 | K7: 499 | L7: 99.8 | M7: 49.9 | AD7: 499
A8: 4 | B8: BOUGELET Yvan | C8: FBG | E8: RHV | F8: 460 | K8: 460 | L8: 92 | M8: 46 | AB8: 460
A9: 5 | B9: BALEINE Yves | C9: CAT | D9: 57H04916 | E9: RHV | F9: 445 | K9: 445 | L9: 89 | M9: 44.5 | AC9: 445
A10: 6 | B10: VANDENBERGHE Daniel | C10: CAB | D10: 51H02731 | E10: RHV | F10: 443 | K10: 443 | L10: 88.6 | M10: 44.3 | AB10: 443
A11: 7 | B11: LEJEUNE Paul | C11: LFE | D11: 56H00919 | E11: RHV | F11: 441 | K11: 441 | L11: 88.2 | M11: 44.1 | AC11: 441
A12: 8 | B12: BACOT Paul (recurve) | C12: HUY | D12: 50H01459 | E12: RHV | F12: 440 | K12: 440 | L12: 88 | M12: 44 | AB12: 440
A13: 9 | B13: PETRONS Joel | C13: LFU | D13: 49H00899 | E13: RHV | F13: 437 | K13: 437 | L13: 87.4 | M13: 43.7 | AB13: 437
A14: 10 | B14: FRYNS Guido | C14: ITW | D14: 59H03148 | E14: RHV | F14: 318 | K14: 318 | L14: 63.6 | M14: 31.8 | AB14: 318
A15: 11 | B15: FOURNIER Gérard | C15: BTS | D15: 55H02754 | E15: RHV | K15: 0 | L15: 0 | M15: 0
A16: 12 | B16: PIERRE Auguste | C16: CAJ | D16: 56H04788 | E16: RHV | K16: 0 | L16: 0 | M16: 0
A17: 13 | B17: BARBIEUX Robin | C17: CAJ | D17: 57H05709 | E17: RHV | K17: 0 | L17: 0 | M17: 0
A18: 14 | B18: DEGHAYE Pierre | C18: ACM | D18: 55H01808 | E18: RHV | K18: 0 | L18: 0 | M18: 0
A19: 15 | B19: COCQUYT Francis | C19: CTH | D19: 60H01688 | E19: RHV | K19: 0 | L19: 0 | M19: 0
A20: 16 | B20: OLBRECHTS Pierre | C20: LAJ | D20: 56H00822 | E20: RHV | K20: 0 | L20: 0 | M20: 0
A21: 17 | B21: FIORA Joel | C21: SSK | D21: 57H00342 | E21: RHV | K21: 0 | L21: 0 | M21: 0
A22: 18 | B22: DEPROOST Michel | C22: SSK | D22: 61H00337 | E22: RHV | K22: 0 | L22: 0 | M22: 0
A23: 19 | B23: NATALIS Joseph | C23: CAJ | D23: 42H01967 | E23: RHV | K23: 0 | L23: 0 | M23: 0
A24: 20 | B24: DELCOMINETTE guy | C24: LIE | D24: 48H01514 | E24: RHV | K24: 0 | L24: 0 | M24: 0
A25: 21 | B25: PAT Henri | C25: ABA | D25: 52H04786 | E25: RHV | K25: 0 | L25: 0 | M25: 0
A26: 22 | B26: DE BON Pierre | C26: SAG | D26: 57H03719 | E26: RHV | K26: 0 | L26: 0 | M26: 0
A27: 23 | B27: CIATTO Giovani | C27: ITW | D27: 59H04882 | E27: RHV | K27: 0 | L27: 0 | M27: 0
A28: 24 | B28: LEMIN Gerard | C28: ITW | D28: 53H02240 | E28: RHV | K28: 0 | L28: 0 | M28: 0
A29: 25 | B29: VANHAEREN Patrick | C29: LIE | D29: 61H05047 | E29: RHV | K29: 0 | L29: 0 | M29: 0
A30: 26 | B30: BUCHET Eric | C30: SSK | D30: 62H00326 | E30: RHV | K30: 0 | L30: 0 | M30: 0
A31: 27 | B31: ANTOINE Pol | C31: GAU | E31: RHV | K31: 0 | L31: 0 | M31: 0
A32: 28 | B32: MARIAVELLE Eric | C32: CAL | D32: 60H05586 | E32: RHV | K32: 0 | L32: 0 | M32: 0
A33: 29 | B33: FASSOTTE Charly | C33: CTH | D33: 46H01723 | E33: RHV | K33: 0 | L33: 0 | M33: 0
A34: 30 | B34: DURIEUX Marc | C34: SSC | D34: 57H01263 | E34: RHV | K34: 0 | L34: 0 | M34: 0
A35: 31 | B35: D'HEUR Michel | C35: FAO | D35: 46H00532 | E35: RHV | K35: 0 | L35: 0 | M35: 0
A36: 32 | B36: METDEPENNINGEN Luc | C36: MDY | D36: 59H02050 | E36: RHV | K36: 0 | L36: 0 | M36: 0
A37: 33 | B37: GRAVAR Pierre | C37: ECA | D37: 52H01303 | E37: RHV | K37: =SUM(F37:J37) -> 0 | L37: =K37/5 -> 0 | M37: =L37/2 -> 0
A38: 34 | B38: PETRUS Gus | C38: GAU | D38: 54H00363 | E38: RHV | K38: 0 | L38: 0 | M38: 0
A39: 35 | B39: DUPOND Yves | C39: BTS | D39: 59H03867 | E39: RHV | K39: 0 | L39: 0 | M39: 0
A40: 36 | B40: ANQUETIL Marc | C40: CEN | D40: 56H01013 | E40: RHV | K40: 0 | L40: 0 | M40: 0
A41: 37 | B41: LANDOLINO FRANCIS | C41: ACG | D41: 56H04781 | E41: RHV | K41: 0 | L41: 0 | M41: 0
A42: 38 | B42: PEETERS Emmanuel | C42: SSK | D42: 59H00357 | E42: RHV | K42: 0 | L42: 0 | M42: 0
A43: 39 | B43: SANTOS MONDO Julio | D43: 59H04745 | E43: RHV | K43: 0 | L43: 0 | M43: 0
A44: 40 | B44: RENNEAU Jean-Noel | C44: ADS | D44: 59H02001 | E44: RHV | K44: 0 | L44: 0 | M44: 0
A45: 41 | B45: WIGGELEER Patrick | C45: GSR | D45: 56H00096 | E45: RHV | K45: 0 | L45: 0 | M45: 0
A46: 42 | B46: DELNATTE Georges | C46: LIE | D46: 58H02914 | E46: RHV | K46: 0 | L46: 0 | M46: 0
A47: 43 | B47: HERMAL Raymond | C47: ACB | D47: 55H01249 | E47: RHV | K47: 0 | L47: 0 | M47: 0
A48: 44 | B48: DESSART Hubert | C48: ACM | D48: 48H01811 | E48: RHV | K48: 0 | L48: 0 | M48: 0
A49: 45 | B49: DEBATY Dominique | C49: GAU | E49: RHV | K49: 0 | L49: 0 | M49: 0
A50: 46 | B50: ROBERTO Salvator | C50: ACB | D50: 50H02729 | E50: RHV | K50: 0 | L50: 0 | M50: 0
A51: 47 | B51: RANDLE Daniel | C51: CMA | D51: 47H00700 | E51: RHV | K51: 0 | L51: 0 | M51: 0
A52: 48 | B52: NEYRET Robert | C52: LAJ | D52: 49H00841 | E52: RHV | K52: 0 | L52: 0 | M52: 0
A53: 49 | B53: SIMON Claude | C53: MDY | D53: 51H03522 | E53: RHV | K53: 0 | L53: 0 | M53: 0
A54: 50 | B54: PENA Victor | C54: CTH | D54: 54H01714 | E54: RHV | K54: 0 | L54: 0 | M54: 0
A55: 51 | B55: VANDEN BOGGAARR Marc | C55: ABA | D55: 57H00558 | E55: RHV | K55: 0 | L55: 0 | M55: 0
A56: 52 | B56: NOSSENT Christian | C56: SSK | D56: 53H00269 | E56: RHV | K56: 0 | L56: 0 | M56: 0
A57: 53 | B57: LUCAS André (recurve) | C57: SSC | D57: 55H01262 | E57: RHV | K57: 0 | L57: 0 | M57: 0
A58: 54 | B58: GESSA Stefano | C58: CAM | D58: 45H01355 | E58: RHV | K58: =SUM(F58:J58) -> 0 | L58: =K58/5 -> 0 | M58: =L58/2 -> 0
A59: 55 | B59: REIBER Guy | C59: GSR | D59: 46H00175 | E59: RHV | K59: 0 | L59: 0 | M59: 0
A60: 56 | B60: STEINIER Robert | C60: ABA | D60: 46H00639 | E60: RHV | K60: 0 | L60: 0 | M60: 0
A61: 57 | B61: HODIAMONT Thierry | C61: FOA | D61: 55H0049 | E61: RHV | K61: 0 | L61: 0 | M61: 0
A62: 58 | B62: RAHIR Jacques | C62: CTH | E62: RHV | K62: 0 | L62: 0 | M62: 0
A63: 59 | B63: CHABEAU Andre | C63: MDY | D63: 57H03240 | E63: RHV | K63: 0 | L63: 0 | M63: 0
A64: 60 | B64: BERUS Alain | C64: BTS | D64: 60H02770 | E64: RHV | K64: 0 | L64: 0 | M64: 0
A65: 61 | B65: VANDERVELDEN Daniel | C65: HUY | D65: 51H02731 | E65: RHV | K65: 0 | L65: 0 | M65: 0
A66: 62 | B66: HANZE Bernard | C66: HUY | E66: RHV | K66: 0 | L66: 0 | M66: 0
A67: 63 | B67: RENARD René | C67: SSK | E67: RHV | K67: 0 | L67: 0 | M67: 0
A68: 64 | B68: VAN ASSCHE Pierre | C68: GPE | D68: 48H00236 | E68: RHV | K68: 0 | L68: 0 | M68: 0
A69: 65 | B69: VANDENHOOFDEN Bernard | C69: FAO | D69: 51H02731 | E69: RHV | K69: =SUM(F69:J69) -> 0 | L69: =K69/5 -> 0 | M69: =L69/2 -> 0
A70: 66 | B70: DE GREEF Jean | C70: SSK | D70: 46H00331 | E70: RHV | K70: 0 | L70: 0 | M70: 0
A71: =IF(B71<>"",A70+1,"") -> 67 | B71: BOEVER Pierre | C71: TAB | D71: 56H02663 | E71: RHV | K71: 0 | L71: 0 | M71: 0
A72: 68 | B72: VANMEENEN Philippe | C72: FBG | D72: 57H03948 | E72: RHV | K72: 0 | L72: 0 | M72: 0
A73: 69 | B73: PIETTE Alain | C73: FBG | D73: 54H03645 | E73: RHV | K73: 0 | L73: 0 | M73: 0
A74: 70 | B74: RENNEAU Jean-Noel | C74: ADS | D74: 59H02001 | E74: RHV | K74: 0 | L74: 0 | M74: 0
A75: 71 | B75: HANZE Bernard | C75: HUY | D75: 58H01505 | E75: RHV | K75: 0 | L75: 0 | M75: 0
A76: 72 | B76: RAHIR Jacques | C76: CTH | D76: 44H03480 | E76: RHV | K76: 0 | L76: 0 | M76: 0
A77: =IF(B77<>"",A76+1,"") -> 73 | B77: THEYS Marc | C77: LFU | D77: 56H04345 | E77: RHV | K77: 0 | L77: 0 | M77: 0
A78: =IF(B78<>"",A77+1,"") -> 74 | B78: MAQUET Gilbert (recurve) | C78: ACF | D78: 53H02240 | E78: RHV | K78: 0 | L78: 0 | M78: 0
A79: =IF(B79<>"",A78+1,"") -> 75 | B79: YX | E79: RHV | K79: 0 | L79: 0 | M79: 0
C84: La macro est déclenchée par toute entrée d'une valeur dans le tableau N5:BW20 (modifier le plage si nécessaire dans la macro)

Sheet 18M2018
B3: Nom | C3: Club | D3: Matricule | E3: Cat. | F3: Tir 1 | G3: Tir 2 | H3: Tir 3 | I3: Tir 4 | J3: Tir 5 | K3: Total | L3: M/600 | M3: M/300 | S3: CAT | T3: fBG | U3: CAB | V3: BEA | W3: MDY | X3: ADS | Y3: GPE | Z3: WSS | AA3: FAC | AB3: LFE | AC3: FAO | AD3: CMA | AE3: RCM | AF3: FGV | AG3: KJS | AH3: ECA | AI3: ACG | AJ3: LAC | AK3: LIE | AL3: GSR | AM3: BTS | AN3: FOA
A5: 1 | B5: SKORUPKA Guy | C5: CEN | D5: 57H01040 | E5: RHV | F5: 510 | G5: 505 | H5: 504 | I5: 502 | J5: 496 | K5: =SUM(F5:J5) -> 2517 | L5: =K5/5 -> 503.4 | M5: =L5/2 -> 251.7 | U5: 480 | Y5: 496 | AC5: 502 | AD5: 505 | AE5: 510 | AH5: 504 | AK5: 495 | AL5: 496 | AN5: 469
A6: =IF(B6<>"",A5+1,"") -> 2 | B6: PETRONS Joel | C6: LFU | D6: 49H00899 | E6: RHV | F6: 512 | G6: 508 | H6: 498 | I6: 491 | J6: 486 | K6: 2495 | L6: 499 | M6: 249.5 | T6: 470 | U6: 491 | AC6: 486 | AD6: 498 | AL6: 508 | AM6: 512
A7: =IF(B7<>"",A6+1,"") -> 3 | B7: LUCAS André (recurve) | C7: SSC | D7: 55H01262 | E7: RHV | F7: 510 | G7: 502 | H7: 487 | I7: 486 | J7: 483 | K7: 2468 | L7: 493.6 | M7: 246.8 | U7: 486 | V7: 510 | AA7: 433 | AB7: 487 | AH7: 502 | AM7: 483
A8: 4 | B8: GRAVAR Pierre | C8: ECA | D8: 52H01303 | E8: RHV | F8: 503 | G8: 496 | H8: 490 | I8: 490 | J8: 485 | K8: 2464 | L8: 492.8 | M8: 246.4 | S8: 481 | AA8: 490 | AD8: 490 | AE8: 503 | AF8: 485 | AH8: 496
A9: 5 | B9: FOURNIER Gérard | C9: BTS | D9: 55H02754 | E9: RHV | F9: 509 | G9: 474 | H9: 473 | I9: 462 | J9: 461 | K9: 2379 | L9: 475.8 | M9: 237.9 | T9: 462 | U9: 474 | AA9: 441 | AC9: 473 | AH9: 461 | AK9: 509 | AM9: 454
A10: 6 | B10: BACOT Paul (recurve) | C10: HUY | D10: 50H01459 | E10: RHV | F10: 483 | G10: 480 | H10: 447 | I10: 443 | J10: 419 | K10: 2272 | L10: 454.4 | M10: 227.2 | T10: 443 | X10: 483 | AH10: 419 | AK10: 480 | AM10: 447
A11: 7 | B11: NATALIS Joseph | C11: CAJ | D11: 42H01967 | E11: RHV | F11: 527 | G11: 510 | H11: 510 | I11: 507 | K11: 2054 | L11: 410.8 | M11: 205.4 | W11: 510 | X11: 527 | AI11: 510 | AK11: 507
A12: 8 | B12: VANDERVELDEN Daniel | C12: HUY | D12: 51H02731 | E12: RHV | F12: 502 | G12: 496 | H12: 496 | I12: 485 | K12: 1979 | L12: 395.8 | M12: 197.9 | T12: 496 | X12: 496 | AI12: 485 | AM12: 502
A13: 9 | B13: DELCOMINETTE guy | C13: LIE | D13: 48H01514 | E13: RHV | F13: 492 | G13: 492 | H13: 477 | I13: 475 | K13: 1936 | L13: 387.2 | M13: 193.6 | W13: 475 | AC13: 477 | AL13: 492 | AM13: 492
A14: 10 | B14: DEGHAYE Pierre | C14: ACM | D14: 55H01808 | E14: RHV | F14: 505 | G14: 476 | H14: 469 | I14: 467 | K14: 1917 | L14: 383.4 | M14: 191.7 | W14: 469 | X14: 467 | AK14: 476 | AN14: 505
A15: 11 | B15: NEYRET Robert | C15: LAJ | D15: 49H00841 | E15: RHV | F15: 468 | G15: 428 | H15: 416 | I15: 347 | K15: 1659 | L15: 331.8 | M15: 165.9 | X15: 416 | AK15: 347 | AM15: 428 | AN15: 468
A16: 12 | B16: PENA Victor | C16: CTH | D16: 54H01714 | E16: RHV | F16: 493 | G16: 493 | H16: 467 | K16: 1453 | L16: 290.6 | M16: 145.3 | W16: 467 | X16: 493 | AI16: 493
A17: 13 | B17: D'HEUR Michel | C17: FAO | D17: 46H00532 | E17: RHV | F17: 476 | G17: 475 | H17: 458 | K17: 1409 | L17: 281.8 | M17: 140.9 | AC17: 476 | AL17: 475 | AM17: 458
A18: 14 | B18: RANDLE Daniel | C18: CMA | D18: 47H00700 | E18: RHV | F18: 463 | G18: 448 | H18: 441 | K18: 1352 | L18: 270.4 | M18: 135.2 | AC18: 463 | AD18: 441 | AL18: 448
A19: 15 | B19: VANDEN BOGGAARR Marc | C19: ABA | D19: 57H00558 | E19: RHV | F19: 526 | G19: 518 | K19: 1044 | L19: 208.8 | M19: 104.4 | AF19: 518 | AM19: 526
A20: 16 | B20: GESSA Stefano | C20: CAM | D20: 45H01355 | E20: RHV | F20: 525 | G20: 475 | K20: 1000 | L20: 200 | M20: 100 | V20: 475 | AM20: 525
A21: 17 | B21: OLBRECHTS Pierre | C21: LAJ | D21: 56H00822 | E21: RHV | F21: 499 | G21: 486 | K21: 985 | L21: 197 | M21: 98.5 | AK21: 499 | AM21: 486
A22: 18 | B22: DURIEUX Marc | C22: SSC | D22: 57H01263 | E22: RHV | F22: 478 | G22: 473 | K22: 951 | L22: 190.2 | M22: 95.1 | AH22: 478 | AM22: 473
A23: 19 | B23: PETRUS Gus | C23: GAU | D23: 54H00363 | E23: RHV | F23: 483 | G23: 455 | K23: 938 | L23: 187.6 | M23: 93.8 | Y23: 483 | AE23: 455
A24: 20 | B24: DEPRY Jacquy | C24: FAC | D24: 49H01168 | E24: RHV | F24: 409 | G24: 305 | K24: 714 | L24: 142.8 | M24: 71.4 | AA24: 409 | AM24: 305
A25: 21 | B25: VANDENBERGHE Daniel | C25: CAB | D25: 51H02731 | E25: RHV | F25: 490 | K25: 490 | L25: 98 | M25: 49 | U25: 490
A26: 22 | B26: HERMAL Raymond | C26: ACB | D26: 55H01249 | E26: RHV | F26: 471 | K26: 471 | L26: 94.2 | M26: 47.1 | AH26: 471
A27: 23 | B27: MAQUET Gilbert (recurve) | C27: ACF | D27: 53H02240 | E27: RHV | F27: 466 | K27: 466 | L27: 93.2 | M27: 46.6 | W27: 466
A28: 24 | B28: FIORA Joel | C28: SSK | D28: 57H00342 | E28: RHV | F28: 462 | K28: 462 | L28: 92.4 | M28: 46.2 | AD28: 462
A29: 25 | B29: ROBERTO Salvator | C29: CAB | D29: 50H02729 | E29: RHV | F29: 443 | K29: 443 | L29: 88.6 | M29: 44.3 | AM29: 443
A30: 26 | B30: BOEVER Pierre | C30: TAB | D30: 56H02663 | E30: RHV | F30: 436 | K30: 436 | L30: 87.2 | M30: 43.6 | AM30: 436
A31: 27 | B31: REIBER Guy | C31: GSR | D31: 46H00175 | E31: RHV | F31: 435 | K31: 435 | L31: 87 | M31: 43.5 | AL31: 435
A32: 28 | B32: DE GREEF Jean | C32: SSK | D32: 46H00331 | E32: RHV | F32: 396 | K32: 396 | L32: 79.2 | M32: 39.6 | AD32: 396
A33: 29 | B33: HODIAMONT Thierry | C33: FOA | D33: 55H00049 | E33: RHV | F33: 375 | K33: 375 | L33: 75 | M33: 37.5 | AN33: 375
A34: 30 | B34: STEVENNE Marc | C34: FAC | D34: 54H01165 | E34: RHV | F34: 351 | K34: 351 | L34: 70.2 | M34: 35.1 | AM34: 351
A35: 31 | B35: HINCCHLIFFE Clive | C35: FAO | E35: RHV | F35: 239 | K35: 239 | L35: 47.8 | M35: 23.9 | AC35: 239
A36: 32 | B36: ANTOINE Pol | C36: GAU | E36: RHV | K36: 0 | L36: 0 | M36: 0
A37: 33 | B37: STAINIER Robert | C37: ABA | D37: 46H00639 | E37: RHV | K37: 0 | L37: 0 | M37: 0
A38: 34 | B38: METDEPENNINGEN Luc | C38: MDY | D38: 59H02050 | E38: RHV | K38: 0 | L38: 0 | M38: 0
A39: 35 | B39: FRYNS Guido | C39: ITW | D39: 59H03148 | E39: RHV | K39: 0 | L39: 0 | M39: 0
A40: 36 | B40: WIGGELEER Patrick | C40: GSR | D40: 56H00096 | E40: RHV | K40: 0 | L40: 0 | M40: 0
A41: 37 | B41: DELNATTE Georges | C41: LIE | D41: 58H02914 | E41: RHV | K41: 0 | L41: 0 | M41: 0
A42: 38 | B42: NOSSENT Christian | C42: SSK | D42: 53H00269 | E42: RHV | K42: 0 | L42: 0 | M42: 0
A43: 39 | B43: CHABEAU Andre | C43: MDY | D43: 57H03240 | E43: RHV | K43: 0 | L43: 0 | M43: 0
A44: 40 | B44: VANMEENEN Philippe | C44: FBG | D44: 57H03948 | E44: RHV | K44: 0 | L44: 0 | M44: 0
A45: =IF(B45<>"",A44+1,"") -> 41 | B45: PIETTE Alain | C45: FBG | D45: 54H03645 | E45: RHV | K45: 0 | L45: 0 | M45: 0
A46: 42 | B46: RENARD René | C46: SSK | E46: RHV | K46: 0 | L46: 0 | M46: 0
A47: 43 | B47: FASSOTTE Charly | C47: CTH | D47: 46H01723 | E47: RHV | K47: 0 | L47: 0 | M47: 0
A48: 44 | B48: RENNEAU Jean-Noel | C48: ADS | D48: 59H02001 | E48: RHV | K48: 0 | L48: 0 | M48: 0
A49: 45 | B49: THEYS Marc | C49: LFU | D49: 56H04345 | E49: RHV | K49: 0 | L49: 0 | M49: 0
A50: 46 | B50: DEBATY Dominique | C50: GAU | E50: RHV | K50: 0 | L50: 0 | M50: 0
C54: La macro est déclenchée par toute entrée d'une valeur dans le tableau N5:BW20 (modifier le plage si nécessaire dans la macro)
A71: =IF(B71<>"",A70+1,"") -> 
A72: =IF(B72<>"",A71+1,"") -> 
A73: =IF(B73<>"",A72+1,"") -> 
A74: =IF(B74<>"",A73+1,"") -> 

Sheet 18M2019
B3: Nom | C3: Club | D3: Matricule | E3: Cat. | F3: Tir 1 | G3: Tir 2 | H3: Tir 3 | I3: Tir 4 | J3: Tir 5 | K3: Total | L3: M/600 | M3: M/300 | S3: ACG | T3: PAC | U3: GAU | V3: ANT | W3: LAC | X3: ITW | Y3: ABA | Z3: LIE | AA3: GSR | AB3: HUY | AC3: HAC | AD3: LFU | AE3: 2019 | AF3: FBG | AG3: CAT | AH3: BEA | AI3: CAB | AJ3: ADS | AK3: GPE | AL3: FAC | AM3: LFE | AN3: FAO | AO3: CMA | AP3: LAC | AQ3: RCM | AR3: MDY | AS3: ACG | AT3: ECA | AU3: FGV | AV3: GSR | AW3: LIE | AX3: BTS | AY3: FOA
A5: 1 | B5: SKORUPKA Guy | C5: CEN | D5: 57H01040 | E5: RHV | F5: 521 | G5: 520 | H5: 518 | I5: 517 | J5: 510 | K5: =SUM(F5:J5) -> 2586 | L5: =K5/5 -> 517.2 | M5: =L5/2 -> 258.6 | T5: 473 | V5: 495 | AD5: 492 | AF5: 510 | AI5: 500 | AL5: 517 | AN5: 508 | AO5: 520 | AQ5: 521 | AT5: 518 | AX5: 485
A6: =IF(B6<>"",A5+1,"") -> 2 | B6: DEGHAYE Pierre | C6: ACM | D6: 55H01808 | E6: RHV | F6: 525 | G6: 514 | H6: 513 | I6: 503 | J6: 501 | K6: 2556 | L6: 511.2 | M6: 255.6 | S6: 525 | X6: 478 | Y6: 503 | Z6: 432 | AC6: 501 | AJ6: 487 | AR6: 514 | AS6: 513 | AW6: 495
A7: =IF(B7<>"",A6+1,"") -> 3 | B7: LUCAS André (recurve) | C7: SSC | D7: 55H01262 | E7: RHV | F7: 519 | G7: 518 | H7: 514 | I7: 501 | J7: 469 | K7: 2521 | L7: 504.2 | M7: 252.1 | AI7: 501 | AL7: 469 | AO7: 514 | AT7: 518 | AX7: 519
A8: 4 | B8: BACOT Paul (recurve) | C8: HUY | D8: 50H01459 | E8: RHV | F8: 510 | G8: 505 | H8: 503 | I8: 495 | J8: 493 | K8: 2506 | L8: 501.2 | M8: 250.6 | R8: 437 | S8: 505 | Z8: 479 | AC8: 503 | AF8: 493 | AJ8: 487 | AR8: 510 | AS8: 486 | AW8: 495 | AX8: 485
A9: 5 | B9: WIGGELEER Patrick | C9: GSR | D9: 56H00096 | E9: RHV | F9: 515 | G9: 512 | H9: 500 | I9: 495 | J9: 477 | K9: 2499 | L9: 499.8 | M9: 249.9 | Z9: 470 | AD9: 422 | AK9: 500 | AN9: 464 | AO9: 495 | AR9: 477 | AV9: 515 | AY9: 512
A10: 6 | B10: DELCOMINETTE guy | C10: LIE | D10: 48H01514 | E10: RHV | F10: 507 | G10: 498 | H10: 495 | I10: 495 | J10: 495 | K10: 2490 | L10: 498 | M10: 249 | X10: 495 | AF10: 440 | AJ10: 466 | AO10: 495 | AR10: 498 | AW10: 495 | AX10: 507
A11: 7 | B11: D'HEUR Michel | C11: FAO | D11: 46H00532 | E11: RHV | F11: 511 | G11: 503 | H11: 484 | I11: 481 | J11: 476 | K11: 2455 | L11: 491 | M11: 245.5 | Y11: 484 | AC11: 503 | AD11: 511 | AI11: 460 | AN11: 481 | AV11: 476 | AX11: 465
A12: 8 | B12: PETRONS Joel | C12: LFU | D12: 49H00899 | E12: RHV | F12: 508 | G12: 495 | H12: 486 | I12: 483 | J12: 479 | K12: 2451 | L12: 490.2 | M12: 245.1 | T12: 508 | X12: 495 | AG12: 486 | AN12: 483 | AO12: 473 | AR12: 479 | AX12: 471
A13: 9 | B13: GRAVAR Pierre | C13: ECA | D13: 52H01303 | E13: RHV | F13: 518 | G13: 503 | H13: 481 | I13: 472 | J13: 470 | K13: 2444 | L13: 488.8 | M13: 244.4 | Y13: 472 | AD13: 503 | AH13: 481 | AT13: 470 | AX13: 518
A14: 10 | B14: FIORA Joel | C14: SSK | D14: 57H00342 | E14: RHV | F14: 499 | G14: 496 | H14: 483 | I14: 480 | J14: 476 | K14: 2434 | L14: 486.8 | M14: 243.4 | U14: 471 | Y14: 483 | Z14: 476 | AC14: 480 | AO14: 499 | AY14: 496
A15: 11 | B15: VANDERVELDEN Daniel | C15: HUY | D15: 51H02731 | E15: RHV | F15: 499 | G15: 494 | H15: 481 | I15: 479 | J15: 477 | K15: 2430 | L15: 486 | M15: 243 | S15: 494 | AB15: 477 | AC15: 479 | AD15: 481 | AF15: 499
A16: 12 | B16: DURIEUX Marc | C16: SSC | D16: 57H01263 | E16: RHV | F16: 486 | G16: 479 | H16: 476 | I16: 475 | J16: 475 | K16: 2391 | L16: 478.2 | M16: 239.1 | Y16: 475 | Z16: 464 | AD16: 476 | AI16: 427 | AL16: 479 | AO16: 475 | AT16: 486 | AV16: 475 | AX16: 465
A17: 13 | B17: GESSA Stefano | C17: CAM | D17: 45H01355 | E17: RHV | F17: 505 | G17: 486 | H17: 453 | I17: 448 | J17: 441 | K17: 2333 | L17: 466.6 | M17: 233.3 | T17: 486 | AH17: 505 | AL17: 453 | AT17: 441 | AX17: 448
A18: 14 | B18: OLBRECHTS Pierre | C18: LAJ | D18: 56H00822 | E18: RHV | F18: 505 | G18: 473 | H18: 456 | I18: 455 | J18: 443 | K18: 2332 | L18: 466.4 | M18: 233.2 | W18: 505 | AP18: 74 | AU18: 456 | AV18: 455 | AW18: 443 | AX18: 473
A19: 15 | B19: PENA Victor | C19: CTH | D19: 54H01714 | E19: RHV | F19: 479 | G19: 476 | H19: 458 | I19: 451 | J19: 437 | K19: 2301 | L19: 460.2 | M19: 230.1 | S19: 437 | X19: 458 | AD19: 476 | AJ19: 479 | AS19: 451
A20: 16 | B20: NEYRET Robert | C20: LAJ | D20: 49H00841 | E20: RHV | F20: 490 | G20: 453 | H20: 452 | I20: 445 | J20: 426 | K20: 2266 | L20: 453.2 | M20: 226.6 | W20: 445 | AF20: 453 | AH20: 490 | AJ20: 452 | AN20: 426
A21: 17 | B21: RANDLE Daniel | C21: CMA | D21: 47H00700 | E21: RHV | F21: 465 | G21: 445 | H21: 444 | I21: 443 | J21: 418 | K21: 2215 | L21: 443 | M21: 221.5 | U21: 445 | Z21: 465 | AD21: 418 | AO21: 444 | AV21: 443
A22: 18 | B22: DELNATTE Georges | C22: LIE | D22: 58H02914 | E22: RHV | F22: 459 | G22: 449 | H22: 447 | I22: 446 | J22: 335 | K22: 2136 | L22: 427.2 | M22: 213.6 | X22: 446 | Z22: 447 | AF22: 335 | AK22: 449 | AR22: 459
A23: 19 | B23: VANDEN BOGGAARR Marc | C23: ABA | D23: 57H00558 | E23: RHV | F23: 529 | G23: 523 | H23: 503 | I23: 499 | K23: 2054 | L23: 410.8 | M23: 205.4 | X23: 523 | Y23: 529 | Z23: 499 | AX23: 503
A24: 20 | B24: NATALIS Joseph | C24: CAJ | D24: 42H01967 | E24: RHV | F24: 523 | G24: 505 | H24: 503 | I24: 501 | K24: 2032 | L24: 406.4 | M24: 203.2 | X24: 503 | Z24: 523 | AS24: 505 | AW24: 501
A25: 21 | B25: FOURNIER Gérard | C25: BTS | D25: 55H02754 | E25: RHV | F25: 479 | G25: 472 | H25: 466 | I25: 462 | K25: 1879 | L25: 375.8 | M25: 187.9 | Y25: 472 | Z25: 466 | AI25: 479 | AX25: 462
A26: 22 | B26: PETRUS Gus | C26: GAU | D26: 54H00363 | E26: RHV | F26: 465 | G26: 450 | H26: 429 | K26: 1344 | L26: 268.8 | M26: 134.4 | U26: 429 | W26: 465 | Y26: 450
A27: 23 | B27: HERMAL Raymond | C27: ACB | D27: 55H01249 | E27: RHV | F27: 492 | G27: 459 | K27: 951 | L27: 190.2 | M27: 95.1 | AT27: 459 | AX27: 492
A28: 24 | B28: HANZE Bernard | C28: HUY | E28: RHV | F28: 488 | G28: 373 | K28: 861 | L28: 172.2 | M28: 86.1 | U28: 373 | AB28: 488
A29: 25 | B29: RENARD René | C29: SSK | E29: RHV | F29: 417 | G29: 387 | K29: 804 | L29: 160.8 | M29: 80.4 | Z29: 387 | AC29: 417
A30: 26 | B30: VAN ASSCHE Pierre | C30: GPE | D30: 48H00236 | E30: RHV | F30: 515 | K30: 515 | L30: 103 | M30: 51.5 | AK30: 515
A31: 27 | B31: VANDENHOOFDEN Bernard | C31: FAO | D31: 51H02731 | E31: RHV | F31: 482 | K31: 482 | L31: 96.4 | M31: 48.2 | AN31: 482
A32: 28 | B32: REIBER Guy | C32: GSR | D32: 46H00175 | E32: RHV | F32: 453 | K32: 453 | L32: 90.6 | M32: 45.3 | AV32: 453
A33: 29 | B33: ANTOINE Pol | C33: GAU | E33: RHV | F33: 437 | K33: 437 | L33: 87.4 | M33: 43.7 | U33: 437
A34: 30 | B34: DE GREEF Jean | C34: SSK | D34: 46H00331 | E34: RHV | F34: 422 | K34: 422 | L34: 84.4 | M34: 42.2 | Z34: 422
A35: 31 | B35: FRYNS Guido | C35: ITW | D35: 59H03148 | E35: RHV | F35: 401 | K35: 401 | L35: 80.2 | M35: 40.1 | AY35: 401
A36: 32 | B36: BOEVER Pierre | C36: TAB | D36: 56H02663 | E36: RHV | F36: 383 | K36: 383 | L36: 76.6 | M36: 38.3 | Z36: 383
A37: 33 | B37: VANMEENEN Philippe | C37: FBG | D37: 57H03948 | E37: RHV | F37: 382 | K37: =SUM(F37:J37) -> 382 | L37: =K37/5 -> 76.4 | M37: =L37/2 -> 38.2 | AF37: 382
A38: 34 | B38: DEBATY Dominique | C38: GAU | E38: RHV | F38: 373 | K38: 373 | L38: 74.6 | M38: 37.3 | U38: 373
A39: 35 | B39: FASSOTTE Charly | C39: CTH | D39: 46H01723 | E39: RHV | F39: 362 | K39: 362 | L39: 72.4 | M39: 36.2 | Z39: 362
A40: 36 | B40: PIETTE Alain | C40: FBG | D40: 54H03645 | E40: RHV | F40: 330 | K40: 330 | L40: 66 | M40: 33 | AF40: 330
A41: 37 | B41: HODIAMONT Thierry | C41: FOA | D41: 55H0049 | E41: RHV | F41: 322 | K41: 322 | L41: 64.4 | M41: 32.2 | AY41: 322
A42: 38 | B42: RENNEAU Jean-Noel | C42: ADS | D42: 59H02001 | E42: RHV | K42: 0 | L42: 0 | M42: 0
A43: 39 | B43: MEYER Marc | C43: GPE | D43: 59H04233 | E43: RHV | K43: 0 | L43: 0 | M43: 0
A44: 40 | B44: METDEPENNINGEN Luc | C44: MDY | D44: 59H02050 | E44: RHV | K44: 0 | L44: 0 | M44: 0
A45: 41 | B45: DUPOND Yves | C45: BTS | D45: 59H03867 | E45: RHV | K45: 0 | L45: 0 | M45: 0
A46: 42 | B46: NOSSENT Christian | C46: SSK | D46: 53H00269 | E46: RHV | K46: 0 | L46: 0 | M46: 0
A47: 43 | B47: RENNEAU Jean-Noel | C47: ADS | D47: 59H02001 | E47: RHV | K47: 0 | L47: 0 | M47: 0
A48: 44 | B48: ANQUETIL Marc | C48: CEN | D48: 56H01013 | E48: RHV | K48: 0 | L48: 0 | M48: 0
A49: 45 | B49: HANZE Bernard | C49: HUY | D49: 58H01505 | E49: RHV | K49: 0 | L49: 0 | M49: 0
A50: 46 | B50: STEINIER Robert | C50: ABA | D50: 46H00639 | E50: RHV | K50: 0 | L50: 0 | M50: 0
A51: 47 | B51: RAHIR Jacques | C51: CTH | D51: 44H03480 | E51: RHV | K51: 0 | L51: 0 | M51: 0
A52: 48 | B52: SANTOS MONDO Julio | D52: 59H04745 | E52: RHV | K52: 0 | L52: 0 | M52: 0
A53: =IF(B53<>"",A52+1,"") -> 49 | B53: CHABEAU Andre | C53: MDY | D53: 57H03240 | E53: RHV | K53: 0 | L53: 0 | M53: 0
A54: =IF(B54<>"",A53+1,"") -> 50 | B54: THEYS Marc | C54: LFU | D54: 56H04345 | E54: RHV | K54: 0 | L54: 0 | M54: 0
A55: =IF(B55<>"",A54+1,"") -> 51 | B55: VANDENBERGHE Daniel | C55: CAB | D55: 51H02731 | E55: RHV | K55: 0 | L55: 0 | M55: 0
A56: =IF(B56<>"",A55+1,"") -> 52 | B56: MAQUET Gilbert (recurve) | C56: ACF | D56: 53H02240 | E56: RHV | K56: 0 | L56: 0 | M56: 0
C58: La macro est déclenchée par toute entrée d'une valeur dans le tableau N5:BW20 (modifier le plage si nécessaire dans la macro)

Sheet 18M2018-19
B3: Nom | C3: Club | D3: Matricule | E3: Cat. | F3: Tir 1 | G3: Tir 2 | H3: Tir 3 | I3: Tir 4 | J3: Tir 5 | K3: Total | L3: M/600 | M3: M/300 | S3: ACG | T3: PAC | U3: GAU | V3: ANT | W3: LAC | X3: ITW | Y3: ABA | Z3: LIE | AA3: GSR | AB3: HUY | AC3: HAC | AD3: LFU | AE3: 2018 | AF3: FBG | AG3: CAT | AH3: BEA | AI3: CAB | AJ3: ADS | AK3: GPE | AL3: FAC | AM3: LFE | AN3: FAO | AO3: CMA | AP3: LAC | AQ3: RCM | AR3: MDY | AS3: ACG | AT3: ECA | AU3: FGV | AV3: GSR | AW3: LIE | AX3: BTS | AY3: FOA | AZ3: 2019
A5: 1 | B5: SKORUPKA Guy | C5: CEN | D5: 57H01040 | E5: RHV | F5: 521 | G5: 520 | H5: 518 | I5: 517 | J5: 510 | K5: =SUM(F5:J5) -> 2586 | L5: =K5/5 -> 517.2 | M5: =L5/2 -> 258.6 | T5: 473 | V5: 495 | AD5: 492 | AF5: 510 | AI5: 500 | AL5: 517 | AN5: 508 | AO5: 520 | AQ5: 521 | AT5: 518 | AX5: 485
A6: =IF(B6<>"",A5+1,"") -> 2 | B6: DEGHAYE Pierre | C6: ACM | D6: 55H01808 | E6: RHV | F6: 525 | G6: 514 | H6: 513 | I6: 503 | J6: 501 | K6: 2556 | L6: 511.2 | M6: 255.6 | S6: 525 | X6: 478 | Y6: 503 | Z6: 432 | AC6: 501 | AJ6: 487 | AR6: 514 | AS6: 513 | AW6: 495
A7: =IF(B7<>"",A6+1,"") -> 3 | B7: LUCAS André (recurve) | C7: SSC | D7: 55H01262 | E7: RHV | F7: 519 | G7: 518 | H7: 514 | I7: 501 | J7: 469 | K7: 2521 | L7: 504.2 | M7: 252.1 | AI7: 501 | AL7: 469 | AO7: 514 | AT7: 518 | AX7: 519
A8: 4 | B8: BACOT Paul (recurve) | C8: HUY | D8: 50H01459 | E8: RHV | F8: 510 | G8: 505 | H8: 503 | I8: 495 | J8: 493 | K8: 2506 | L8: 501.2 | M8: 250.6 | R8: 437 | S8: 505 | Z8: 479 | AC8: 503 | AF8: 493 | AJ8: 487 | AR8: 510 | AS8: 486 | AW8: 495 | AX8: 485
A9: 5 | B9: WIGGELEER Patrick | C9: GSR | D9: 56H00096 | E9: RHV | F9: 515 | G9: 512 | H9: 500 | I9: 495 | J9: 477 | K9: 2499 | L9: 499.8 | M9: 249.9 | Z9: 470 | AD9: 422 | AK9: 500 | AN9: 464 | AO9: 495 | AR9: 477 | AV9: 515 | AY9: 512
A10: 6 | B10: DELCOMINETTE guy | C10: LIE | D10: 48H01514 | E10: RHV | F10: 507 | G10: 498 | H10: 495 | I10: 495 | J10: 495 | K10: 2490 | L10: 498 | M10: 249 | X10: 495 | AF10: 440 | AJ10: 466 | AO10: 495 | AR10: 498 | AW10: 495 | AX10: 507
A11: 7 | B11: D'HEUR Michel | C11: FAO | D11: 46H00532 | E11: RHV | F11: 511 | G11: 503 | H11: 484 | I11: 481 | J11: 476 | K11: 2455 | L11: 491 | M11: 245.5 | Y11: 484 | AC11: 503 | AD11: 511 | AI11: 460 | AN11: 481 | AV11: 476 | AX11: 465
A12: 8 | B12: PETRONS Joel | C12: LFU | D12: 49H00899 | E12: RHV | F12: 508 | G12: 495 | H12: 486 | I12: 483 | J12: 479 | K12: 2451 | L12: 490.2 | M12: 245.1 | T12: 508 | X12: 495 | AG12: 486 | AN12: 483 | AO12: 473 | AR12: 479 | AX12: 471
A13: 9 | B13: GRAVAR Pierre | C13: ECA | D13: 52H01303 | E13: RHV | F13: 518 | G13: 503 | H13: 481 | I13: 472 | J13: 470 | K13: 2444 | L13: 488.8 | M13: 244.4 | Y13: 472 | AD13: 503 | AH13: 481 | AT13: 470 | AX13: 518
A14: 10 | B14: FIORA Joel | C14: SSK | D14: 57H00342 | E14: RHV | F14: 499 | G14: 496 | H14: 483 | I14: 480 | J14: 476 | K14: 2434 | L14: 486.8 | M14: 243.4 | U14: 471 | Y14: 483 | Z14: 476 | AC14: 480 | AO14: 499 | AY14: 496
A15: 11 | B15: VANDERVELDEN Daniel | C15: HUY | D15: 51H02731 | E15: RHV | F15: 499 | G15: 494 | H15: 481 | I15: 479 | J15: 477 | K15: 2430 | L15: 486 | M15: 243 | S15: 494 | AB15: 477 | AC15: 479 | AD15: 481 | AF15: 499
A16: 12 | B16: DURIEUX Marc | C16: SSC | D16: 57H01263 | E16: RHV | F16: 486 | G16: 479 | H16: 476 | I16: 475 | J16: 475 | K16: 2391 | L16: 478.2 | M16: 239.1 | Y16: 475 | Z16: 464 | AD16: 476 | AI16: 427 | AL16: 479 | AO16: 475 | AT16: 486 | AV16: 475 | AX16: 465
A17: 13 | B17: GESSA Stefano | C17: CAM | D17: 45H01355 | E17: RHV | F17: 505 | G17: 486 | H17: 453 | I17: 448 | J17: 441 | K17: 2333 | L17: 466.6 | M17: 233.3 | T17: 486 | AH17: 505 | AL17: 453 | AT17: 441 | AX17: 448
A18: 14 | B18: OLBRECHTS Pierre | C18: LAJ | D18: 56H00822 | E18: RHV | F18: 505 | G18: 473 | H18: 456 | I18: 455 | J18: 443 | K18: 2332 | L18: 466.4 | M18: 233.2 | W18: 505 | AP18: 74 | AU18: 456 | AV18: 455 | AW18: 443 | AX18: 473
A19: 15 | B19: PENA Victor | C19: CTH | D19: 54H01714 | E19: RHV | F19: 479 | G19: 476 | H19: 458 | I19: 451 | J19: 437 | K19: 2301 | L19: 460.2 | M19: 230.1 | S19: 437 | X19: 458 | AD19: 476 | AJ19: 479 | AS19: 451
A20: 16 | B20: NEYRET Robert | C20: LAJ | D20: 49H00841 | E20: RHV | F20: 490 | G20: 453 | H20: 452 | I20: 445 | J20: 426 | K20: 2266 | L20: 453.2 | M20: 226.6 | W20: 445 | AF20: 453 | AH20: 490 | AJ20: 452 | AN20: 426
A21: 17 | B21: RANDLE Daniel | C21: CMA | D21: 47H00700 | E21: RHV | F21: 465 | G21: 445 | H21: 444 | I21: 443 | J21: 418 | K21: 2215 | L21: 443 | M21: 221.5 | U21: 445 | Z21: 465 | AD21: 418 | AO21: 444 | AV21: 443
A22: 18 | B22: DELNATTE Georges | C22: LIE | D22: 58H02914 | E22: RHV | F22: 459 | G22: 449 | H22: 447 | I22: 446 | J22: 335 | K22: 2136 | L22: 427.2 | M22: 213.6 | X22: 446 | Z22: 447 | AF22: 335 | AK22: 449 | AR22: 459
A23: 19 | B23: VANDEN BOGGAARR Marc | C23: ABA | D23: 57H00558 | E23: RHV | F23: 529 | G23: 523 | H23: 503 | I23: 499 | K23: 2054 | L23: 410.8 | M23: 205.4 | X23: 523 | Y23: 529 | Z23: 499 | AX23: 503
A24: 20 | B24: NATALIS Joseph | C24: CAJ | D24: 42H01967 | E24: RHV | F24: 523 | G24: 505 | H24: 503 | I24: 501 | K24: 2032 | L24: 406.4 | M24: 203.2 | X24: 503 | Z24: 523 | AS24: 505 | AW24: 501
A25: 21 | B25: FOURNIER Gérard | C25: BTS | D25: 55H02754 | E25: RHV | F25: 479 | G25: 472 | H25: 466 | I25: 462 | K25: 1879 | L25: 375.8 | M25: 187.9 | Y25: 472 | Z25: 466 | AI25: 479 | AX25: 462
A26: 22 | B26: PETRUS Gus | C26: GAU | D26: 54H00363 | E26: RHV | F26: 465 | G26: 450 | H26: 429 | K26: 1344 | L26: 268.8 | M26: 134.4 | U26: 429 | W26: 465 | Y26: 450
A27: 23 | B27: HERMAL Raymond | C27: ACB | D27: 55H01249 | E27: RHV | F27: 492 | G27: 459 | K27: 951 | L27: 190.2 | M27: 95.1 | AT27: 459 | AX27: 492
A28: 24 | B28: HANZE Bernard | C28: HUY | E28: RHV | F28: 488 | G28: 373 | K28: 861 | L28: 172.2 | M28: 86.1 | U28: 373 | AB28: 488
A29: 25 | B29: RENARD René | C29: SSK | E29: RHV | F29: 417 | G29: 387 | K29: 804 | L29: 160.8 | M29: 80.4 | Z29: 387 | AC29: 417
A30: 26 | B30: VAN ASSCHE Pierre | C30: GPE | D30: 48H00236 | E30: RHV | F30: 515 | K30: 515 | L30: 103 | M30: 51.5 | AK30: 515
A31: 27 | B31: VANDENHOOFDEN Bernard | C31: FAO | D31: 51H02731 | E31: RHV | F31: 482 | K31: 482 | L31: 96.4 | M31: 48.2 | AN31: 482
A32: 28 | B32: REIBER Guy | C32: GSR | D32: 46H00175 | E32: RHV | F32: 453 | K32: 453 | L32: 90.6 | M32: 45.3 | AV32: 453
A33: 29 | B33: ANTOINE Pol | C33: GAU | E33: RHV | F33: 437 | K33: 437 | L33: 87.4 | M33: 43.7 | U33: 437
A34: 30 | B34: DE GREEF Jean | C34: SSK | D34: 46H00331 | E34: RHV | F34: 422 | K34: 422 | L34: 84.4 | M34: 42.2 | Z34: 422
A35: 31 | B35: FRYNS Guido | C35: ITW | D35: 59H03148 | E35: RHV | F35: 401 | K35: 401 | L35: 80.2 | M35: 40.1 | AY35: 401
A36: 32 | B36: BOEVER Pierre | C36: TAB | D36: 56H02663 | E36: RHV | F36: 383 | K36: 383 | L36: 76.6 | M36: 38.3 | Z36: 383
A37: 33 | B37: VANMEENEN Philippe | C37: FBG | D37: 57H03948 | E37: RHV | F37: 382 | K37: =SUM(F37:J37) -> 382 | L37: =K37/5 -> 76.4 | M37: =L37/2 -> 38.2 | AF37: 382
A38: 34 | B38: DEBATY Dominique | C38: GAU | E38: RHV | F38: 373 | K38: 373 | L38: 74.6 | M38: 37.3 | U38: 373
A39: 35 | B39: FASSOTTE Charly | C39: CTH | D39: 46H01723 | E39: RHV | F39: 362 | K39: 362 | L39: 72.4 | M39: 36.2 | Z39: 362
A40: 36 | B40: PIETTE Alain | C40: FBG | D40: 54H03645 | E40: RHV | F40: 330 | K40: 330 | L40: 66 | M40: 33 | AF40: 330
A41: 37 | B41: HODIAMONT Thierry | C41: FOA | D41: 55H0049 | E41: RHV | F41: 322 | K41: 322 | L41: 64.4 | M41: 32.2 | AY41: 322
A42: 38 | B42: RENNEAU Jean-Noel | C42: ADS | D42: 59H02001 | E42: RHV | K42: 0 | L42: 0 | M42: 0
A43: 39 | B43: HANZE Bernard | C43: HUY | D43: 58H01505 | E43: RHV | K43: 0 | L43: 0 | M43: 0
A44: 40 | B44: DUPOND Yves | C44: BTS | D44: 59H03867 | E44: RHV | K44: 0 | L44: 0 | M44: 0
A45: 41 | B45: STEINIER Robert | C45: ABA | D45: 46H00639 | E45: RHV | K45: 0 | L45: 0 | M45: 0
A46: 42 | B46: METDEPENNINGEN Luc | C46: MDY | D46: 59H02050 | E46: RHV | K46: 0 | L46: 0 | M46: 0
A47: 43 | B47: NOSSENT Christian | C47: SSK | D47: 53H00269 | E47: RHV | K47: 0 | L47: 0 | M47: 0
A48: 44 | B48: MEYER Marc | C48: GPE | D48: 59H04233 | E48: RHV | K48: 0 | L48: 0 | M48: 0
A49: 45 | B49: RENNEAU Jean-Noel | C49: ADS | D49: 59H02001 | E49: RHV | K49: 0 | L49: 0 | M49: 0
A50: 46 | B50: ANQUETIL Marc | C50: CEN | D50: 56H01013 | E50: RHV | K50: 0 | L50: 0 | M50: 0
A51: 47 | B51: RAHIR Jacques | C51: CTH | D51: 44H03480 | E51: RHV | K51: 0 | L51: 0 | M51: 0
A52: 48 | B52: SANTOS MONDO Julio | D52: 59H04745 | E52: RHV | K52: 0 | L52: 0 | M52: 0
A53: 49 | B53: CHABEAU Andre | C53: MDY | D53: 57H03240 | E53: RHV | K53: 0 | L53: 0 | M53: 0
A54: 50 | B54: THEYS Marc | C54: LFU | D54: 56H04345 | E54: RHV | K54: 0 | L54: 0 | M54: 0
A55: 51 | B55: VANDENBERGHE Daniel | C55: CAB | D55: 51H02731 | E55: RHV | K55: 0 | L55: 0 | M55: 0
A56: 52 | B56: MAQUET Gilbert (recurve) | C56: ACF | D56: 53H02240 | E56: RHV | K56: 0 | L56: 0 | M56: 0
C58: La macro est déclenchée par toute entrée d'une valeur dans le tableau N5:BW20 (modifier le plage si nécessaire dans la macro)
A71: =IF(B71<>"",A70+1,"") -> 

Sheet 18M2020
B3: Nom | C3: Club | D3: Matricule | E3: Cat. | F3: Tir 1 | G3: Tir 2 | H3: Tir 3 | I3: Tir 4 | J3: Tir 5 | K3: Total | L3: M/600 | M3: M/300 | S3: GAU | T3: ACG | U3: PAC | V3: ANT | W3: ABA | X3: LIE | Y3: HUY | Z3: HAC | AA3: LFU | AB3: ITW | AC3: 2020 | AD3: FBG | AE3: CAT | AF3: BEA | AG3: CTH | AH3: ADS | AI3: FAC | AJ3: GPE | AK3: LFE | AL3: FAO | AM3: CMA | AN3: RCM | AO3: MDY | AP3: ECA | AQ3: LAC | AR3: ACG | AS3: FGV | AT3: GSR | AU3: LIE | AV3: BTS | AW3: FOA
A5: 1 | B5: NATALIS Joseph | C5: CAJ | D5: 42H01967 | E5: RHV | F5: 546 | G5: 528 | H5: 527 | I5: 506 | J5: 501 | K5: =SUM(F5:J5) -> 2608 | L5: =K5/5 -> 521.6 | M5: =L5/2 -> 260.8 | T5: 546 | AB5: 498 | AG5: 528 | AH5: 527 | AR5: 501 | AU5: 506
A6: =IF(B6<>"",A5+1,"") -> 2 | B6: SKORUPKA Guy | C6: CEN | D6: 57H01040 | E6: RHV | F6: 521 | G6: 518 | H6: 511 | I6: 504 | J6: 501 | K6: 2555 | L6: 511 | M6: 255.5 | U6: 492 | V6: 521 | W6: 481 | AD6: 489 | AL6: 511 | AM6: 518 | AN6: 495 | AP6: 486 | AT6: 501 | AV6: 448 | AW6: 504
A7: =IF(B7<>"",A6+1,"") -> 3 | B7: DEGHAYE Pierre | C7: ACM | D7: 55H01808 | E7: RHV | F7: 520 | G7: 517 | H7: 504 | I7: 503 | J7: 502 | K7: 2546 | L7: 509.2 | M7: 254.6 | T7: 517 | X7: 494 | Z7: 502 | AD7: 520 | AG7: 503 | AH7: 499 | AO7: 504 | AR7: 497 | AU7: 499
A8: 4 | B8: OLBRECHTS Pierre | C8: LAJ | D8: 56H00822 | E8: RHV | F8: 521 | G8: 504 | H8: 502 | I8: 492 | J8: 484 | K8: 2503 | L8: 500.6 | M8: 250.3 | AL8: 492 | AT8: 484 | AU8: 502 | AV8: 504 | AW8: 521
A9: 5 | B9: WIGGELEER Patrick | C9: GSR | D9: 56H00096 | E9: RHV | F9: 505 | G9: 500 | H9: 499 | I9: 489 | J9: 488 | K9: 2481 | L9: 496.2 | M9: 248.1 | X9: 489 | AA9: 499 | AB9: 505 | AL9: 485 | AM9: 476 | AT9: 500 | AU9: 488 | AW9: 488
A10: 6 | B10: DELCOMINETTE guy | C10: LIE | D10: 48H01514 | E10: RHV | F10: 506 | G10: 499 | H10: 494 | I10: 490 | J10: 489 | K10: 2478 | L10: 495.6 | M10: 247.8 | X10: 485 | Z10: 499 | AB10: 494 | AG10: 490 | AH10: 489 | AT10: 506 | AU10: 482 | AV10: 462
A11: 7 | B11: D'HEUR Michel | C11: FAO | D11: 46H00532 | E11: RHV | F11: 496 | G11: 495 | H11: 493 | I11: 491 | J11: 486 | K11: 2461 | L11: 492.2 | M11: 246.1 | S11: 485 | W11: 486 | AA11: 496 | AL11: 495 | AM11: 493 | AT11: 491 | AV11: 455
A12: 8 | B12: DELNATTE Georges | C12: LIE | D12: 58H02914 | E12: RHV | F12: 513 | G12: 496 | H12: 489 | I12: 488 | J12: 469 | K12: 2455 | L12: 491 | M12: 245.5 | Z12: 488 | AA12: 469 | AG12: 496 | AN12: 489 | AS12: 513
A13: 9 | B13: BACOT Paul (recurve) | C13: HUY | D13: 50H01459 | E13: RHV | F13: 509 | G13: 504 | H13: 493 | I13: 472 | J13: 466 | K13: 2444 | L13: 488.8 | M13: 244.4 | R13: 437 | T13: 509 | W13: 455 | X13: 493 | Z13: 472 | AB13: 437 | AD13: 466 | AG13: 455 | AH13: 504 | AO13: 466 | AR13: 459 | AV13: 365
A14: 10 | B14: PETRONS Joel | C14: LFU | D14: 49H00899 | E14: RHV | F14: 491 | G14: 490 | H14: 481 | I14: 481 | J14: 476 | K14: 2419 | L14: 483.8 | M14: 241.9 | U14: 472 | Z14: 490 | AB14: 476 | AL14: 481 | AM14: 491 | AV14: 481
A15: 11 | B15: FIORA Joel | C15: SSK | D15: 57H00342 | E15: RHV | F15: 492 | G15: 491 | H15: 484 | I15: 474 | J15: 471 | K15: 2412 | L15: 482.4 | M15: 241.2 | S15: 484 | W15: 491 | X15: 474 | Z15: 471 | AM15: 492 | AT15: 469
A16: 12 | B16: DURIEUX Marc | C16: SSC | D16: 57H01263 | E16: RHV | F16: 468 | G16: 466 | H16: 462 | I16: 460 | J16: 456 | K16: 2312 | L16: 462.4 | M16: 231.2 | AA16: 462 | AI16: 460 | AM16: 468 | AP16: 429 | AT16: 466 | AU16: 456 | AV16: 449
A17: 13 | B17: PENA Victor | C17: CTH | D17: 54H01714 | E17: RHV | F17: 480 | G17: 475 | H17: 458 | I17: 446 | J17: 439 | K17: 2298 | L17: 459.6 | M17: 229.8 | T17: 480 | Z17: 439 | AB17: 458 | AD17: 475 | AH17: 416 | AO17: 446
A18: 14 | B18: NEYRET Robert | C18: LAJ | D18: 49H00841 | E18: RHV | F18: 451 | G18: 447 | H18: 443 | I18: 442 | J18: 442 | K18: 2225 | L18: 445 | M18: 222.5 | AL18: 443 | AM18: 401 | AT18: 442 | AU18: 451 | AV18: 442 | AW18: 447
A19: 15 | B19: FRYNS Guido | C19: ITW | D19: 59H03148 | E19: RHV | F19: 456 | G19: 428 | H19: 428 | I19: 421 | J19: 413 | K19: 2146 | L19: 429.2 | M19: 214.6 | W19: 372 | X19: 428 | Z19: 413 | AA19: 421 | AB19: 391 | AD19: 412 | AG19: 410 | AL19: 392 | AM19: 428 | AO19: 412 | AT19: 456 | AU19: 410 | AV19: 382 | AW19: 397
A20: 16 | B20: DUPOND Yves | C20: BTS | D20: 59H03867 | E20: RHV | F20: 453 | G20: 436 | H20: 424 | I20: 422 | J20: 405 | K20: 2140 | L20: 428 | M20: 214 | AF20: 424 | AI20: 405 | AK20: 422 | AO20: 453 | AW20: 436
A21: 17 | B21: RANDLE Daniel | C21: CMA | D21: 47H00700 | E21: RHV | F21: 453 | G21: 429 | H21: 427 | I21: 411 | J21: 402 | K21: 2122 | L21: 424.4 | M21: 212.2 | S21: 429 | AA21: 453 | AL21: 411 | AM21: 402 | AT21: 427
A22: 18 | B22: METDEPENNINGEN Luc | C22: MDY | D22: 59H02050 | E22: RHV | F22: 427 | G22: 418 | H22: 402 | I22: 383 | J22: 379 | K22: 2009 | L22: 401.8 | M22: 200.9 | X22: 402 | AB22: 379 | AG22: 383 | AO22: 427 | AS22: 418 | AU22: 374
A23: 19 | B23: GRAVAR Pierre | C23: ECA | D23: 52H01303 | E23: RHV | F23: 495 | G23: 484 | H23: 466 | I23: 447 | K23: 1892 | L23: 378.4 | M23: 189.2 | U23: 495 | AA23: 466 | AP23: 484 | AV23: 447
A24: 20 | B24: RENNEAU Jean-Noel | C24: ADS | D24: 59H02001 | E24: RHV | F24: 476 | G24: 474 | H24: 471 | I24: 423 | K24: 1844 | L24: 368.8 | M24: 184.4 | AH24: 474 | AO24: 471 | AR24: 423 | AU24: 476
A25: 21 | B25: PETRUS Gus | C25: GAU | D25: 54H00363 | E25: RHV | F25: 459 | G25: 445 | H25: 445 | I25: 436 | K25: 1785 | L25: 357 | M25: 178.5 | S25: 459 | W25: 445 | AV25: 436 | AW25: 445
A26: 22 | B26: MEYER Marc | C26: GPE | D26: 59H04233 | E26: RHV | F26: 532 | G26: 524 | H26: 520 | K26: 1576 | L26: 315.2 | M26: 157.6 | AJ26: 532 | AK26: 524 | AW26: 520
A27: 23 | B27: VANDEN BOGGAARR Marc | C27: ABA | D27: 57H00558 | E27: RHV | F27: 523 | G27: 518 | H27: 518 | K27: 1559 | L27: 311.8 | M27: 155.9 | W27: 518 | X27: 523 | AB27: 518
A28: 24 | B28: ANQUETIL Marc | C28: CEN | D28: 56H01013 | E28: RHV | F28: 492 | G28: 472 | H28: 452 | K28: 1416 | L28: 283.2 | M28: 141.6 | AM28: 452 | AP28: 472 | AV28: 492
A29: 25 | B29: FOURNIER Gérard | C29: BTS | D29: 55H02754 | E29: RHV | F29: 466 | G29: 426 | K29: 892 | L29: 178.4 | M29: 89.2 | X29: 426 | AV29: 466
A30: 26 | B30: NOSSENT Christian | C30: SSK | D30: 53H00269 | E30: RHV | F30: 418 | G30: 405 | K30: 823 | L30: 164.6 | M30: 82.3 | W30: 418 | X30: 405
A31: 27 | B31: SANTOS MONDO Julio | D31: 59H04745 | E31: RHV | F31: 365 | G31: 359 | K31: 724 | L31: 144.8 | M31: 72.4 | AM31: 365 | AT31: 359
A32: 28 | B32: HERMAL Raymond | C32: ACB | D32: 55H01249 | E32: RHV | F32: 512 | K32: 512 | L32: 102.4 | M32: 51.2 | AF32: 512
A33: 29 | B33: LUCAS André (recurve) | C33: SSC | D33: 55H01262 | E33: RHV | F33: 490 | K33: 490 | L33: 98 | M33: 49 | V33: 490
A34: 30 | B34: GESSA Stefano | C34: CAM | D34: 45H01355 | E34: RHV | F34: 478 | K34: 478 | L34: 95.6 | M34: 47.8 | AF34: 478
A35: 31 | B35: ANTOINE Pol | C35: GAU | E35: RHV | F35: 456 | K35: 456 | L35: 91.2 | M35: 45.6 | S35: 456
A36: 32 | B36: REIBER Guy | C36: GSR | D36: 46H00175 | E36: RHV | F36: 414 | K36: 414 | L36: 82.8 | M36: 41.4 | AT36: 414
A37: 33 | B37: STEINIER Robert | C37: ABA | D37: 46H00639 | E37: RHV | F37: 392 | K37: =SUM(F37:J37) -> 392 | L37: =K37/5 -> 78.4 | M37: =L37/2 -> 39.2 | X37: 392
A38: 34 | B38: HODIAMONT Thierry | C38: FOA | D38: 55H0049 | E38: RHV | F38: 362 | K38: 362 | L38: 72.4 | M38: 36.2 | AW38: 362
A39: 35 | B39: RAHIR Jacques | C39: CTH | E39: RHV | F39: 335 | K39: 335 | L39: 67 | M39: 33.5 | AF39: 335
A40: 36 | B40: CHABEAU Andre | C40: MDY | D40: 57H03240 | E40: RHV | F40: 302 | K40: 302 | L40: 60.4 | M40: 30.2 | AB40: 302
A41: 37 | B41: BERUS Alain | C41: BTS | D41: 60H02770 | E41: RHV | F41: 294 | K41: 294 | L41: 58.8 | M41: 29.4 | AV41: 294
A42: 38 | B42: PEETERS Emmanuel | C42: SSK | D42: 59H00357 | E42: RHV | F42: 279 | K42: 279 | L42: 55.8 | M42: 27.9 | AT42: 279
A43: 39 | B43: DE GREEF Jean | C43: SSK | D43: 46H00331 | E43: RHV | K43: 0 | L43: 0 | M43: 0
A44: 40 | B44: RENNEAU Jean-Noel | C44: ADS | D44: 59H02001 | E44: RHV | K44: 0 | L44: 0 | M44: 0
A45: 41 | B45: HANZE Bernard | C45: HUY | D45: 58H01505 | E45: RHV | K45: 0 | L45: 0 | M45: 0
A46: 42 | B46: VANDERVELDEN Daniel | C46: HUY | D46: 51H02731 | E46: RHV | K46: 0 | L46: 0 | M46: 0
A47: 43 | B47: HANZE Bernard | C47: HUY | E47: RHV | K47: 0 | L47: 0 | M47: 0
A48: 44 | B48: RENARD René | C48: SSK | E48: RHV | K48: 0 | L48: 0 | M48: 0
A49: 45 | B49: VAN ASSCHE Pierre | C49: GPE | D49: 48H00236 | E49: RHV | K49: 0 | L49: 0 | M49: 0
A50: 46 | B50: VANDENHOOFDEN Bernard | C50: FAO | D50: 51H02731 | E50: RHV | K50: 0 | L50: 0 | M50: 0
A51: 47 | B51: BOEVER Pierre | C51: TAB | D51: 56H02663 | E51: RHV | K51: 0 | L51: 0 | M51: 0
A52: 48 | B52: VANMEENEN Philippe | C52: FBG | D52: 57H03948 | E52: RHV | K52: 0 | L52: 0 | M52: 0
A53: 49 | B53: DEBATY Dominique | C53: GAU | E53: RHV | K53: 0 | L53: 0 | M53: 0
A54: 50 | B54: FASSOTTE Charly | C54: CTH | D54: 46H01723 | E54: RHV | K54: 0 | L54: 0 | M54: 0
A55: 51 | B55: PIETTE Alain | C55: FBG | D55: 54H03645 | E55: RHV | K55: 0 | L55: 0 | M55: 0
A56: 52 | B56: RAHIR Jacques | C56: CTH | D56: 44H03480 | E56: RHV | K56: 0 | L56: 0 | M56: 0
A57: =IF(B57<>"",A56+1,"") -> 53 | B57: THEYS Marc | C57: LFU | D57: 56H04345 | E57: RHV | K57: 0 | L57: 0 | M57: 0
A58: =IF(B58<>"",A57+1,"") -> 54 | B58: VANDENBERGHE Daniel | C58: CAB | D58: 51H02731 | E58: RHV | K58: 0 | L58: 0 | M58: 0
A59: =IF(B59<>"",A58+1,"") -> 55 | B59: MAQUET Gilbert (recurve) | C59: ACF | D59: 53H02240 | E59: RHV | K59: 0 | L59: 0 | M59: 0
A60: =IF(B60<>"",A59+1,"") -> 56 | B60: XA | C60: CAB | D60: 51H02731 | E60: RHV | K60: 0 | L60: 0 | M60: 0
C65: La macro est déclenchée par toute entrée d'une valeur dans le tableau N5:BW20 (modifier le plage si nécessaire dans la macro)
A69: =IF(B69<>"",A68+1,"") -> 

Sheet 18M2021
B3: Nom | C3: Club | D3: Matricule | E3: Cat. | F3: Tir 1 | G3: Tir 2 | H3: Tir 3 | I3: Tir 4 | J3: Tir 5 | K3: Total | L3: M/600 | M3: M/300 | S3: AGC | T3: PAC | U3: GAU | V3: ANT | W3: ITW | X3: ABA | Y3: LIE | Z3: ECA | AA3: HUY | AB3: 2021 | AC3: CTH | AD3: CAT | AE3: SSC | AF3: ADS | AG3: FAC | AH3: ADS | AI3: GPE | AJ3: BEA | AK3: LFE | AL3: MDY | AM3: FAO | AN3: CMA | AO3: LAC | AP3: ACG | AQ3: FGV | AR3: ECA | AS3: GSR | AT3: RCM | AU3: LIE | AV3: BTS | AW3: FOA
A5: 1 | B5: OLBRECHTS Pierre | C5: LAJ | D5: 56H00822 | E5: RHV | F5: 561 | G5: 552 | H5: 551 | I5: 547 | J5: 544 | K5: =SUM(F5:J5) -> 2755 | L5: =K5/5 -> 551 | M5: =L5/2 -> 275.5 | W5: 511 | AA5: 481 | AC5: 522 | AF5: 531 | AH5: 534 | AI5: 538 | AL5: 561 | AM5: 542 | AN5: 544 | AO5: 551 | AS5: 534 | AU5: 547 | AV5: 552
A6: =IF(B6<>"",A5+1,"") -> 2 | B6: MEYER Marc | C6: GPE | D6: 59H04233 | E6: RHV | F6: 534 | G6: 530 | H6: 530 | I6: 526 | J6: 517 | K6: 2637 | L6: 527.4 | M6: 263.7 | Y6: 534 | AD6: 530 | AE6: 530 | AM6: 508 | AR6: 517 | AS6: 499 | AT6: 502 | AV6: 526
A7: =IF(B7<>"",A6+1,"") -> 3 | B7: SKORUPKA Guy | C7: CEN | D7: 57H01040 | E7: RHV | F7: 520 | G7: 519 | H7: 517 | I7: 516 | J7: 514 | K7: 2586 | L7: 517.2 | M7: 258.6 | T7: 508 | V7: 492 | X7: 516 | Y7: 489 | AD7: 498 | AE7: 520 | AG7: 514 | AJ7: 503 | AM7: 517 | AN7: 519 | AR7: 508 | AT7: 503 | AU7: 513 | AV7: 506
A8: 4 | B8: COCQUYT Francis | C8: CTH | D8: 60H01688 | E8: RHV | F8: 525 | G8: 514 | H8: 511 | I8: 507 | J8: 500 | K8: 2557 | L8: 511.4 | M8: 255.7 | S8: 514 | W8: 500 | Y8: 499 | AC8: 525 | AH8: 511 | AL8: 507 | AP8: 482 | AU8: 493
A9: 5 | B9: PIERRE Auguste | C9: CAJ | D9: 56H04788 | E9: RHV | F9: 519 | G9: 516 | H9: 510 | I9: 503 | J9: 498 | K9: 2546 | L9: 509.2 | M9: 254.6 | W9: 462 | Y9: 446 | AH9: 474 | AL9: 498 | AM9: 503 | AN9: 497 | AO9: 516 | AQ9: 510 | AU9: 519
A10: 6 | B10: DEGHAYE Pierre | C10: ACM | D10: 55H01808 | E10: RHV | F10: 522 | G10: 506 | H10: 500 | I10: 498 | J10: 492 | K10: 2518 | L10: 503.6 | M10: 251.8 | S10: 522 | W10: 506 | Y10: 498 | AC10: 470 | AH10: 290 | AL10: 500 | AP10: 492 | AU10: 492 | AV10: 489
A11: 7 | B11: FIORA Joel | C11: SSK | D11: 57H00342 | E11: RHV | F11: 505 | G11: 495 | H11: 492 | I11: 492 | J11: 489 | K11: 2473 | L11: 494.6 | M11: 247.3 | U11: 495 | X11: 489 | Y11: 478 | AM11: 485 | AN11: 492 | AS11: 460 | AU11: 492 | AW11: 505
A12: 8 | B12: DELCOMINETTE guy | C12: LIE | D12: 48H01514 | E12: RHV | F12: 500 | G12: 486 | H12: 484 | I12: 482 | J12: 477 | K12: 2429 | L12: 485.8 | M12: 242.9 | AC12: 447 | AF12: 484 | AH12: 477 | AL12: 430 | AN12: 486 | AS12: 500 | AU12: 482
A13: 9 | B13: VANDENBERGHE Daniel | C13: CAB | D13: 51H02731 | E13: RHV | F13: 504 | G13: 501 | H13: 486 | I13: 481 | J13: 457 | K13: 2429 | L13: 485.8 | M13: 242.9 | AG13: 501 | AM13: 486 | AN13: 457 | AR13: 504 | AV13: 481
A14: 10 | B14: PAT Henri | C14: ABA | D14: 52H04786 | E14: RHV | F14: 485 | G14: 466 | H14: 465 | I14: 464 | J14: 417 | K14: 2297 | L14: 459.4 | M14: 229.7 | Y14: 485 | AM14: 464 | AN14: 417 | AR14: 466 | AS14: 465
A15: 11 | B15: DEPROOST Michel | C15: SSK | D15: 61H00337 | E15: RHV | F15: 476 | G15: 466 | H15: 464 | I15: 451 | J15: 437 | K15: 2294 | L15: 458.8 | M15: 229.4 | AM15: 437 | AN15: 476 | AS15: 451 | AU15: 464 | AW15: 466
A16: 12 | B16: FRYNS Guido | C16: ITW | D16: 59H03148 | E16: RHV | F16: 450 | G16: 427 | H16: 427 | I16: 427 | J16: 420 | K16: 2151 | L16: 430.2 | M16: 215.1 | S16: 412 | W16: 427 | X16: 450 | AA16: 427 | AC16: 352 | AH16: 408 | AL16: 427 | AM16: 382 | AN16: 420 | AQ16: 400 | AS16: 410 | AU16: 400 | AV16: 413 | AW16: 404
A17: 13 | B17: DURIEUX Marc | C17: SSC | D17: 57H01263 | E17: RHV | F17: 495 | G17: 483 | H17: 470 | I17: 449 | K17: 1897 | L17: 379.4 | M17: 189.7 | V17: 495 | X17: 470 | Y17: 483 | AE17: 449
A18: 14 | B18: BACOT Paul (recurve) | C18: HUY | D18: 50H01459 | E18: RHV | F18: 487 | G18: 480 | H18: 468 | I18: 459 | K18: 1894 | L18: 378.8 | M18: 189.4 | S18: 468 | X18: 480 | Y18: 459 | AA18: 487
A19: 15 | B19: D'HEUR Michel | C19: FAO | D19: 46H00532 | E19: RHV | F19: 476 | G19: 461 | H19: 457 | I19: 455 | K19: 1849 | L19: 369.8 | M19: 184.9 | U19: 476 | X19: 457 | AM19: 461 | AS19: 455
A20: 16 | B20: NATALIS Joseph | C20: CAJ | D20: 42H01967 | E20: RHV | F20: 516 | G20: 497 | H20: 447 | I20: 256 | K20: 1716 | L20: 343.2 | M20: 171.6 | W20: 256 | AH20: 447 | AL20: 516 | AU20: 497
A21: 17 | B21: METDEPENNINGEN Luc | C21: MDY | D21: 59H02050 | E21: RHV | F21: 453 | G21: 401 | H21: 381 | I21: 326 | K21: 1561 | L21: 312.2 | M21: 156.1 | W21: 401 | Y21: 453 | AL21: 381 | AU21: 326
A22: 18 | B22: VANHAEREN Patrick | C22: LIE | D22: 61H05047 | E22: RHV | F22: 515 | G22: 490 | H22: 476 | K22: 1481 | L22: 296.2 | M22: 148.1 | AL22: 515 | AN22: 476 | AU22: 490
A23: 19 | B23: GRAVAR Pierre | C23: ECA | D23: 52H01303 | E23: RHV | F23: 489 | G23: 467 | H23: 454 | K23: 1410 | L23: 282 | M23: 141 | T23: 467 | X23: 489 | AR23: 454
A24: 20 | B24: PETRUS Gus | C24: GAU | D24: 54H00363 | E24: RHV | F24: 451 | G24: 430 | H24: 397 | K24: 1278 | L24: 255.6 | M24: 127.8 | U24: 451 | X24: 430 | AO24: 397
A25: 21 | B25: DUPOND Yves | C25: BTS | D25: 59H03867 | E25: RHV | F25: 426 | G25: 417 | H25: 400 | K25: 1243 | L25: 248.6 | M25: 124.3 | T25: 400 | X25: 417 | Y25: 426
A26: 22 | B26: ANQUETIL Marc | C26: CEN | D26: 56H01013 | E26: RHV | F26: 509 | G26: 471 | K26: 980 | L26: 196 | M26: 98 | T26: 509 | X26: 471
A27: 23 | B27: DE BON Pierre | C27: SAG | D27: 57H03719 | E27: RHV | F27: 321 | G27: 315 | H27: 315 | K27: 951 | L27: 190.2 | M27: 95.1 | AJ27: 315 | AR27: 321 | AV27: 315
A28: 24 | B28: PETRONS Joel | C28: LFU | D28: 49H00899 | E28: RHV | F28: 480 | G28: 467 | K28: 947 | L28: 189.4 | M28: 94.7 | T28: 467 | W28: 480
A29: 25 | B29: LEMIN Gerard | C29: ITW | D29: 53H02240 | E29: RHV | F29: 481 | G29: 454 | K29: 935 | L29: 187 | M29: 93.5 | AC29: 454 | AW29: 481
A30: 26 | B30: MARIAVELLE Eric | C30: CAL | D30: 60H05586 | E30: RHV | F30: 456 | G30: 414 | K30: 870 | L30: 174 | M30: 87 | Y30: 456 | AQ30: 414
A31: 27 | B31: LEJEUNE Paul | C31: LFE | D31: 56H00919 | E31: RHV | F31: 428 | G31: 373 | K31: 801 | L31: 160.2 | M31: 80.1 | AS31: 428 | AT31: 373
A32: 28 | B32: LANDOLINO FRANCIS | C32: ACG | D32: 56H04781 | E32: RHV | F32: 412 | G32: 334 | K32: 746 | L32: 149.2 | M32: 74.6 | S32: 412 | AP32: 334
A33: 29 | B33: PEETERS Emmanuel | C33: SSK | D33: 59H00357 | E33: RHV | F33: 367 | G33: 324 | K33: 691 | L33: 138.2 | M33: 69.1 | U33: 324 | X33: 367
A34: 30 | B34: SANTOS MONDO Julio | D34: 59H04745 | E34: RHV | F34: 306 | G34: 248 | K34: 554 | L34: 110.8 | M34: 55.4 | U34: 248 | X34: 306
A35: 31 | B35: RENNEAU Jean-Noel | C35: ADS | D35: 59H02001 | E35: RHV | F35: 511 | K35: 511 | L35: 102.2 | M35: 51.1 | S35: 511
A36: 32 | B36: WIGGELEER Patrick | C36: GSR | D36: 56H00096 | E36: RHV | F36: 510 | K36: 510 | L36: 102 | M36: 51 | Y36: 510
A37: 33 | B37: DELNATTE Georges | C37: LIE | D37: 58H02914 | E37: RHV | F37: 477 | K37: =SUM(F37:J37) -> 477 | L37: =K37/5 -> 95.4 | M37: =L37/2 -> 47.7 | W37: 477
A38: 34 | B38: HERMAL Raymond | C38: ACB | D38: 55H01249 | E38: RHV | F38: 466 | K38: 466 | L38: 93.2 | M38: 46.6 | AJ38: 466
A39: 35 | B39: DESSART Hubert | C39: ACM | D39: 48H01811 | E39: RHV | F39: 451 | K39: 451 | L39: 90.2 | M39: 45.1 | Y39: 451
A40: 36 | B40: DEBATY Dominique | C40: GAU | E40: RHV | F40: 430 | K40: 430 | L40: 86 | M40: 43 | U40: 430
A41: 37 | B41: ROBERTO Salvator | C41: ACB | D41: 50H02729 | E41: RHV | F41: 409 | K41: 409 | L41: 81.8 | M41: 40.9 | AJ41: 409
A42: 38 | B42: FOURNIER Gérard | C42: BTS | D42: 55H02754 | E42: RHV | F42: 408 | K42: 408 | L42: 81.6 | M42: 40.8 | AV42: 408
A43: 39 | B43: RANDLE Daniel | C43: CMA | D43: 47H00700 | E43: RHV | F43: 399 | K43: 399 | L43: 79.8 | M43: 39.9 | U43: 399
A44: 40 | B44: NEYRET Robert | C44: LAJ | D44: 49H00841 | E44: RHV | F44: 352 | K44: 352 | L44: 70.4 | M44: 35.2 | W44: 352
A45: 41 | B45: SIMON Claude | C45: MDY | D45: 51H03522 | E45: RHV | F45: 287 | K45: 287 | L45: 57.4 | M45: 28.7 | AL45: 287
A46: 42 | B46: STEINIER Robert | C46: ABA | D46: 46H00639 | E46: RHV | K46: 0 | L46: 0 | M46: 0
A47: 43 | B47: CHABEAU Andre | C47: MDY | D47: 57H03240 | E47: RHV | K47: 0 | L47: 0 | M47: 0
A48: 44 | B48: RAHIR Jacques | C48: CTH | D48: 44H03480 | E48: RHV | K48: 0 | L48: 0 | M48: 0
A49: 45 | B49: MAQUET Gilbert (recurve) | C49: ACF | D49: 53H02240 | E49: RHV | K49: 0 | L49: 0 | M49: 0
A50: 46 | B50: PENA Victor | C50: CTH | D50: 54H01714 | E50: RHV | K50: 0 | L50: 0 | M50: 0
A51: 47 | B51: VANDEN BOGGAARR Marc | C51: ABA | D51: 57H00558 | E51: RHV | K51: 0 | L51: 0 | M51: 0
A52: 48 | B52: NOSSENT Christian | C52: SSK | D52: 53H00269 | E52: RHV | K52: 0 | L52: 0 | M52: 0
A53: 49 | B53: LUCAS André (recurve) | C53: SSC | D53: 55H01262 | E53: RHV | K53: 0 | L53: 0 | M53: 0
A54: 50 | B54: GESSA Stefano | C54: CAM | D54: 45H01355 | E54: RHV | K54: 0 | L54: 0 | M54: 0
A55: 51 | B55: ANTOINE Pol | C55: GAU | E55: RHV | K55: 0 | L55: 0 | M55: 0
A56: 52 | B56: REIBER Guy | C56: GSR | D56: 46H00175 | E56: RHV | K56: 0 | L56: 0 | M56: 0
A57: 53 | B57: HODIAMONT Thierry | C57: FOA | D57: 55H0049 | E57: RHV | K57: 0 | L57: 0 | M57: 0
A58: 54 | B58: RAHIR Jacques | C58: CTH | E58: RHV | K58: 0 | L58: 0 | M58: 0
A59: 55 | B59: BERUS Alain | C59: BTS | D59: 60H02770 | E59: RHV | K59: 0 | L59: 0 | M59: 0
A60: 56 | B60: VANDERVELDEN Daniel | C60: HUY | D60: 51H02731 | E60: RHV | K60: 0 | L60: 0 | M60: 0
A61: =IF(B61<>"",A60+1,"") -> 57 | B61: HANZE Bernard | C61: HUY | E61: RHV | K61: 0 | L61: 0 | M61: 0
A62: 58 | B62: RENARD René | C62: SSK | E62: RHV | K62: 0 | L62: 0 | M62: 0
A63: 59 | B63: VAN ASSCHE Pierre | C63: GPE | D63: 48H00236 | E63: RHV | K63: 0 | L63: 0 | M63: 0
A64: 60 | B64: VANDENHOOFDEN Bernard | C64: FAO | D64: 51H02731 | E64: RHV | K64: 0 | L64: 0 | M64: 0
A65: 61 | B65: DE GREEF Jean | C65: SSK | D65: 46H00331 | E65: RHV | K65: 0 | L65: 0 | M65: 0
A66: 62 | B66: BOEVER Pierre | C66: TAB | D66: 56H02663 | E66: RHV | K66: 0 | L66: 0 | M66: 0
A67: 63 | B67: VANMEENEN Philippe | C67: FBG | D67: 57H03948 | E67: RHV | K67: 0 | L67: 0 | M67: 0
A68: 64 | B68: FASSOTTE Charly | C68: CTH | D68: 46H01723 | E68: RHV | K68: 0 | L68: 0 | M68: 0
A69: 65 | B69: PIETTE Alain | C69: FBG | D69: 54H03645 | E69: RHV | K69: =SUM(F69:J69) -> 0 | L69: =K69/5 -> 0 | M69: =L69/2 -> 0
A70: 66 | B70: RENNEAU Jean-Noel | C70: ADS | D70: 59H02001 | E70: RHV | K70: 0 | L70: 0 | M70: 0
A71: 67 | B71: HANZE Bernard | C71: HUY | D71: 58H01505 | E71: RHV | K71: 0 | L71: 0 | M71: 0
A72: 68 | B72: THEYS Marc | C72: LFU | D72: 56H04345 | E72: RHV | K72: 0 | L72: 0 | M72: 0
A73: =IF(B73<>"",A72+1,"") -> 
C78: La macro est déclenchée par toute entrée d'une valeur dans le tableau N5:BW20 (modifier le plage si nécessaire dans la macro)

Sheet 18M2022
B3: Nom | C3: Club | D3: Matricule | E3: Cat. | F3: Tir 1 | G3: Tir 2 | H3: Tir 3 | I3: Tir 4 | J3: Tir 5 | K3: Total | L3: M/600 | M3: M/300 | S3: ITW | T3: GAU | U3: ANT | V3: FAO | W3: ChLie | X3: LIE | Y3: Telev | Z3: HUY | AA3: HAC | AB3: LFU | AC3: 2022 | AD3: FBG | AE3: CAT | AF3: SSC | AG3: CTH | AH3: BEA | AI3: ADS | AJ3: FAC | AK3: GPE | AL3: LFE | AM3: MDY | AN3: FAO | AO3: DSA | AP3: CMA | AQ3: ACG | AR3: LAC | AS3: ECA | AT3: FGV | AU3: KJS | AV3: GSR | AW3: RCM | AX3: LIE | AY3: BTS | AZ3: FOA | BA3: 2023
A5: 1 | B5: LEJOLY Daniel | C5: LIE | D5: 61H01569 | E5: RHV | F5: 556 | G5: 555 | H5: 552 | I5: 544 | J5: 531 | K5: =SUM(F5:J5) -> 2738 | L5: =K5/5 -> 547.6 | M5: =L5/2 -> 273.8 | AF5: 555 | AG5: 552 | AI5: 544 | AQ5: 556 | AS5: 531 | AX5: 527 | AY5: 529
A6: =IF(B6<>"",A5+1,"") -> 2 | B6: HEYVAERT Etienne | C6: GSR | D6: 48H07665 | E6: RHV | F6: 554 | G6: 548 | H6: 548 | I6: 546 | J6: 542 | K6: 2738 | L6: 547.6 | M6: 273.8 | AK6: 538 | AL6: 546 | AP6: 548 | AU6: 554 | AV6: 541 | AX6: 548 | AY6: 542
A7: =IF(B7<>"",A6+1,"") -> 3 | B7: OLBRECHTS Pierre | C7: LAJ | D7: 56H00822 | E7: RHV | F7: 545 | G7: 535 | H7: 533 | I7: 531 | J7: 528 | K7: 2672 | L7: 534.4 | M7: 267.2 | T7: 510 | X7: 528 | AB7: 531 | AG7: 520 | AI7: 535 | AM7: 533 | AN7: 524 | AR7: 520 | AS7: 488 | AX7: 523 | AY7: 545
A8: 4 | B8: MEYER Marc | C8: GPE | D8: 59H04233 | E8: RHV | F8: 535 | G8: 535 | H8: 527 | I8: 525 | J8: 524 | K8: 2646 | L8: 529.2 | M8: 264.6 | T8: 501 | X8: 451 | AB8: 500 | AD8: 518 | AF8: 521 | AN8: 522 | AP8: 535 | AS8: 524 | AV8: 535 | AW8: 527 | AY8: 525
A9: 5 | B9: SKORUPKA Guy | C9: CEN | D9: 57H01040 | E9: RHV | F9: 532 | G9: 529 | H9: 526 | I9: 523 | J9: 523 | K9: 2633 | L9: 526.6 | M9: 263.3 | U9: 523 | X9: 511 | AF9: 499 | AJ9: 526 | AL9: 508 | AN9: 496 | AP9: 532 | AS9: 523 | AV9: 529 | AW9: 510
A10: 6 | B10: PIERRE Auguste | C10: CAJ | D10: 56H04788 | E10: RHV | F10: 526 | G10: 524 | H10: 524 | I10: 516 | J10: 513 | K10: 2603 | L10: 520.6 | M10: 260.3 | S10: 513 | W10: 505 | X10: 526 | AA10: 524 | AG10: 496 | AM10: 513 | AO10: 516 | AQ10: 493 | AV10: 499 | AX10: 524
A11: 7 | B11: COCQUYT Francis | C11: CTH | D11: 60H01688 | E11: RHV | F11: 512 | G11: 511 | H11: 510 | I11: 506 | J11: 503 | K11: 2542 | L11: 508.4 | M11: 254.2 | S11: 485 | W11: 486 | Z11: 510 | AA11: 491 | AG11: 511 | AI11: 506 | AM11: 501 | AO11: 503 | AQ11: 512 | AX11: 486
A12: 8 | B12: FIORA Joel | C12: SSK | D12: 57H00342 | E12: RHV | F12: 516 | G12: 509 | H12: 508 | I12: 508 | J12: 499 | K12: 2540 | L12: 508 | M12: 254 | T12: 494 | AA12: 508 | AB12: 492 | AN12: 516 | AP12: 509 | AV12: 499 | AX12: 508
A13: 9 | B13: DEGHAYE Pierre | C13: ACM | D13: 55H01808 | E13: RHV | F13: 518 | G13: 513 | H13: 509 | I13: 497 | J13: 495 | K13: 2532 | L13: 506.4 | M13: 253.2 | S13: 478 | X13: 494 | AA13: 478 | AG13: 477 | AI13: 513 | AM13: 509 | AO13: 497 | AQ13: 518 | AX13: 495
A14: 10 | B14: DELCOMINETTE guy | C14: LIE | D14: 48H01514 | E14: RHV | F14: 515 | G14: 509 | H14: 490 | I14: 481 | J14: 480 | K14: 2475 | L14: 495 | M14: 247.5 | S14: 451 | X14: 459 | AG14: 480 | AI14: 471 | AM14: 509 | AO14: 515 | AV14: 490 | AX14: 445 | AY14: 481
A15: 11 | B15: DEPROOST Michel | C15: SSK | D15: 61H00337 | E15: RHV | F15: 493 | G15: 491 | H15: 487 | I15: 481 | J15: 472 | K15: 2424 | L15: 484.8 | M15: 242.4 | T15: 493 | AA15: 448 | AB15: 472 | AN15: 481 | AP15: 441 | AV15: 487 | AX15: 491
A16: 12 | B16: VANDENBERGHE Daniel | C16: CAB | D16: 51H02731 | E16: RHV | F16: 500 | G16: 498 | H16: 491 | I16: 463 | J16: 461 | K16: 2413 | L16: 482.6 | M16: 241.3 | X16: 461 | AD16: 443 | AF16: 441 | AH16: 455 | AJ16: 439 | AN16: 500 | AP16: 498 | AS16: 491 | AY16: 463
A17: 13 | B17: LEJEUNE Paul | C17: LFE | D17: 56H00919 | E17: RHV | F17: 483 | G17: 481 | H17: 454 | I17: 442 | J17: 441 | K17: 2301 | L17: 460.2 | M17: 230.1 | U17: 399 | AB17: 454 | AE17: 441 | AF17: 442 | AK17: 277 | AV17: 483 | AW17: 481
A18: 14 | B18: PETRONS Joel | C18: LFU | D18: 49H00899 | E18: RHV | F18: 466 | G18: 465 | H18: 446 | I18: 437 | J18: 430 | K18: 2244 | L18: 448.8 | M18: 224.4 | S18: 399 | AA18: 413 | AD18: 437 | AG18: 466 | AM18: 420 | AN18: 465 | AP18: 430 | AW18: 417 | AY18: 446
A19: 15 | B19: FRYNS Guido | C19: ITW | D19: 59H03148 | E19: RHV | F19: 463 | G19: 453 | H19: 450 | I19: 440 | J19: 432 | K19: 2238 | L19: 447.6 | M19: 223.8 | S19: 389 | W19: 344 | X19: 390 | Z19: 432 | AA19: 431 | AB19: 410 | AD19: 418 | AM19: 463 | AN19: 397 | AO19: 450 | AQ19: 453 | AT19: 440 | AX19: 392 | AY19: 368
A20: 16 | B20: BARBIEUX Robin | C20: CAJ | D20: 57H05709 | E20: RHV | F20: 452 | G20: 449 | H20: 436 | I20: 426 | J20: 423 | K20: 2186 | L20: 437.2 | M20: 218.6 | S20: 436 | X20: 423 | AA20: 449 | AO20: 426 | AX20: 452
A21: 17 | B21: NEYRET Robert | C21: LAJ | D21: 49H00841 | E21: RHV | F21: 441 | G21: 440 | H21: 437 | I21: 422 | J21: 420 | K21: 2160 | L21: 432 | M21: 216 | AI21: 420 | AM21: 441 | AR21: 440 | AX21: 437 | AY21: 422
A22: 18 | B22: PAT Henri | C22: ABA | D22: 52H04786 | E22: RHV | F22: 425 | G22: 425 | H22: 410 | I22: 396 | J22: 391 | K22: 2047 | L22: 409.4 | M22: 204.7 | T22: 425 | AB22: 425 | AM22: 410 | AP22: 391 | AY22: 396
A23: 19 | B23: NIZET Philippe | C23: ITW | D23: 61H07318 | E23: RHV | F23: 429 | G23: 429 | H23: 373 | I23: 361 | J23: 358 | K23: 1950 | L23: 390 | M23: 195 | AI23: 272 | AM23: 358 | AN23: 361 | AO23: 373 | AT23: 429 | AX23: 429
A24: 20 | B24: DE BON Pierre | C24: SAG | D24: 57H03719 | E24: RHV | F24: 417 | G24: 392 | H24: 391 | I24: 381 | J24: 361 | K24: 1942 | L24: 388.4 | M24: 194.2 | U24: 381 | AB24: 361 | AL24: 361 | AP24: 392 | AS24: 391 | AY24: 417
A25: 21 | B25: BACOT Paul (recurve) | C25: HUY | D25: 50H01459 | E25: RHV | F25: 444 | G25: 440 | H25: 427 | I25: 406 | K25: 1717 | L25: 343.4 | M25: 171.7 | AD25: 440 | AQ25: 406 | AX25: 444 | AY25: 427
A26: 22 | B26: HENIN Christian | C26: CEN | D26: 58H00999 | E26: RHV | F26: 363 | G26: 347 | H26: 325 | I26: 314 | J26: 293 | K26: 1642 | L26: 328.4 | M26: 164.2 | AF26: 314 | AK26: 247 | AL26: 325 | AS26: 293 | AW26: 363 | AY26: 347
A27: 23 | B27: NATALIS Joseph | C27: CAJ | D27: 42H01967 | E27: RHV | F27: 510 | G27: 499 | H27: 478 | K27: 1487 | L27: 297.4 | M27: 148.7 | W27: 499 | X27: 510 | AA27: 478
A28: 24 | B28: FOURNIER Gérard | C28: BTS | D28: 55H02754 | E28: RHV | F28: 449 | G28: 445 | H28: 413 | K28: 1307 | L28: 261.4 | M28: 130.7 | X28: 445 | AA28: 449 | AY28: 413
A29: 25 | B29: ROBERTO Salvator | C29: ACB | D29: 50H02729 | E29: RHV | F29: 412 | G29: 408 | H29: 360 | K29: 1180 | L29: 236 | M29: 118 | AF29: 360 | AH29: 408 | AS29: 412
A30: 26 | B30: LEMIN Gerard | C30: CTH | D30: 53H02240 | E30: RHV | F30: 528 | G30: 489 | K30: 1017 | L30: 203.4 | M30: 101.7 | S30: 489 | AG30: 528
A31: 27 | B31: LUCAS André (recurve) | C31: SSC | D31: 55H01262 | E31: RHV | F31: 504 | G31: 496 | K31: 1000 | L31: 200 | M31: 100 | AF31: 496 | AY31: 504
A32: 28 | B32: DELVAL Alain | C32: FAO | D32: 62H00471 | E32: RHV | F32: 449 | G32: 444 | K32: 893 | L32: 178.6 | M32: 89.3 | AJ32: 444 | AS32: 449
A33: 29 | B33: CAMBIER Thierry | C33: MSP | D33: 56H03373 | E33: RHV | F33: 425 | G33: 423 | K33: 848 | L33: 169.6 | M33: 84.8 | AR33: 423 | AT33: 425
A34: 30 | B34: LIBERT Marc | C34: ACG | E34: RHV | F34: 428 | G34: 367 | K34: 795 | L34: 159 | M34: 79.5 | AG34: 428 | AQ34: 367
A35: 31 | B35: CIATTO Giovani | C35: ITW | D35: 59H04882 | E35: RHV | F35: 355 | G35: 350 | K35: 705 | L35: 141 | M35: 70.5 | S35: 350 | X35: 355
A36: 32 | B36: FASSOTTE Charly | C36: CTH | D36: 46H01723 | E36: RHV | F36: 342 | G36: 292 | K36: 634 | L36: 126.8 | M36: 63.4 | X36: 342 | AO36: 292
A37: 33 | B37: ESTIEVENART Philippe | C37: LAW | D37: 59H02563 | E37: RHV | F37: 516 | K37: =SUM(F37:J37) -> 516 | L37: =K37/5 -> 103.2 | M37: =L37/2 -> 51.6 | AI37: 516
A38: 34 | B38: VANHAEREN Patrick | C38: LIE | D38: 61H05047 | E38: RHV | F38: 487 | K38: 487 | L38: 97.4 | M38: 48.7 | S38: 487
A39: 35 | B39: BUCHET Eric | C39: SSK | D39: 62H00326 | E39: RHV | F39: 482 | K39: 482 | L39: 96.4 | M39: 48.2 | AB39: 482
A40: 36 | B40: DAVID Marc | C40: GSR | E40: RHV | F40: 478 | K40: 478 | L40: 95.6 | M40: 47.8 | AV40: 478
A41: 37 | B41: ANTOINE Pol | C41: GAU | E41: RHV | F41: 473 | K41: 473 | L41: 94.6 | M41: 47.3 | T41: 473
A42: 38 | B42: BERNARD Claude | C42: FGV | D42: 51H05874 | E42: RHV | F42: 471 | K42: 471 | L42: 94.2 | M42: 47.1 | AT42: 471
A43: 39 | B43: LENDERS Philippe | C43: FAO | D43: 53H02240 | E43: RHV | F43: 462 | K43: 462 | L43: 92.4 | M43: 46.2 | AN43: 462
A44: 40 | B44: BOUGELET Yvan | C44: FBG | E44: RHV | F44: 460 | K44: 460 | L44: 92 | M44: 46 | AD44: 460
A45: 41 | B45: ROSKAM Jean-Michel | C45: FDM | D45: 57H02325 | E45: RHV | F45: 459 | K45: 459 | L45: 91.8 | M45: 45.9 | AR45: 459
A46: 42 | B46: RENIERS Claude | C46: MDY | D46: 57H04019 | E46: RHV | F46: 454 | K46: 454 | L46: 90.8 | M46: 45.4 | AM46: 454
A47: 43 | B47: BALEINE Yves | C47: CAT | D47: 57H04916 | E47: RHV | F47: 445 | K47: 445 | L47: 89 | M47: 44.5 | AE47: 445
A48: 44 | B48: GOFFARD Philippe | C48: CTH | E48: RHV | F48: 433 | K48: 433 | L48: 86.6 | M48: 43.3 | AG48: 433
A49: 45 | B49: REIBER Guy | C49: GSR | D49: 46H00175 | E49: RHV | F49: 397 | K49: 397 | L49: 79.4 | M49: 39.7 | AV49: 397
A50: 46 | B50: MARIAVELLE Eric | C50: CAL | D50: 60H05586 | E50: RHV | F50: 350 | K50: 350 | L50: 70 | M50: 35 | X50: 350
A51: 47 | B51: LANDOLINO FRANCIS | C51: ACG | D51: 56H04781 | E51: RHV | F51: 306 | K51: 306 | L51: 61.2 | M51: 30.6 | AQ51: 306
A52: 48 | B52: MEISEN Guter | C52: HCB | D52: 56H04345 | E52: RHV | F52: 281 | K52: 281 | L52: 56.2 | M52: 28.1 | AO52: 281
A53: 49 | B53: IANDOLINO Francis | C53: ACG | D53: 56H04781 | E53: RHV | F53: 262 | K53: 262 | L53: 52.4 | M53: 26.2 | AX53: 262
A54: 50 | B54: BROUCKAERT Jeab | C54: CAN | D54: 50H02730 | E54: RHV | F54: 208 | K54: 208 | L54: 41.6 | M54: 20.8 | AY54: 208
A55: 51 | B55: DELNATTE Georges | C55: LIE | D55: 58H02914 | E55: RHV | K55: 0 | L55: 0 | M55: 0
A56: 52 | B56: PENA Victor | C56: CTH | D56: 54H01714 | E56: RHV | K56: 0 | L56: 0 | M56: 0
A57: 53 | B57: VANDEN BOGGAARR Marc | C57: ABA | D57: 57H00558 | E57: RHV | K57: 0 | L57: 0 | M57: 0
A58: 54 | B58: HERMAL Raymond | C58: ACB | D58: 55H01249 | E58: RHV | K58: 0 | L58: 0 | M58: 0
A59: 55 | B59: DURIEUX Marc | C59: SSC | D59: 57H01263 | E59: RHV | K59: 0 | L59: 0 | M59: 0
A60: 56 | B60: DEBATY Dominique | C60: GAU | E60: RHV | K60: 0 | L60: 0 | M60: 0
A61: 57 | B61: D'HEUR Michel | C61: FAO | D61: 46H00532 | E61: RHV | K61: 0 | L61: 0 | M61: 0
A62: 58 | B62: METDEPENNINGEN Luc | C62: MDY | D62: 59H02050 | E62: RHV | K62: 0 | L62: 0 | M62: 0
A63: 59 | B63: GRAVAR Pierre | C63: ECA | D63: 52H01303 | E63: RHV | K63: 0 | L63: 0 | M63: 0
A64: 60 | B64: PETRUS Gus | C64: GAU | D64: 54H00363 | E64: RHV | K64: 0 | L64: 0 | M64: 0
A65: 61 | B65: DUPOND Yves | C65: BTS | D65: 59H03867 | E65: RHV | K65: 0 | L65: 0 | M65: 0
A66: 62 | B66: ANQUETIL Marc | C66: CEN | D66: 56H01013 | E66: RHV | K66: 0 | L66: 0 | M66: 0
A67: 63 | B67: PEETERS Emmanuel | C67: SSK | D67: 59H00357 | E67: RHV | K67: 0 | L67: 0 | M67: 0
A68: 64 | B68: SANTOS MONDO Julio | D68: 59H04745 | E68: RHV | K68: 0 | L68: 0 | M68: 0
A69: 65 | B69: RENNEAU Jean-Noel | C69: ADS | D69: 59H02001 | E69: RHV | K69: =SUM(F69:J69) -> 0 | L69: =K69/5 -> 0 | M69: =L69/2 -> 0
A70: 66 | B70: WIGGELEER Patrick | C70: GSR | D70: 56H00096 | E70: RHV | K70: 0 | L70: 0 | M70: 0
A71: =IF(B71<>"",A70+1,"") -> 67 | B71: DESSART Hubert | C71: ACM | D71: 48H01811 | E71: RHV | K71: 0 | L71: 0 | M71: 0
A72: 68 | B72: RANDLE Daniel | C72: CMA | D72: 47H00700 | E72: RHV | K72: 0 | L72: 0 | M72: 0
A73: 69 | B73: SIMON Claude | C73: MDY | D73: 51H03522 | E73: RHV | K73: 0 | L73: 0 | M73: 0
A74: 70 | B74: NOSSENT Christian | C74: SSK | D74: 53H00269 | E74: RHV | K74: 0 | L74: 0 | M74: 0
A75: 71 | B75: GESSA Stefano | C75: CAM | D75: 45H01355 | E75: RHV | K75: 0 | L75: 0 | M75: 0
A76: 72 | B76: STEINIER Robert | C76: ABA | D76: 46H00639 | E76: RHV | K76: 0 | L76: 0 | M76: 0
A77: 73 | B77: HODIAMONT Thierry | C77: FOA | D77: 55H0049 | E77: RHV | K77: 0 | L77: 0 | M77: 0
A78: 74 | B78: RAHIR Jacques | C78: CTH | E78: RHV | K78: 0 | L78: 0 | M78: 0
A79: 75 | B79: CHABEAU Andre | C79: MDY | D79: 57H03240 | E79: RHV | K79: 0 | L79: 0 | M79: 0
A80: 76 | B80: BERUS Alain | C80: BTS | D80: 60H02770 | E80: RHV | K80: 0 | L80: 0 | M80: 0
A81: 77 | B81: VANDERVELDEN Daniel | C81: HUY | D81: 51H02731 | E81: RHV | K81: 0 | L81: 0 | M81: 0
A82: 78 | B82: HANZE Bernard | C82: HUY | E82: RHV | K82: 0 | L82: 0 | M82: 0
A83: 79 | B83: RENARD René | C83: SSK | E83: RHV | K83: 0 | L83: 0 | M83: 0
A84: 80 | B84: VAN ASSCHE Pierre | C84: GPE | D84: 48H00236 | E84: RHV | K84: 0 | L84: 0 | M84: 0
A85: 81 | B85: VANDENHOOFDEN Bernard | C85: FAO | D85: 51H02731 | E85: RHV | K85: 0 | L85: 0 | M85: 0
A86: 82 | B86: DE GREEF Jean | C86: SSK | D86: 46H00331 | E86: RHV | K86: 0 | L86: 0 | M86: 0
A87: 83 | B87: BOEVER Pierre | C87: TAB | D87: 56H02663 | E87: RHV | K87: 0 | L87: 0 | M87: 0
A88: 84 | B88: VANMEENEN Philippe | C88: FBG | D88: 57H03948 | E88: RHV | K88: 0 | L88: 0 | M88: 0
A89: 85 | B89: PIETTE Alain | C89: FBG | D89: 54H03645 | E89: RHV | K89: 0 | L89: 0 | M89: 0
A90: 86 | B90: RENNEAU Jean-Noel | C90: ADS | D90: 59H02001 | E90: RHV | K90: 0 | L90: 0 | M90: 0
A91: 87 | B91: RAHIR Jacques | C91: CTH | D91: 44H03480 | E91: RHV | K91: 0 | L91: 0 | M91: 0
A92: 88 | B92: THEYS Marc | C92: LFU | D92: 56H04345 | E92: RHV | K92: 0 | L92: 0 | M92: 0
A93: 89 | B93: YY | C93: LFU | D93: 56H04345 | E93: RHV | K93: 0 | L93: 0 | M93: 0
C97: La macro est déclenchée par toute entrée d'une valeur dans le tableau N5:BW20 (modifier le plage si nécessaire dans la macro)

Sheet 18M2023
B3: Nom | C3: Club | D3: Matricule | E3: Cat. | F3: Tir 1 | G3: Tir 2 | H3: Tir 3 | I3: Tir 4 | J3: Tir 5 | K3: Total | L3: M/600 | M3: M/300 | S3: 2023 | T3: ITW | U3: ANT | V3: ABA | W3: LIE | X3: HUY | Y3: HAC | Z3: LFU | AA3: LFE | AB3: MDY | AC3: FAO | AD3: CMA | AE3: LAC | AF3: ACG | AG3: FGV | AH3: ECA | AI3: GSR | AJ3: RCM | AK3: LIE | AL3: BTS | AM3: FOA | AN3: 2022 | AO3: AGC | AP3: PAC | AQ3: GAU | AR3: ANT | AS3: ITW | AT3: ABA | AU3: LIE | AV3: ECA | AW3: HUY
A5: 1 | B5: ANQUETIL Marc | C5: CEN | D5: 56H01013 | E5: RHV | K5: =SUM(F5:J5) -> 0 | L5: =K5/5 -> 0 | M5: =L5/2 -> 0
A6: =IF(B6<>"",A5+1,"") -> 2 | B6: ANTOINE Pol | C6: GAU | E6: RHV | K6: 0 | L6: 0 | M6: 0
A7: =IF(B7<>"",A6+1,"") -> 3 | B7: BACOT Paul (recurve) | C7: HUY | D7: 50H01459 | E7: RHV | K7: 0 | L7: 0 | M7: 0
A8: 4 | B8: BALEINE Yves | C8: CAT | D8: 57H04916 | E8: RHV | K8: 0 | L8: 0 | M8: 0
A9: 5 | B9: BARBIEUX Robin | C9: CAJ | D9: 57H05709 | E9: RHV | K9: 0 | L9: 0 | M9: 0
A10: 6 | B10: BERUS Alain | C10: BTS | D10: 60H02770 | E10: RHV | K10: 0 | L10: 0 | M10: 0
A11: 7 | B11: BOEVER Pierre | C11: TAB | D11: 56H02663 | E11: RHV | K11: 0 | L11: 0 | M11: 0
A12: 8 | B12: BOUGELET Yvan | C12: FBG | E12: RHV | K12: 0 | L12: 0 | M12: 0
A13: 9 | B13: BUCHET Eric | C13: SSK | D13: 62H00326 | E13: RHV | K13: 0 | L13: 0 | M13: 0
A14: 10 | B14: CAMBIER Thierry | C14: MSP | D14: 56H03373 | E14: RHV | K14: 0 | L14: 0 | M14: 0
A15: 11 | B15: CHABEAU Andre | C15: MDY | D15: 57H03240 | E15: RHV | K15: 0 | L15: 0 | M15: 0
A16: 12 | B16: CIATTO Giovani | C16: ITW | D16: 59H04882 | E16: RHV | K16: 0 | L16: 0 | M16: 0
A17: 13 | B17: COCQUYT Francis | C17: CTH | D17: 60H01688 | E17: RHV | K17: 0 | L17: 0 | M17: 0
A18: 14 | B18: DE BON Pierre | C18: SAG | D18: 57H03719 | E18: RHV | K18: 0 | L18: 0 | M18: 0
A19: 15 | B19: DE GREEF Jean | C19: SSK | D19: 46H00331 | E19: RHV | K19: 0 | L19: 0 | M19: 0
A20: 16 | B20: DEBATY Dominique | C20: GAU | E20: RHV | K20: 0 | L20: 0 | M20: 0
A21: 17 | B21: DEGHAYE Pierre | C21: ACM | D21: 55H01808 | E21: RHV | K21: 0 | L21: 0 | M21: 0
A22: 18 | B22: DELCOMINETTE guy | C22: LIE | D22: 48H01514 | E22: RHV | K22: 0 | L22: 0 | M22: 0
A23: 19 | B23: DELNATTE Georges | C23: LIE | D23: 58H02914 | E23: RHV | K23: 0 | L23: 0 | M23: 0
A24: 20 | B24: DELVAL Alain | C24: FAO | D24: 62H00471 | E24: RHV | K24: 0 | L24: 0 | M24: 0
A25: 21 | B25: DEPROOST Michel | C25: SSK | D25: 61H00337 | E25: RHV | K25: 0 | L25: 0 | M25: 0
A26: 22 | B26: DESSART Hubert | C26: ACM | D26: 48H01811 | E26: RHV | K26: 0 | L26: 0 | M26: 0
A27: 23 | B27: D'HEUR Michel | C27: FAO | D27: 46H00532 | E27: RHV | K27: 0 | L27: 0 | M27: 0
A28: 24 | B28: DUPOND Yves | C28: BTS | D28: 59H03867 | E28: RHV | K28: 0 | L28: 0 | M28: 0
A29: 25 | B29: DURIEUX Marc | C29: SSC | D29: 57H01263 | E29: RHV | K29: 0 | L29: 0 | M29: 0
A30: 26 | B30: ESTIEVENART Philippe | C30: LAW | D30: 59H02563 | E30: RHV | K30: 0 | L30: 0 | M30: 0
A31: 27 | B31: FASSOTTE Charly | C31: CTH | D31: 46H01723 | E31: RHV | K31: 0 | L31: 0 | M31: 0
A32: 28 | B32: FIORA Joel | C32: SSK | D32: 57H00342 | E32: RHV | K32: 0 | L32: 0 | M32: 0
A33: 29 | B33: FOURNIER Gérard | C33: BTS | D33: 55H02754 | E33: RHV | K33: 0 | L33: 0 | M33: 0
A34: 30 | B34: FRYNS Guido | C34: ITW | D34: 59H03148 | E34: RHV | K34: 0 | L34: 0 | M34: 0
A35: 31 | B35: GESSA Stefano | C35: CAM | D35: 45H01355 | E35: RHV | K35: 0 | L35: 0 | M35: 0
A36: 32 | B36: GOFFARD Philippe | C36: CTH | E36: RHV | K36: 0 | L36: 0 | M36: 0
A37: 33 | B37: GRAVAR Pierre | C37: ECA | D37: 52H01303 | E37: RHV | K37: =SUM(F37:J37) -> 0 | L37: =K37/5 -> 0 | M37: =L37/2 -> 0
A38: 34 | B38: HANZE Bernard | C38: HUY | E38: RHV | K38: 0 | L38: 0 | M38: 0
A39: 35 | B39: HANZE Bernard | C39: HUY | D39: 58H01505 | E39: RHV | K39: 0 | L39: 0 | M39: 0
A40: 36 | B40: HENIN Christian | C40: CEN | D40: 58H00999 | E40: RHV | K40: 0 | L40: 0 | M40: 0
A41: 37 | B41: HERMAL Raymond | C41: ACB | D41: 55H01249 | E41: RHV | K41: 0 | L41: 0 | M41: 0
A42: 38 | B42: HEYVAERT Etienne | C42: GSR | D42: 48H07665 | E42: RHV | K42: 0 | L42: 0 | M42: 0
A43: 39 | B43: HODIAMONT Thierry | C43: FOA | D43: 55H0049 | E43: RHV | K43: 0 | L43: 0 | M43: 0
A44: 40 | B44: LANDOLINO FRANCIS | C44: ACG | D44: 56H04781 | E44: RHV | K44: 0 | L44: 0 | M44: 0
A45: 41 | B45: LEJEUNE Paul | C45: LFE | D45: 56H00919 | E45: RHV | K45: 0 | L45: 0 | M45: 0
A46: 42 | B46: LEJOLY Daniel | C46: LIE | D46: 61H01569 | E46: RHV | K46: 0 | L46: 0 | M46: 0
A47: 43 | B47: LEMIN Gerard | C47: CTH | D47: 53H02240 | E47: RHV | K47: 0 | L47: 0 | M47: 0
A48: 44 | B48: LENDERS Philippe | C48: FAO | D48: 53H02240 | E48: RHV | K48: 0 | L48: 0 | M48: 0
A49: 45 | B49: LIBERT Marc | C49: ACG | E49: RHV | K49: 0 | L49: 0 | M49: 0
A50: 46 | B50: LUCAS André (recurve) | C50: SSC | D50: 55H01262 | E50: RHV | K50: 0 | L50: 0 | M50: 0
A51: 47 | B51: MAQUET Gilbert (recurve) | C51: ACF | D51: 53H02240 | E51: RHV | K51: 0 | L51: 0 | M51: 0
A52: 48 | B52: MARIAVELLE Eric | C52: CAL | D52: 60H05586 | E52: RHV | K52: 0 | L52: 0 | M52: 0
A53: 49 | B53: MEISEN Guter | C53: HCB | D53: 56H04345 | E53: RHV | K53: 0 | L53: 0 | M53: 0
A54: 50 | B54: METDEPENNINGEN Luc | C54: MDY | D54: 59H02050 | E54: RHV | K54: 0 | L54: 0 | M54: 0
A55: 51 | B55: MEYER Marc | C55: GPE | D55: 59H04233 | E55: RHV | K55: 0 | L55: 0 | M55: 0
A56: 52 | B56: NATALIS Joseph | C56: CAJ | D56: 42H01967 | E56: RHV | K56: 0 | L56: 0 | M56: 0
A57: 53 | B57: NEYRET Robert | C57: LAJ | D57: 49H00841 | E57: RHV | K57: 0 | L57: 0 | M57: 0
A58: 54 | B58: NIZET Philippe | C58: ITW | D58: 61H07318 | E58: RHV | K58: 0 | L58: 0 | M58: 0
A59: 55 | B59: NOSSENT Christian | C59: SSK | D59: 53H00269 | E59: RHV | K59: 0 | L59: 0 | M59: 0
A60: 56 | B60: OLBRECHTS Pierre | C60: LAJ | D60: 56H00822 | E60: RHV | K60: 0 | L60: 0 | M60: 0
A61: 57 | B61: PAT Henri | C61: ABA | D61: 52H04786 | E61: RHV | K61: 0 | L61: 0 | M61: 0
A62: 58 | B62: PEETERS Emmanuel | C62: SSK | D62: 59H00357 | E62: RHV | K62: 0 | L62: 0 | M62: 0
A63: 59 | B63: PENA Victor | C63: CTH | D63: 54H01714 | E63: RHV | K63: 0 | L63: 0 | M63: 0
A64: 60 | B64: PETRONS Joel | C64: LFU | D64: 49H00899 | E64: RHV | K64: 0 | L64: 0 | M64: 0
A65: 61 | B65: PETRUS Gus | C65: GAU | D65: 54H00363 | E65: RHV | K65: 0 | L65: 0 | M65: 0
A66: 62 | B66: PIERRE Auguste | C66: CAJ | D66: 56H04788 | E66: RHV | K66: 0 | L66: 0 | M66: 0
A67: 63 | B67: PIETTE Alain | C67: FBG | D67: 54H03645 | E67: RHV | K67: 0 | L67: 0 | M67: 0
A68: 64 | B68: RAHIR Jacques | C68: CTH | D68: 44H03480 | E68: RHV | K68: 0 | L68: 0 | M68: 0
A69: 65 | B69: RAHIR Jacques | C69: CTH | E69: RHV | K69: =SUM(F69:J69) -> 0 | L69: =K69/5 -> 0 | M69: =L69/2 -> 0
A70: 66 | B70: RANDLE Daniel | C70: CMA | D70: 47H00700 | E70: RHV | K70: 0 | L70: 0 | M70: 0
A71: =IF(B71<>"",A70+1,"") -> 67 | B71: REIBER Guy | C71: GSR | D71: 46H00175 | E71: RHV | K71: 0 | L71: 0 | M71: 0
A72: 68 | B72: RENARD René | C72: SSK | E72: RHV | K72: 0 | L72: 0 | M72: 0
A73: 69 | B73: RENIERS Claude | C73: MDY | D73: 57H04019 | E73: RHV | K73: 0 | L73: 0 | M73: 0
A74: 70 | B74: RENNEAU Jean-Noel | C74: ADS | D74: 59H02001 | E74: RHV | K74: 0 | L74: 0 | M74: 0
A75: 71 | B75: RENNEAU Jean-Noel | C75: ADS | D75: 59H02001 | E75: RHV | K75: 0 | L75: 0 | M75: 0
A76: 72 | B76: ROBERTO Salvator | C76: ACB | D76: 50H02729 | E76: RHV | K76: 0 | L76: 0 | M76: 0
A77: 73 | B77: ROSKAM Jean-Michel | C77: FDM | D77: 57H02325 | E77: RHV | K77: 0 | L77: 0 | M77: 0
A78: 74 | B78: SANTOS MONDO Julio | D78: 59H04745 | E78: RHV | K78: 0 | L78: 0 | M78: 0
A79: 75 | B79: SIMON Claude | C79: MDY | D79: 51H03522 | E79: RHV | K79: 0 | L79: 0 | M79: 0
A80: 76 | B80: SKORUPKA Guy | C80: CEN | D80: 57H01040 | E80: RHV | K80: 0 | L80: 0 | M80: 0
A81: 77 | B81: STEINIER Robert | C81: ABA | D81: 46H00639 | E81: RHV | K81: 0 | L81: 0 | M81: 0
A82: 78 | B82: THEYS Marc | C82: LFU | D82: 56H04345 | E82: RHV | K82: 0 | L82: 0 | M82: 0
A83: 79 | B83: VAN ASSCHE Pierre | C83: GPE | D83: 48H00236 | E83: RHV | K83: 0 | L83: 0 | M83: 0
A84: 80 | B84: VANDEN BOGGAARR Marc | C84: ABA | D84: 57H00558 | E84: RHV | K84: 0 | L84: 0 | M84: 0
A85: 81 | B85: VANDENBERGHE Daniel | C85: CAB | D85: 51H02731 | E85: RHV | K85: 0 | L85: 0 | M85: 0
A86: 82 | B86: VANDENHOOFDEN Bernard | C86: FAO | D86: 51H02731 | E86: RHV | K86: 0 | L86: 0 | M86: 0
A87: 83 | B87: VANDERVELDEN Daniel | C87: HUY | D87: 51H02731 | E87: RHV | K87: 0 | L87: 0 | M87: 0
A88: 84 | B88: VANHAEREN Patrick | C88: LIE | D88: 61H05047 | E88: RHV | K88: 0 | L88: 0 | M88: 0
A89: 85 | B89: VANMEENEN Philippe | C89: FBG | D89: 57H03948 | E89: RHV | K89: 0 | L89: 0 | M89: 0
A90: 86 | B90: WIGGELEER Patrick | C90: GSR | D90: 56H00096 | E90: RHV | K90: 0 | L90: 0 | M90: 0
A91: 87 | B91: YY | C91: ACF | D91: 53H02240 | E91: RHV | K91: 0 | L91: 0 | M91: 0
C108: La macro est déclenchée par toute entrée d'une valeur dans le tableau N5:BW20 (modifier le plage si nécessaire dans la macro)

Sheet 18M2024
B3: Nom | C3: Club | D3: Matricule | E3: Cat. | F3: Tir 1 | G3: Tir 2 | H3: Tir 3 | I3: Tir 4 | J3: Tir 5 | K3: Total | L3: M/600 | M3: M/300 | S3: 2023 | T3: ITW | U3: ANT | V3: ABA | W3: LIE | X3: HUY | Y3: HAC | Z3: LFU | AA3: LFE | AB3: MDY | AC3: FAO | AD3: CMA | AE3: LAC | AF3: ACG | AG3: FGV | AH3: ECA | AI3: GSR | AJ3: RCM | AK3: LIE | AL3: BTS | AM3: FOA | AN3: 2022 | AO3: AGC | AP3: PAC | AQ3: GAU | AR3: ANT | AS3: ITW | AT3: ABA | AU3: LIE | AV3: ECA | AW3: HUY
A5: 1 | B5: YY | C5: ACF | D5: 53H02240 | E5: RHV | K5: =SUM(F5:J5) -> 0 | L5: =K5/5 -> 0 | M5: =L5/2 -> 0
A6: =IF(B6<>"",A5+1,"") -> 2 | B6: HEYVAERT Etienne | C6: GSR | D6: 48H07665 | E6: RHV | K6: 0 | L6: 0 | M6: 0
A7: =IF(B7<>"",A6+1,"") -> 3 | B7: NATALIS Joseph | C7: CAJ | D7: 42H01967 | E7: RHV | K7: 0 | L7: 0 | M7: 0
A8: 4 | B8: PAT Henri | C8: ABA | D8: 52H04786 | E8: RHV | K8: 0 | L8: 0 | M8: 0
A9: 5 | B9: LEJOLY Daniel | C9: LIE | D9: 61H01569 | E9: RHV | K9: 0 | L9: 0 | M9: 0
A10: 6 | B10: OLBRECHTS Pierre | C10: LAJ | D10: 56H00822 | E10: RHV | K10: 0 | L10: 0 | M10: 0
A11: 7 | B11: MEYER Marc | C11: GPE | D11: 59H04233 | E11: RHV | K11: 0 | L11: 0 | M11: 0
A12: 8 | B12: SKORUPKA Guy | C12: CEN | D12: 57H01040 | E12: RHV | K12: 0 | L12: 0 | M12: 0
A13: 9 | B13: PIERRE Auguste | C13: CAJ | D13: 56H04788 | E13: RHV | K13: 0 | L13: 0 | M13: 0
A14: 10 | B14: COCQUYT Francis | C14: CTH | D14: 60H01688 | E14: RHV | K14: 0 | L14: 0 | M14: 0
A15: 11 | B15: DEGHAYE Pierre | C15: ACM | D15: 55H01808 | E15: RHV | K15: 0 | L15: 0 | M15: 0
A16: 12 | B16: FIORA Joel | C16: SSK | D16: 57H00342 | E16: RHV | K16: 0 | L16: 0 | M16: 0
A17: 13 | B17: DELCOMINETTE guy | C17: LIE | D17: 48H01514 | E17: RHV | K17: 0 | L17: 0 | M17: 0
A18: 14 | B18: VANDENBERGHE Daniel | C18: CAB | D18: 51H02731 | E18: RHV | K18: 0 | L18: 0 | M18: 0
A19: 15 | B19: DEPROOST Michel | C19: SSK | D19: 61H00337 | E19: RHV | K19: 0 | L19: 0 | M19: 0
A20: 16 | B20: FRYNS Guido | C20: ITW | D20: 59H03148 | E20: RHV | K20: 0 | L20: 0 | M20: 0
A21: 17 | B21: PETRONS Joel | C21: LFU | D21: 49H00899 | E21: RHV | K21: 0 | L21: 0 | M21: 0
A22: 18 | B22: LEJEUNE Paul | C22: LFE | D22: 56H00919 | E22: RHV | K22: 0 | L22: 0 | M22: 0
A23: 19 | B23: DE BON Pierre | C23: SAG | D23: 57H03719 | E23: RHV | K23: 0 | L23: 0 | M23: 0
A24: 20 | B24: BARBIEUX Robin | C24: CAJ | D24: 57H05709 | E24: RHV | K24: 0 | L24: 0 | M24: 0
A25: 21 | B25: NIZET Philippe | C25: ITW | D25: 61H07318 | E25: RHV | K25: 0 | L25: 0 | M25: 0
A26: 22 | B26: NEYRET Robert | C26: LAJ | D26: 49H00841 | E26: RHV | K26: 0 | L26: 0 | M26: 0
A27: 23 | B27: ROBERTO Salvator | C27: ACB | D27: 50H02729 | E27: RHV | K27: 0 | L27: 0 | M27: 0
A28: 24 | B28: HENIN Christian | C28: CEN | D28: 58H00999 | E28: RHV | K28: 0 | L28: 0 | M28: 0
A29: 25 | B29: LEMIN Gerard | C29: CTH | D29: 53H02240 | E29: RHV | K29: 0 | L29: 0 | M29: 0
A30: 26 | B30: FOURNIER Gérard | C30: BTS | D30: 55H02754 | E30: RHV | K30: 0 | L30: 0 | M30: 0
A31: 27 | B31: DELVAL Alain | C31: FAO | D31: 62H00471 | E31: RHV | K31: 0 | L31: 0 | M31: 0
A32: 28 | B32: BACOT Paul (recurve) | C32: HUY | D32: 50H01459 | E32: RHV | K32: 0 | L32: 0 | M32: 0
A33: 29 | B33: LIBERT Marc | C33: ACG | E33: RHV | K33: 0 | L33: 0 | M33: 0
A34: 30 | B34: CIATTO Giovani | C34: ITW | D34: 59H04882 | E34: RHV | K34: 0 | L34: 0 | M34: 0
A35: 31 | B35: FASSOTTE Charly | C35: CTH | D35: 46H01723 | E35: RHV | K35: 0 | L35: 0 | M35: 0
A36: 32 | B36: ESTIEVENART Philippe | C36: LAW | D36: 59H02563 | E36: RHV | K36: 0 | L36: 0 | M36: 0
A37: 33 | B37: LUCAS André (recurve) | C37: SSC | D37: 55H01262 | E37: RHV | K37: =SUM(F37:J37) -> 0 | L37: =K37/5 -> 0 | M37: =L37/2 -> 0
A38: 34 | B38: VANHAEREN Patrick | C38: LIE | D38: 61H05047 | E38: RHV | K38: 0 | L38: 0 | M38: 0
A39: 35 | B39: BUCHET Eric | C39: SSK | D39: 62H00326 | E39: RHV | K39: 0 | L39: 0 | M39: 0
A40: 36 | B40: ANTOINE Pol | C40: GAU | E40: RHV | K40: 0 | L40: 0 | M40: 0
A41: 37 | B41: LENDERS Philippe | C41: FAO | D41: 53H02240 | E41: RHV | K41: 0 | L41: 0 | M41: 0
A42: 38 | B42: BOUGELET Yvan | C42: FBG | E42: RHV | K42: 0 | L42: 0 | M42: 0
A43: 39 | B43: ROSKAM Jean-Michel | C43: FDM | D43: 57H02325 | E43: RHV | K43: 0 | L43: 0 | M43: 0
A44: 40 | B44: RENIERS Claude | C44: MDY | D44: 57H04019 | E44: RHV | K44: 0 | L44: 0 | M44: 0
A45: 41 | B45: BALEINE Yves | C45: CAT | D45: 57H04916 | E45: RHV | K45: 0 | L45: 0 | M45: 0
A46: 42 | B46: GOFFARD Philippe | C46: CTH | E46: RHV | K46: 0 | L46: 0 | M46: 0
A47: 43 | B47: CAMBIER Thierry | C47: MSP | D47: 56H03373 | E47: RHV | K47: 0 | L47: 0 | M47: 0
A48: 44 | B48: MARIAVELLE Eric | C48: CAL | D48: 60H05586 | E48: RHV | K48: 0 | L48: 0 | M48: 0
A49: 45 | B49: LANDOLINO FRANCIS | C49: ACG | D49: 56H04781 | E49: RHV | K49: 0 | L49: 0 | M49: 0
A50: 46 | B50: MEISEN Guter | C50: HCB | D50: 56H04345 | E50: RHV | K50: 0 | L50: 0 | M50: 0
A51: 47 | B51: DURIEUX Marc | C51: SSC | D51: 57H01263 | E51: RHV | K51: 0 | L51: 0 | M51: 0
A52: 48 | B52: D'HEUR Michel | C52: FAO | D52: 46H00532 | E52: RHV | K52: 0 | L52: 0 | M52: 0
A53: 49 | B53: METDEPENNINGEN Luc | C53: MDY | D53: 59H02050 | E53: RHV | K53: 0 | L53: 0 | M53: 0
A54: 50 | B54: GRAVAR Pierre | C54: ECA | D54: 52H01303 | E54: RHV | K54: 0 | L54: 0 | M54: 0
A55: 51 | B55: PETRUS Gus | C55: GAU | D55: 54H00363 | E55: RHV | K55: 0 | L55: 0 | M55: 0
A56: 52 | B56: DUPOND Yves | C56: BTS | D56: 59H03867 | E56: RHV | K56: 0 | L56: 0 | M56: 0
A57: 53 | B57: ANQUETIL Marc | C57: CEN | D57: 56H01013 | E57: RHV | K57: 0 | L57: 0 | M57: 0
A58: 54 | B58: PEETERS Emmanuel | C58: SSK | D58: 59H00357 | E58: RHV | K58: 0 | L58: 0 | M58: 0
A59: 55 | B59: SANTOS MONDO Julio | D59: 59H04745 | E59: RHV | K59: 0 | L59: 0 | M59: 0
A60: 56 | B60: RENNEAU Jean-Noel | C60: ADS | D60: 59H02001 | E60: RHV | K60: 0 | L60: 0 | M60: 0
A61: 57 | B61: WIGGELEER Patrick | C61: GSR | D61: 56H00096 | E61: RHV | K61: 0 | L61: 0 | M61: 0
A62: 58 | B62: DELNATTE Georges | C62: LIE | D62: 58H02914 | E62: RHV | K62: 0 | L62: 0 | M62: 0
A63: 59 | B63: HERMAL Raymond | C63: ACB | D63: 55H01249 | E63: RHV | K63: 0 | L63: 0 | M63: 0
A64: 60 | B64: DESSART Hubert | C64: ACM | D64: 48H01811 | E64: RHV | K64: 0 | L64: 0 | M64: 0
A65: 61 | B65: DEBATY Dominique | C65: GAU | E65: RHV | K65: 0 | L65: 0 | M65: 0
A66: 62 | B66: RANDLE Daniel | C66: CMA | D66: 47H00700 | E66: RHV | K66: 0 | L66: 0 | M66: 0
A67: 63 | B67: SIMON Claude | C67: MDY | D67: 51H03522 | E67: RHV | K67: 0 | L67: 0 | M67: 0
A68: 64 | B68: PENA Victor | C68: CTH | D68: 54H01714 | E68: RHV | K68: 0 | L68: 0 | M68: 0
A69: 65 | B69: VANDEN BOGGAARR Marc | C69: ABA | D69: 57H00558 | E69: RHV | K69: =SUM(F69:J69) -> 0 | L69: =K69/5 -> 0 | M69: =L69/2 -> 0
A70: 66 | B70: NOSSENT Christian | C70: SSK | D70: 53H00269 | E70: RHV | K70: 0 | L70: 0 | M70: 0
A71: =IF(B71<>"",A70+1,"") -> 67 | B71: GESSA Stefano | C71: CAM | D71: 45H01355 | E71: RHV | K71: 0 | L71: 0 | M71: 0
A72: 68 | B72: REIBER Guy | C72: GSR | D72: 46H00175 | E72: RHV | K72: 0 | L72: 0 | M72: 0
A73: 69 | B73: STEINIER Robert | C73: ABA | D73: 46H00639 | E73: RHV | K73: 0 | L73: 0 | M73: 0
A74: 70 | B74: HODIAMONT Thierry | C74: FOA | D74: 55H0049 | E74: RHV | K74: 0 | L74: 0 | M74: 0
A75: 71 | B75: RAHIR Jacques | C75: CTH | E75: RHV | K75: 0 | L75: 0 | M75: 0
A76: 72 | B76: CHABEAU Andre | C76: MDY | D76: 57H03240 | E76: RHV | K76: 0 | L76: 0 | M76: 0
A77: 73 | B77: BERUS Alain | C77: BTS | D77: 60H02770 | E77: RHV | K77: 0 | L77: 0 | M77: 0
A78: 74 | B78: VANDERVELDEN Daniel | C78: HUY | D78: 51H02731 | E78: RHV | K78: 0 | L78: 0 | M78: 0
A79: 75 | B79: HANZE Bernard | C79: HUY | E79: RHV | K79: 0 | L79: 0 | M79: 0
A80: 76 | B80: RENARD René | C80: SSK | E80: RHV | K80: 0 | L80: 0 | M80: 0
A81: 77 | B81: VAN ASSCHE Pierre | C81: GPE | D81: 48H00236 | E81: RHV | K81: 0 | L81: 0 | M81: 0
A82: 78 | B82: VANDENHOOFDEN Bernard | C82: FAO | D82: 51H02731 | E82: RHV | K82: 0 | L82: 0 | M82: 0
A83: 79 | B83: DE GREEF Jean | C83: SSK | D83: 46H00331 | E83: RHV | K83: 0 | L83: 0 | M83: 0
A84: 80 | B84: BOEVER Pierre | C84: TAB | D84: 56H02663 | E84: RHV | K84: 0 | L84: 0 | M84: 0
A85: 81 | B85: VANMEENEN Philippe | C85: FBG | D85: 57H03948 | E85: RHV | K85: 0 | L85: 0 | M85: 0
A86: 82 | B86: PIETTE Alain | C86: FBG | D86: 54H03645 | E86: RHV | K86: 0 | L86: 0 | M86: 0
A87: 83 | B87: RENNEAU Jean-Noel | C87: ADS | D87: 59H02001 | E87: RHV | K87: 0 | L87: 0 | M87: 0
A88: 84 | B88: HANZE Bernard | C88: HUY | D88: 58H01505 | E88: RHV | K88: 0 | L88: 0 | M88: 0
A89: 85 | B89: RAHIR Jacques | C89: CTH | D89: 44H03480 | E89: RHV | K89: 0 | L89: 0 | M89: 0
A90: 86 | B90: THEYS Marc | C90: LFU | D90: 56H04345 | E90: RHV | K90: 0 | L90: 0 | M90: 0
A91: 87 | B91: MAQUET Gilbert (recurve) | C91: ACF | D91: 53H02240 | E91: RHV | K91: 0 | L91: 0 | M91: 0
C108: La macro est déclenchée par toute entrée d'une valeur dans le tableau N5:BW20 (modifier le plage si nécessaire dans la macro)

Sheet 18M2025
B3: Nom | C3: Club | D3: Matricule | E3: Cat. | F3: Tir 1 | G3: Tir 2 | H3: Tir 3 | I3: Tir 4 | J3: Tir 5 | K3: Total | L3: M/600 | M3: M/300 | S3: ITW | T3: GAU | U3: ANT | V3: FAO | W3: LIE | X3: HUY | Y3: HAC | Z3: LFU | AA3: LFE | AB3: MDY | AC3: FAO | AD3: CMA | AE3: LAC | AF3: ACG | AG3: FGV | AH3: ECA | AI3: GSR | AJ3: RCM | AK3: LIE | AL3: BTS | AM3: FOA | AN3: 2022 | AO3: AGC | AP3: PAC | AQ3: GAU | AR3: ANT | AS3: ITW | AT3: ABA | AU3: LIE | AV3: ECA | AW3: HUY
A5: 1 | B5: FRYNS Guido | C5: ITW | D5: 59H03148 | E5: RHV | F5: 432 | G5: 431 | H5: 410 | I5: 390 | J5: 389 | K5: =SUM(F5:J5) -> 2052 | L5: =K5/5 -> 410.4 | M5: =L5/2 -> 205.2 | S5: 389 | W5: 390 | X5: 432 | Y5: 431 | Z5: 410
A6: =IF(B6<>"",A5+1,"") -> 2 | B6: OLBRECHTS Pierre | C6: LAJ | D6: 56H00822 | E6: RHV | F6: 531 | G6: 528 | H6: 510 | K6: 1569 | L6: 313.8 | M6: 156.9 | T6: 510 | W6: 528 | Z6: 531
A7: =IF(B7<>"",A6+1,"") -> 3 | B7: PIERRE Auguste | C7: CAJ | D7: 56H04788 | E7: RHV | F7: 526 | G7: 524 | H7: 513 | K7: 1563 | L7: 312.6 | M7: 156.3 | S7: 513 | W7: 526 | Y7: 524
A8: 4 | B8: FIORA Joel | C8: SSK | D8: 57H00342 | E8: RHV | F8: 508 | G8: 494 | H8: 492 | K8: 1494 | L8: 298.8 | M8: 149.4 | T8: 494 | Y8: 508 | Z8: 492
A9: 5 | B9: COCQUYT Francis | C9: CTH | D9: 60H01688 | E9: RHV | F9: 510 | G9: 491 | H9: 485 | K9: 1486 | L9: 297.2 | M9: 148.6 | S9: 485 | X9: 510 | Y9: 491
A10: 6 | B10: MEYER Marc | C10: GPE | D10: 59H04233 | E10: RHV | F10: 501 | G10: 500 | H10: 451 | K10: 1452 | L10: 290.4 | M10: 145.2 | T10: 501 | W10: 451 | Z10: 500
A11: 7 | B11: DEGHAYE Pierre | C11: ACM | D11: 55H01808 | E11: RHV | F11: 494 | G11: 478 | H11: 478 | K11: 1450 | L11: 290 | M11: 145 | S11: 478 | W11: 494 | Y11: 478
A12: 8 | B12: DEPROOST Michel | C12: SSK | D12: 61H00337 | E12: RHV | F12: 493 | G12: 472 | H12: 448 | K12: 1413 | L12: 282.6 | M12: 141.3 | T12: 493 | Y12: 448 | Z12: 472
A13: 9 | B13: BARBIEUX Robin | C13: CAJ | D13: 57H05709 | E13: RHV | F13: 449 | G13: 436 | H13: 423 | K13: 1308 | L13: 261.6 | M13: 130.8 | S13: 436 | W13: 423 | Y13: 449
A14: 10 | B14: SKORUPKA Guy | C14: CEN | D14: 57H01040 | E14: RHV | F14: 523 | G14: 511 | K14: 1034 | L14: 206.8 | M14: 103.4 | U14: 523 | W14: 511
A15: 11 | B15: NATALIS Joseph | C15: CAJ | D15: 42H01967 | E15: RHV | F15: 510 | G15: 478 | K15: 988 | L15: 197.6 | M15: 98.8 | W15: 510 | Y15: 478
A16: 12 | B16: DELCOMINETTE guy | C16: LIE | D16: 48H01514 | E16: RHV | F16: 459 | G16: 451 | K16: 910 | L16: 182 | M16: 91 | S16: 451 | W16: 459
A17: 13 | B17: FOURNIER Gérard | C17: BTS | D17: 55H02754 | E17: RHV | F17: 449 | G17: 445 | K17: 894 | L17: 178.8 | M17: 89.4 | W17: 445 | Y17: 449
A18: 14 | B18: LEJEUNE Paul | C18: LFE | D18: 56H00919 | E18: RHV | F18: 454 | G18: 399 | K18: 853 | L18: 170.6 | M18: 85.3 | U18: 399 | Z18: 454
A19: 15 | B19: PAT Henri | C19: ABA | D19: 52H04786 | E19: RHV | F19: 425 | G19: 425 | K19: 850 | L19: 170 | M19: 85 | T19: 425 | Z19: 425
A20: 16 | B20: PETRONS Joel | C20: LFU | D20: 49H00899 | E20: RHV | F20: 413 | G20: 399 | K20: 812 | L20: 162.4 | M20: 81.2 | S20: 399 | Y20: 413
A21: 17 | B21: DE BON Pierre | C21: SAG | D21: 57H03719 | E21: RHV | F21: 381 | G21: 361 | K21: 742 | L21: 148.4 | M21: 74.2 | U21: 381 | Z21: 361
A22: 18 | B22: CIATTO Giovani | C22: ITW | D22: 59H04882 | E22: RHV | F22: 355 | G22: 350 | K22: 705 | L22: 141 | M22: 70.5 | S22: 350 | W22: 355
A23: 19 | B23: LEMIN Gerard | C23: ITW | D23: 53H02240 | E23: RHV | F23: 489 | K23: 489 | L23: 97.8 | M23: 48.9 | S23: 489
A24: 20 | B24: VANHAEREN Patrick | C24: LIE | D24: 61H05047 | E24: RHV | F24: 487 | K24: 487 | L24: 97.4 | M24: 48.7 | S24: 487
A25: 21 | B25: BUCHET Eric | C25: SSK | D25: 62H00326 | E25: RHV | F25: 482 | K25: 482 | L25: 96.4 | M25: 48.2 | Z25: 482
A26: 22 | B26: ANTOINE Pol | C26: GAU | E26: RHV | F26: 473 | K26: 473 | L26: 94.6 | M26: 47.3 | T26: 473
A27: 23 | B27: VANDENBERGHE Daniel | C27: CAB | D27: 51H02731 | E27: RHV | F27: 461 | K27: 461 | L27: 92.2 | M27: 46.1 | W27: 461
A28: 24 | B28: MARIAVELLE Eric | C28: CAL | D28: 60H05586 | E28: RHV | F28: 350 | K28: 350 | L28: 70 | M28: 35 | W28: 350
A29: 25 | B29: FASSOTTE Charly | C29: CTH | D29: 46H01723 | E29: RHV | F29: 342 | K29: 342 | L29: 68.4 | M29: 34.2 | W29: 342
A30: 26 | B30: ANQUETIL Marc | C30: CEN | D30: 56H01013 | E30: RHV | F30: 300 | K30: 300 | L30: 60 | M30: 30 | T30: 300
A31: 27 | B31: DURIEUX Marc | C31: SSC | D31: 57H01263 | E31: RHV | K31: 0 | L31: 0 | M31: 0
A32: 28 | B32: DEBATY Dominique | C32: GAU | E32: RHV | K32: 0 | L32: 0 | M32: 0
A33: 29 | B33: PEETERS Emmanuel | C33: SSK | D33: 59H00357 | E33: RHV | K33: 0 | L33: 0 | M33: 0
A34: 30 | B34: DUPOND Yves | C34: BTS | D34: 59H03867 | E34: RHV | K34: 0 | L34: 0 | M34: 0
A35: 31 | B35: METDEPENNINGEN Luc | C35: MDY | D35: 59H02050 | E35: RHV | K35: 0 | L35: 0 | M35: 0
A36: 32 | B36: BACOT Paul (recurve) | C36: HUY | D36: 50H01459 | E36: RHV | K36: 0 | L36: 0 | M36: 0
A37: 33 | B37: D'HEUR Michel | C37: FAO | D37: 46H00532 | E37: RHV | K37: =SUM(F37:J37) -> 0 | L37: =K37/5 -> 0 | M37: =L37/2 -> 0
A38: 34 | B38: GRAVAR Pierre | C38: ECA | D38: 52H01303 | E38: RHV | K38: 0 | L38: 0 | M38: 0
A39: 35 | B39: PETRUS Gus | C39: GAU | D39: 54H00363 | E39: RHV | K39: 0 | L39: 0 | M39: 0
A40: 36 | B40: LANDOLINO FRANCIS | C40: ACG | D40: 56H04781 | E40: RHV | K40: 0 | L40: 0 | M40: 0
A41: 37 | B41: SANTOS MONDO Julio | D41: 59H04745 | E41: RHV | K41: 0 | L41: 0 | M41: 0
A42: 38 | B42: RENNEAU Jean-Noel | C42: ADS | D42: 59H02001 | E42: RHV | K42: 0 | L42: 0 | M42: 0
A43: 39 | B43: WIGGELEER Patrick | C43: GSR | D43: 56H00096 | E43: RHV | K43: 0 | L43: 0 | M43: 0
A44: 40 | B44: DELNATTE Georges | C44: LIE | D44: 58H02914 | E44: RHV | K44: 0 | L44: 0 | M44: 0
A45: 41 | B45: HERMAL Raymond | C45: ACB | D45: 55H01249 | E45: RHV | K45: 0 | L45: 0 | M45: 0
A46: 42 | B46: DESSART Hubert | C46: ACM | D46: 48H01811 | E46: RHV | K46: 0 | L46: 0 | M46: 0
A47: 43 | B47: ROBERTO Salvator | C47: ACB | D47: 50H02729 | E47: RHV | K47: 0 | L47: 0 | M47: 0
A48: 44 | B48: RANDLE Daniel | C48: CMA | D48: 47H00700 | E48: RHV | K48: 0 | L48: 0 | M48: 0
A49: 45 | B49: NEYRET Robert | C49: LAJ | D49: 49H00841 | E49: RHV | K49: 0 | L49: 0 | M49: 0
A50: 46 | B50: SIMON Claude | C50: MDY | D50: 51H03522 | E50: RHV | K50: 0 | L50: 0 | M50: 0
A51: 47 | B51: PENA Victor | C51: CTH | D51: 54H01714 | E51: RHV | K51: 0 | L51: 0 | M51: 0
A52: 48 | B52: VANDEN BOGGAARR Marc | C52: ABA | D52: 57H00558 | E52: RHV | K52: 0 | L52: 0 | M52: 0
A53: 49 | B53: NOSSENT Christian | C53: SSK | D53: 53H00269 | E53: RHV | K53: 0 | L53: 0 | M53: 0
A54: 50 | B54: LUCAS André (recurve) | C54: SSC | D54: 55H01262 | E54: RHV | K54: 0 | L54: 0 | M54: 0
A55: 51 | B55: GESSA Stefano | C55: CAM | D55: 45H01355 | E55: RHV | K55: 0 | L55: 0 | M55: 0
A56: 52 | B56: REIBER Guy | C56: GSR | D56: 46H00175 | E56: RHV | K56: 0 | L56: 0 | M56: 0
A57: 53 | B57: STEINIER Robert | C57: ABA | D57: 46H00639 | E57: RHV | K57: 0 | L57: 0 | M57: 0
A58: 54 | B58: HODIAMONT Thierry | C58: FOA | D58: 55H0049 | E58: RHV | K58: =SUM(F58:J58) -> 0 | L58: =K58/5 -> 0 | M58: =L58/2 -> 0
A59: 55 | B59: RAHIR Jacques | C59: CTH | E59: RHV | K59: 0 | L59: 0 | M59: 0
A60: 56 | B60: CHABEAU Andre | C60: MDY | D60: 57H03240 | E60: RHV | K60: 0 | L60: 0 | M60: 0
A61: 57 | B61: BERUS Alain | C61: BTS | D61: 60H02770 | E61: RHV | K61: 0 | L61: 0 | M61: 0
A62: 58 | B62: VANDERVELDEN Daniel | C62: HUY | D62: 51H02731 | E62: RHV | K62: 0 | L62: 0 | M62: 0
A63: 59 | B63: HANZE Bernard | C63: HUY | E63: RHV | K63: 0 | L63: 0 | M63: 0
A64: 60 | B64: RENARD René | C64: SSK | E64: RHV | K64: 0 | L64: 0 | M64: 0
A65: 61 | B65: VAN ASSCHE Pierre | C65: GPE | D65: 48H00236 | E65: RHV | K65: 0 | L65: 0 | M65: 0
A66: 62 | B66: VANDENHOOFDEN Bernard | C66: FAO | D66: 51H02731 | E66: RHV | K66: 0 | L66: 0 | M66: 0
A67: 63 | B67: DE GREEF Jean | C67: SSK | D67: 46H00331 | E67: RHV | K67: 0 | L67: 0 | M67: 0
A68: 64 | B68: BOEVER Pierre | C68: TAB | D68: 56H02663 | E68: RHV | K68: 0 | L68: 0 | M68: 0
A69: 65 | B69: VANMEENEN Philippe | C69: FBG | D69: 57H03948 | E69: RHV | K69: =SUM(F69:J69) -> 0 | L69: =K69/5 -> 0 | M69: =L69/2 -> 0
A70: 66 | B70: PIETTE Alain | C70: FBG | D70: 54H03645 | E70: RHV | K70: 0 | L70: 0 | M70: 0
A71: =IF(B71<>"",A70+1,"") -> 67 | B71: RENNEAU Jean-Noel | C71: ADS | D71: 59H02001 | E71: RHV | K71: 0 | L71: 0 | M71: 0
A72: 68 | B72: HANZE Bernard | C72: HUY | D72: 58H01505 | E72: RHV | K72: 0 | L72: 0 | M72: 0
A73: 69 | B73: RAHIR Jacques | C73: CTH | D73: 44H03480 | E73: RHV | K73: 0 | L73: 0 | M73: 0
A74: 70 | B74: THEYS Marc | C74: LFU | D74: 56H04345 | E74: RHV | K74: 0 | L74: 0 | M74: 0
A75: 71 | B75: MAQUET Gilbert (recurve) | C75: ACF | D75: 53H02240 | E75: RHV | K75: 0 | L75: 0 | M75: 0
A76: 72 | B76: X | E76: RHV | K76: 0 | L76: 0 | M76: 0
C80: La macro est déclenchée par toute entrée d'une valeur dans le tableau N5:BW20 (modifier le plage si nécessaire dans la macro)

Sheet 25M2019
B3: Nom | C3: Club | D3: Matricule | E3: Cat. | F3: Tir 1 | G3: Tir 2 | H3: Tir 3 | I3: Tir 4 | J3: Tir 5 | K3: Total | L3: M/600 | M3: M/300 | T3: SSC | U3: GSR | V3: FGV | W3: ECA | X3: ITW | Y3: CTH | Z3: GPE | AA3: LIE | AB3: LFE | AC3: BTS | AD3: CEN | AE3: ANT | AF3: GSR | AG3: CAS | AH3: GAU | AI3: HAC | AJ3: ACG | AK3: BTS | AL3: GSR
A5: 1 | B5: SKORUPKA Guy | C5: CEN | D5: 57H01040 | E5: RHV | F5: 623 | G5: 599 | H5: 592 | I5: 564 | J5: 563 | K5: =SUM(F5:J5) -> 2941 | L5: =K5/5 -> 588.2 | M5: =L5/2 -> 294.1 | AC5: 623 | AE5: 592 | AF5: 564 | AH5: 563 | AI5: 599
A6: =IF(B6<>"",A5+1,"") -> 2 | B6: DELCOMINETTE guy | C6: LIE | D6: 48H01514 | E6: RHV | F6: 607 | G6: 572 | H6: 564 | I6: 561 | J6: 526 | K6: 2830 | L6: 566 | M6: 283 | X6: 572 | AA6: 526 | AC6: 607 | AF6: 561 | AG6: 564
A7: =IF(B7<>"",A6+1,"") -> 3 | B7: BACOT Paul (recurve) | C7: HUY | D7: 50H01459 | E7: RHV | F7: 593 | G7: 572 | H7: 557 | I7: 552 | J7: 552 | K7: 2826 | L7: 565.2 | M7: 282.6 | X7: 572 | AA7: 557 | AC7: 552 | AI7: 552 | AJ7: 593
A8: 4 | B8: PETRONS Joel | C8: LFU | D8: 49H00899 | E8: RHV | F8: 578 | G8: 561 | H8: 561 | I8: 561 | J8: 539 | K8: 2800 | L8: 560 | M8: 280 | X8: 561 | AC8: 561 | AF8: 561 | AG8: 578 | AI8: 539
A9: 5 | B9: PETRUS Gus | C9: GAU | D9: 54H00363 | E9: RHV | F9: 558 | G9: 557 | H9: 528 | I9: 527 | J9: 461 | K9: 2631 | L9: 526.2 | M9: 263.1 | AA9: 461 | AE9: 528 | AG9: 558 | AH9: 557 | AI9: 527
A10: 6 | B10: DELNATTE Georges | C10: LIE | D10: 58H02914 | E10: RHV | F10: 581 | G10: 568 | H10: 562 | I10: 555 | K10: 2266 | L10: 453.2 | M10: 226.6 | X10: 555 | AC10: 562 | AF10: 581 | AI10: 568
A11: 7 | B11: FRYNS Guido | C11: ITW | D11: 59H03148 | E11: RHV | F11: 504 | G11: 456 | H11: 434 | I11: 426 | J11: 420 | K11: 2240 | L11: 448 | M11: 224 | V11: 504 | X11: 456 | AA11: 426 | AF11: 420 | AG11: 434 | AI11: 396
A12: 8 | B12: METDEPENNINGEN Luc | C12: MDY | D12: 59H02050 | E12: RHV | F12: 521 | G12: 510 | H12: 497 | I12: 491 | K12: 2019 | L12: 403.8 | M12: 201.9 | AA12: 521 | AC12: 510 | AG12: 491 | AI12: 497
A13: 9 | B13: D'HEUR Michel | C13: FAO | D13: 46H00532 | E13: RHV | F13: 608 | G13: 593 | K13: 1201 | L13: 240.2 | M13: 120.1 | AF13: 593 | AH13: 608
A14: 10 | B14: REIBER Guy | C14: GSR | D14: 46H00175 | E14: RHV | F14: 474 | G14: 410 | K14: 884 | L14: 176.8 | M14: 88.4 | AF14: 410 | AH14: 474
A15: 11 | B15: THEYS Marc | C15: LFU | D15: 56H04345 | E15: RHV | F15: 399 | G15: 385 | K15: 784 | L15: 156.8 | M15: 78.4 | AF15: 385 | AI15: 399
A16: 12 | B16: RENNEAU Jean-Noel | C16: ADS | D16: 59H02001 | E16: RHV | F16: 588 | K16: 588 | L16: 117.6 | M16: 58.8 | AG16: 588
A17: 13 | B17: VANDENBERGHE Daniel | C17: CAB | D17: 51H02731 | E17: RHV | F17: 584 | K17: 584 | L17: 116.8 | M17: 58.4 | AC17: 584
A18: 14 | B18: WIGGELEER Patrick | C18: GSR | D18: 56H00096 | E18: RHV | F18: 572 | K18: 572 | L18: 114.4 | M18: 57.2 | AA18: 572
A19: 15 | B19: FIORA Joel | C19: SSK | E19: RHV | F19: 566 | K19: 566 | L19: 113.2 | M19: 56.6 | AI19: 566
A20: 16 | B20: PENA Victor | C20: ACG | D20: 54H01714 | E20: RHV | F20: 536 | K20: 536 | L20: 107.2 | M20: 53.6 | AG20: 536
A21: 17 | B21: DEBATY Dominique | C21: GAU | E21: RHV | F21: 515 | K21: 515 | L21: 103 | M21: 51.5 | AH21: 515
A22: 18 | B22: GRAVAR Pierre | C22: ECA | D22: 52H01303 | E22: RHV | K22: 0 | L22: 0 | M22: 0
A23: 19 | B23: MAQUET Gilbert (recurve) | C23: ACF | D23: 53H02240 | E23: RHV | K23: 0 | L23: 0 | M23: 0
A24: 20 | B24: PENA Victor | C24: CTH | D24: 54H01714 | E24: RHV | K24: 0 | L24: 0 | M24: 0
A25: 21 | B25: VANDEN BOGGAARR Marc | C25: ABA | D25: 57H00558 | E25: RHV | K25: 0 | L25: 0 | M25: 0
A26: 22 | B26: LUCAS André (recurve) | C26: SSC | D26: 55H01262 | E26: RHV | K26: 0 | L26: 0 | M26: 0
A27: 23 | B27: NATALIS Joseph | C27: CAJ | D27: 42H01967 | E27: RHV | K27: 0 | L27: 0 | M27: 0
A28: 24 | B28: VANDERVELDEN Daniel | C28: HUY | D28: 51H02731 | E28: RHV | K28: 0 | L28: 0 | M28: 0
A29: 25 | B29: DEGHAYE Pierre | C29: ACM | D29: 55H01808 | E29: RHV | K29: 0 | L29: 0 | M29: 0
A30: 26 | B30: OLBRECHTS Pierre | C30: LAJ | D30: 56H00822 | E30: RHV | K30: 0 | L30: 0 | M30: 0
A31: 27 | B31: FOURNIER Gérard | C31: BTS | D31: 55H02754 | E31: RHV | K31: 0 | L31: 0 | M31: 0
A32: 28 | B32: RANDLE Daniel | C32: CMA | D32: 47H00700 | E32: RHV | K32: 0 | L32: 0 | M32: 0
C78: La macro est déclenchée par toute entrée d'une valeur dans le tableau N5:BW20 (modifier le plage si nécessaire dans la macro)

Sheet 25M2020
B3: Nom | C3: Club | D3: Matricule | E3: Cat. | F3: Tir 1 | G3: Tir 2 | H3: Tir 3 | I3: Tir 4 | J3: Tir 5 | K3: Total | L3: M/600 | M3: M/300 | T3: ADS | U3: GSR | V3: FGV | W3: ECA | X3: ITW | Y3: CTH | Z3: GPE | AA3: LIE | AB3: LFE | AC3: BTS | AD3: CEN | AE3: ANT | AF3: GSR | AG3: CAS | AH3: GAU | AI3: HAC | AJ3: ACG | AK3: BTS | AL3: GSR
A5: 1 | B5: OLBRECHTS Pierre | C5: LAJ | D5: 56H00822 | E5: RHV | F5: 634 | K5: =SUM(F5:J5) -> 634 | L5: =K5/5 -> 126.8 | M5: =L5/2 -> 63.4 | T5: 634
A6: =IF(B6<>"",A5+1,"") -> 2 | B6: NATALIS Joseph | C6: CAJ | E6: RHV | F6: 589 | K6: 589 | L6: 117.8 | M6: 58.9 | T6: 589
A7: =IF(B7<>"",A6+1,"") -> 3 | B7: PIERRE Auguste | C7: CAJ | E7: RHV | F7: 555 | K7: 555 | L7: 111 | M7: 55.5 | T7: 555
A8: 4 | B8: FIORA Joel | C8: SSK | E8: RHV | K8: 0 | L8: 0 | M8: 0
A9: 5 | B9: FRYNS Guido | C9: ITW | D9: 59H03148 | E9: RHV | K9: 0 | L9: 0 | M9: 0
A10: 6 | B10: SKORUPKA Guy | C10: CEN | D10: 57H01040 | E10: RHV | K10: 0 | L10: 0 | M10: 0
A11: 7 | B11: DELCOMINETTE guy | C11: LIE | D11: 48H01514 | E11: RHV | K11: 0 | L11: 0 | M11: 0
A12: 8 | B12: BACOT Paul (recurve) | C12: HUY | D12: 50H01459 | E12: RHV | K12: 0 | L12: 0 | M12: 0
A13: 9 | B13: PETRONS Joel | C13: LFU | D13: 49H00899 | E13: RHV | K13: 0 | L13: 0 | M13: 0
A14: 10 | B14: PETRUS Gus | C14: GAU | D14: 54H00363 | E14: RHV | K14: 0 | L14: 0 | M14: 0
A15: 11 | B15: DELNATTE Georges | C15: LIE | D15: 58H02914 | E15: RHV | K15: 0 | L15: 0 | M15: 0
A16: 12 | B16: METDEPENNINGEN Luc | C16: MDY | D16: 59H02050 | E16: RHV | K16: 0 | L16: 0 | M16: 0
A17: 13 | B17: D'HEUR Michel | C17: FAO | D17: 46H00532 | E17: RHV | K17: 0 | L17: 0 | M17: 0
A18: 14 | B18: REIBER Guy | C18: GSR | D18: 46H00175 | E18: RHV | K18: 0 | L18: 0 | M18: 0
A19: 15 | B19: THEYS Marc | C19: LFU | D19: 56H04345 | E19: RHV | K19: 0 | L19: 0 | M19: 0
A20: 16 | B20: RENNEAU Jean-Noel | C20: ADS | D20: 59H02001 | E20: RHV | K20: 0 | L20: 0 | M20: 0
A21: 17 | B21: VANDENBERGHE Daniel | C21: CAB | D21: 51H02731 | E21: RHV | K21: 0 | L21: 0 | M21: 0
A22: 18 | B22: WIGGELEER Patrick | C22: GSR | D22: 56H00096 | E22: RHV | K22: 0 | L22: 0 | M22: 0
A23: 19 | B23: PENA Victor | C23: ACG | D23: 54H01714 | E23: RHV | K23: 0 | L23: 0 | M23: 0
A24: 20 | B24: DEBATY Dominique | C24: GAU | E24: RHV | K24: 0 | L24: 0 | M24: 0
A25: 21 | B25: PENA Victor | C25: CTH | D25: 54H01714 | E25: RHV | K25: 0 | L25: 0 | M25: 0
A26: 22 | B26: VANDEN BOGGAARR Marc | C26: ABA | D26: 57H00558 | E26: RHV | K26: 0 | L26: 0 | M26: 0
A27: 23 | B27: LUCAS André (recurve) | C27: SSC | D27: 55H01262 | E27: RHV | K27: 0 | L27: 0 | M27: 0
A28: 24 | B28: NATALIS Joseph | C28: CAJ | D28: 42H01967 | E28: RHV | K28: 0 | L28: 0 | M28: 0
A29: 25 | B29: MAQUET Gilbert (recurve) | C29: ACF | D29: 53H02240 | E29: RHV | K29: 0 | L29: 0 | M29: 0
A30: 26 | B30: VANDERVELDEN Daniel | C30: HUY | D30: 51H02731 | E30: RHV | K30: 0 | L30: 0 | M30: 0
A31: 27 | B31: DEGHAYE Pierre | C31: ACM | D31: 55H01808 | E31: RHV | K31: 0 | L31: 0 | M31: 0
A32: 28 | B32: GRAVAR Pierre | C32: ECA | D32: 52H01303 | E32: RHV | K32: 0 | L32: 0 | M32: 0
A33: =IF(B33<>"",A32+1,"") -> 29 | B33: FOURNIER Gérard | C33: BTS | D33: 55H02754 | E33: RHV | K33: 0 | L33: 0 | M33: 0
A34: =IF(B34<>"",A33+1,"") -> 30 | B34: RANDLE Daniel | C34: CMA | D34: 47H00700 | E34: RHV | K34: 0 | L34: 0 | M34: 0
C78: La macro est déclenchée par toute entrée d'une valeur dans le tableau N5:BW20 (modifier le plage si nécessaire dans la macro)

Sheet 25M2021
B3: Nom | C3: Club | D3: Matricule | E3: Cat. | F3: Tir 1 | G3: Tir 2 | H3: Tir 3 | I3: Tir 4 | J3: Tir 5 | K3: Total | L3: M/600 | M3: M/300 | S3: PAC | T3: GAU | U3: ANT | V3: ITW | W3: LIE | X3: ANT | Y3: BTS | Z3: CEN | AA3: ANT | AB3: GSR | AC3: CAS | AD3: HAC | AE3: GAU | AF3: LIE | AG3: FAC | AJ3: MDY | AK3: ECA | AL3: FGV | AM3: GSR | AN3: LIE | AO3: BTS | AP3: FOA
A5: 1 | B5: OLBRECHTS Pierre | C5: LAJ | D5: 56H00822 | E5: RHV | F5: 657 | G5: 649 | H5: 643 | I5: 640 | J5: 640 | K5: =SUM(F5:J5) -> 3229 | L5: =K5/5 -> 645.8 | M5: =L5/2 -> 322.9 | W5: 607 | Y5: 640 | AA5: 649 | AB5: 596 | AC5: 640 | AD5: 657 | AF5: 631 | AH5: 643
A6: =IF(B6<>"",A5+1,"") -> 2 | B6: SKORUPKA Guy | C6: CEN | D6: 57H01040 | E6: RHV | F6: 626 | G6: 619 | H6: 613 | I6: 611 | J6: 595 | K6: 3064 | L6: 612.8 | M6: 306.4 | W6: 613 | Y6: 626 | AA6: 611 | AG6: 595 | AH6: 619
A7: =IF(B7<>"",A6+1,"") -> 3 | B7: PIERRE Auguste | C7: CAJ | D7: 56H04788 | E7: RHV | F7: 605 | G7: 586 | H7: 577 | I7: 575 | J7: 571 | K7: 2914 | L7: 582.8 | M7: 291.4 | W7: 571 | Y7: 544 | AA7: 586 | AC7: 558 | AD7: 542 | AF7: 605 | AH7: 577 | AI7: 575
A8: 4 | B8: NATALIS Joseph | C8: CAJ | D8: 42H01967 | E8: RHV | F8: 584 | G8: 575 | H8: 567 | I8: 535 | K8: 2261 | L8: 452.2 | M8: 226.1 | Y8: 567 | AC8: 584 | AD8: 575 | AF8: 535
A9: 5 | B9: DEGHAYE Pierre | C9: ACM | D9: 55H01808 | E9: RHV | F9: 630 | G9: 608 | K9: 1238 | L9: 247.6 | M9: 123.8 | AC9: 608 | AD9: 630
A10: 6 | B10: FIORA Joel | C10: SSK | E10: RHV | F10: 623 | G10: 583 | K10: 1206 | L10: 241.2 | M10: 120.6 | AD10: 583 | AE10: 623
A11: 7 | B11: LEJOLY Daniel | C11: LIE | D11: 61H01549 | E11: RHV | F11: 633 | G11: 568 | K11: 1201 | L11: 240.2 | M11: 120.1 | W11: 633 | AF11: 568
A12: 8 | B12: VANHAEREN Patrick | C12: LIE | D12: 61H05047 | E12: RHV | F12: 633 | G12: 531 | K12: 1164 | L12: 232.8 | M12: 116.4 | W12: 531
A13: 9 | B13: DELCOMINETTE guy | C13: LIE | D13: 48H01514 | E13: RHV | F13: 524 | G13: 523 | K13: 1047 | L13: 209.4 | M13: 104.7 | AD13: 523 | AF13: 524
A14: 10 | B14: MEYER Marc | C14: GPE | D14: 47H00700 | E14: RHV | F14: 599 | K14: 599 | L14: 119.8 | M14: 59.9 | AE14: 599
A15: 11 | B15: HERMAL Raymond | C15: ACB | D15: 55H01249 | E15: RHV | F15: 582 | K15: 582 | L15: 116.4 | M15: 58.2 | AG15: 582
A16: 12 | B16: VANDENBERGHE Daniel | C16: CAB | D16: 51H02731 | E16: RHV | F16: 562 | K16: 562 | L16: 112.4 | M16: 56.2 | AG16: 562
A17: 13 | B17: ROBERTO Salvator | C17: ABT | D17: 50H02729 | E17: RHV | F17: 496 | K17: 496 | L17: 99.2 | M17: 49.6 | AG17: 496
A18: 14 | B18: FRYNS Guido | C18: ITW | D18: 59H03148 | E18: RHV | F18: 474 | K18: 474 | L18: 94.8 | M18: 47.4 | AF18: 474
A19: 15 | B19: DE BON Pierre | C19: SAG | D19: 57H03719 | E19: RHV | F19: 450 | K19: 450 | L19: 90 | M19: 45 | AA19: 450
A20: 16 | B20: BARBIEUX Robin | C20: CAJ | D20: 57H05709 | E20: RHV | F20: 435 | K20: 435 | L20: 87 | M20: 43.5 | AF20: 435
A21: 17 | B21: DEBATY Dominique | C21: GAU | E21: RHV | K21: 0 | L21: 0 | M21: 0
A22: 18 | B22: DELNATTE Georges | C22: LIE | D22: 58H02914 | E22: RHV | K22: 0 | L22: 0 | M22: 0
A23: 19 | B23: PETRONS Joel | C23: LFU | D23: 49H00899 | E23: RHV | K23: 0 | L23: 0 | M23: 0
A24: 20 | B24: PETRUS Gus | C24: GAU | D24: 54H00363 | E24: RHV | K24: 0 | L24: 0 | M24: 0
A25: 21 | B25: RENNEAU Jean-Noel | C25: ADS | D25: 59H02001 | E25: RHV | K25: 0 | L25: 0 | M25: 0
A26: 22 | B26: BACOT Paul (recurve) | C26: HUY | D26: 50H01459 | E26: RHV | K26: 0 | L26: 0 | M26: 0
A27: 23 | B27: METDEPENNINGEN Luc | C27: MDY | D27: 59H02050 | E27: RHV | K27: 0 | L27: 0 | M27: 0
A28: 24 | B28: D'HEUR Michel | C28: FAO | D28: 46H00532 | E28: RHV | K28: 0 | L28: 0 | M28: 0
A29: 25 | B29: REIBER Guy | C29: GSR | D29: 46H00175 | E29: RHV | K29: 0 | L29: 0 | M29: 0
A30: 26 | B30: THEYS Marc | C30: LFU | D30: 56H04345 | E30: RHV | K30: 0 | L30: 0 | M30: 0
A31: 27 | B31: WIGGELEER Patrick | C31: GSR | D31: 56H00096 | E31: RHV | K31: 0 | L31: 0 | M31: 0
A32: 28 | B32: PENA Victor | C32: CTH | D32: 54H01714 | E32: RHV | K32: 0 | L32: 0 | M32: 0
A33: =IF(B33<>"",A32+1,"") -> 29 | B33: VANDEN BOGGAARR Marc | C33: ABA | D33: 57H00558 | E33: RHV | K33: 0 | L33: 0 | M33: 0
A34: 30 | B34: LUCAS André (recurve) | C34: SSC | D34: 55H01262 | E34: RHV | K34: 0 | L34: 0 | M34: 0
A35: 31 | B35: MAQUET Gilbert (recurve) | C35: ACF | D35: 53H02240 | E35: RHV | K35: 0 | L35: 0 | M35: 0
A36: 32 | B36: VANDERVELDEN Daniel | C36: HUY | D36: 51H02731 | E36: RHV | K36: 0 | L36: 0 | M36: 0
A37: 33 | B37: GRAVAR Pierre | C37: ECA | D37: 52H01303 | E37: RHV | K37: 0 | L37: 0 | M37: 0
A38: 34 | B38: FOURNIER Gérard | C38: BTS | D38: 55H02754 | E38: RHV | K38: 0 | L38: 0 | M38: 0
A39: 35 | B39: RANDLE Daniel | C39: CMA | D39: 47H00700 | E39: RHV | K39: 0 | L39: 0 | M39: 0
A40: 36 | B40: NEYRET Robert | C40: LAJ | D40: 49H00841 | E40: RHV | K40: 0 | L40: 0 | M40: 0
C46: La macro est déclenchée par toute entrée d'une valeur dans le tableau N5:BW20 (modifier le plage si nécessaire dans la macro)

Sheet 25M2022
B3: Nom | C3: Club | D3: Matricule | E3: Cat. | F3: Tir 1 | G3: Tir 2 | H3: Tir 3 | I3: Tir 4 | J3: Tir 5 | K3: Total | L3: M/600 | M3: M/300 | S3: PAC | T3: GAU | U3: ANT | V3: ITW | W3: LIE | X3: ANT | Y3: BTS | Z3: CEN | AA3: ANT | AB3: CAS | AC3: HAC | AD3: GAU | AE3: LIE | AF3: ACG | AG3: CMA | AH3: LAC | AI3: RCM | AJ3: MDY | AK3: ECA | AL3: FGV | AM3: GSR | AN3: LIE | AO3: BTS | AP3: FOA
A5: 1 | B5: OLBRECHTS Pierre | C5: LAJ | D5: 56H00822 | E5: RHV | F5: 641 | G5: 625 | H5: 617 | I5: 613 | J5: 603 | K5: =SUM(F5:J5) -> 3099 | L5: =K5/5 -> 619.8 | M5: =L5/2 -> 309.9 | V5: 641 | W5: 601 | Y5: 625 | Z5: 613 | AB5: 602 | AC5: 617 | AE5: 603
A6: =IF(B6<>"",A5+1,"") -> 2 | B6: PIERRE Auguste | C6: CAJ | D6: 56H04788 | E6: RHV | F6: 621 | G6: 605 | H6: 604 | I6: 600 | J6: 598 | K6: 3028 | L6: 605.6 | M6: 302.8 | Y6: 598 | Z6: 605 | AB6: 621 | AC6: 587 | AE6: 600 | AF6: 604
A7: =IF(B7<>"",A6+1,"") -> 3 | B7: SKORUPKA Guy | C7: CEN | D7: 57H01040 | E7: RHV | F7: 620 | G7: 615 | H7: 600 | I7: 598 | J7: 581 | K7: 3014 | L7: 602.8 | M7: 301.4 | Y7: 620 | Z7: 615 | AA7: 581 | AC7: 600 | AD7: 577 | AE7: 568 | AF7: 598
A8: 4 | B8: COCQUYT Francis | C8: ACM | D8: 60H01688 | E8: RHV | F8: 602 | G8: 592 | H8: 573 | I8: 537 | J8: 269 | K8: 2573 | L8: 514.6 | M8: 257.3 | V8: 573 | W8: 269 | AB8: 537 | AC8: 602 | AF8: 592
A9: 5 | B9: PETRONS Joel | C9: LFU | D9: 49H00899 | E9: RHV | F9: 554 | G9: 516 | H9: 504 | I9: 500 | J9: 474 | K9: 2548 | L9: 509.6 | M9: 254.8 | V9: 504 | Y9: 516 | Z9: 554 | AB9: 500 | AC9: 474
A10: 6 | B10: NEYRET Robert | C10: LAJ | D10: 49H00841 | E10: RHV | F10: 533 | G10: 520 | H10: 500 | I10: 427 | J10: 379 | K10: 2359 | L10: 471.8 | M10: 235.9 | W10: 427 | Y10: 533 | AB10: 500 | AC10: 520 | AE10: 379
A11: 7 | B11: DELCOMINETTE guy | C11: LIE | D11: 48H01514 | E11: RHV | F11: 581 | G11: 531 | H11: 512 | I11: 484 | J11: 126 | K11: 2234 | L11: 446.8 | M11: 223.4 | V11: 531 | W11: 484 | Y11: 581 | AB11: 512 | AC11: 126
A12: 8 | B12: FRYNS Guido | C12: ITW | D12: 59H03148 | E12: RHV | F12: 553 | G12: 500 | H12: 494 | I12: 480 | K12: 2027 | L12: 405.4 | M12: 202.7 | W12: 494 | Z12: 500 | AB12: 480 | AC12: 553
A13: 9 | B13: LEJEUNE Paul | C13: LFE | D13: 56H00919 | E13: RHV | F13: 545 | G13: 506 | H13: 476 | K13: 1527 | L13: 305.4 | M13: 152.7 | X13: 506 | Z13: 476 | AA13: 545
A14: 10 | B14: BACOT Paul (recurve) | C14: HUY | D14: 50H01459 | E14: RHV | F14: 519 | G14: 508 | H14: 480 | K14: 1507 | L14: 301.4 | M14: 150.7 | Y14: 508 | AC14: 480 | AF14: 519
A15: 11 | B15: BARBIEUX Romain | C15: CAJ | D15: 57H05709 | E15: RHV | F15: 525 | G15: 480 | H15: 465 | K15: 1470 | L15: 294 | M15: 147 | V15: 525 | AB15: 480 | AC15: 465
A16: 12 | B16: MEYER Marc | C16: GPE | D16: 59H04233 | E16: RHV | F16: 624 | G16: 620 | K16: 1244 | L16: 248.8 | M16: 124.4 | Z16: 620 | AD16: 624
A17: 13 | B17: DEGHAYE Pierre | C17: ACM | D17: 55H01808 | E17: RHV | F17: 597 | G17: 345 | K17: 942 | L17: 188.4 | M17: 94.2 | V17: 597 | W17: 345
A18: 14 | B18: LIBERT Marc | C18: ACG | D18: 60H06362 | E18: RHV | F18: 485 | G18: 435 | K18: 920 | L18: 184 | M18: 92 | AB18: 435 | AF18: 485
A19: 15 | B19: FIORA Joel | C19: SSK | D19: 57H00342 | E19: RHV | F19: 634 | K19: 634 | L19: 126.8 | M19: 63.4 | AD19: 634
A20: 16 | B20: LEJOLY Daniel | C20: LIE | D20: 61H01549 | E20: RHV | F20: 622 | K20: 622 | L20: 124.4 | M20: 62.2 | W20: 622
A21: 17 | B21: NATALIS Joseph | C21: CAJ | D21: 42H01967 | E21: RHV | F21: 575 | K21: 575 | L21: 115 | M21: 57.5 | V21: 575
A22: 18 | B22: METDEPENNINGEN Luc | C22: MDY | D22: 59H02050 | E22: RHV | F22: 487 | K22: 487 | L22: 97.4 | M22: 48.7 | AB22: 487
A23: 19 | B23: DEPROOST Michel | C23: SSK | E23: RHV | F23: 487 | K23: 487 | L23: 97.4 | M23: 48.7 | AC23: 487
A24: 20 | B24: DE BON Pierre | C24: LFE | D24: 57H03719 | E24: RHV | F24: 470 | K24: 470 | L24: 94 | M24: 47 | AA24: 470
A25: 21 | B25: VANDEN BOGGAARR Marc | C25: ABA | D25: 57H00558 | E25: RHV | K25: 0 | L25: 0 | M25: 0
A26: 22 | B26: FOURNIER Gérard | C26: BTS | D26: 55H02754 | E26: RHV | K26: 0 | L26: 0 | M26: 0
A27: 23 | B27: X | E27: RHV | K27: 0 | L27: 0 | M27: 0
A28: 24 | B28: X1 | E28: RHV | K28: 0 | L28: 0 | M28: 0
A29: 25 | B29: WIGGELEER Patrick | C29: GSR | D29: 56H00096 | E29: RHV | K29: 0 | L29: 0 | M29: 0
A30: 26 | B30: D'HEUR Michel | C30: FAO | D30: 46H00532 | E30: RHV | K30: 0 | L30: 0 | M30: 0
A31: 27 | B31: PENA Victor | C31: CTH | D31: 54H01714 | E31: RHV | K31: 0 | L31: 0 | M31: 0
A32: 28 | B32: GRAVAR Pierre | C32: ECA | D32: 52H01303 | E32: RHV | K32: 0 | L32: 0 | M32: 0
A33: 29 | B33: DELNATTE Georges | C33: LIE | D33: 58H02914 | E33: RHV | K33: 0 | L33: 0 | M33: 0
A34: 30 | B34: PETRUS Gus | C34: GAU | D34: 54H00363 | E34: RHV | K34: 0 | L34: 0 | M34: 0
A35: 31 | B35: RANDLE Daniel | C35: CMA | D35: 47H00700 | E35: RHV | K35: 0 | L35: 0 | M35: 0
A36: 32 | B36: NOSSENT Christian | C36: SSK | D36: 53H00269 | E36: RHV | K36: 0 | L36: 0 | M36: 0
A37: 33 | B37: LUCAS André (recurve) | C37: SSC | D37: 55H01262 | E37: RHV | K37: =SUM(F37:J37) -> 0 | L37: =K37/5 -> 0 | M37: =L37/2 -> 0
A38: 34 | B38: DURIEUX Marc | C38: SSC | D38: 57H01263 | E38: RHV | K38: 0 | L38: 0 | M38: 0
A39: 35 | B39: ANTOINE Pol | C39: GAU | E39: RHV | K39: 0 | L39: 0 | M39: 0
A40: 36 | B40: STAINIER Robert | C40: ABA | D40: 46H00639 | E40: RHV | K40: 0 | L40: 0 | M40: 0
A41: 37 | B41: CHABEAU Andre | C41: MDY | D41: 57H03240 | E41: RHV | K41: 0 | L41: 0 | M41: 0
A42: 38 | B42: GESSA Stefano | C42: CAM | D42: 45H01355 | E42: RHV | K42: 0 | L42: 0 | M42: 0
A43: 39 | B43: VANDERVELDEN Daniel | C43: HUY | D43: 51H02731 | E43: RHV | K43: 0 | L43: 0 | M43: 0
A44: 40 | B44: VANMEENEN Philippe | C44: FBG | D44: 57H03948 | E44: RHV | K44: 0 | L44: 0 | M44: 0
A45: =IF(B45<>"",A44+1,"") -> 41 | B45: PIETTE Alain | C45: FBG | D45: 54H03645 | E45: RHV | K45: 0 | L45: 0 | M45: 0
A46: 42 | B46: RENARD René | C46: SSK | E46: RHV | K46: 0 | L46: 0 | M46: 0
A47: 43 | B47: DE GREEF Jean | C47: SSK | D47: 46H00331 | E47: RHV | K47: 0 | L47: 0 | M47: 0
A48: 44 | B48: BOEVER Pierre | C48: TAB | D48: 56H02663 | E48: RHV | K48: 0 | L48: 0 | M48: 0
A49: 45 | B49: FASSOTTE Charly | C49: CTH | D49: 46H01723 | E49: RHV | K49: 0 | L49: 0 | M49: 0
A50: 46 | B50: RENNEAU Jean-Noel | C50: ADS | D50: 59H02001 | E50: RHV | K50: 0 | L50: 0 | M50: 0
A51: 47 | B51: REIBER Guy | C51: GSR | D51: 46H00175 | E51: RHV | K51: 0 | L51: 0 | M51: 0
A52: 48 | B52: THEYS Marc | C52: LFU | D52: 56H04345 | E52: RHV | K52: 0 | L52: 0 | M52: 0
A53: 49 | B53: VANDENBERGHE Daniel | C53: CAB | D53: 51H02731 | E53: RHV | K53: 0 | L53: 0 | M53: 0
A54: 50 | B54: DEBATY Dominique | C54: GAU | E54: RHV | K54: 0 | L54: 0 | M54: 0
A55: 51 | B55: MAQUET Gilbert (recurve) | C55: ACF | D55: 53H02240 | E55: RHV | K55: 0 | L55: 0 | M55: 0
A56: 52 | B56: MAQUET Gilbert (recurve) | C56: ACF | D56: 53H02240 | E56: RHV | K56: 0 | L56: 0 | M56: 0
C59: La macro est déclenchée par toute entrée d'une valeur dans le tableau N5:BW20 (modifier le plage si nécessaire dans la macro)
A71: =IF(B71<>"",A70+1,"") -> 
A72: =IF(B72<>"",A71+1,"") -> 
A73: =IF(B73<>"",A72+1,"") -> 
A74: =IF(B74<>"",A73+1,"") -> 

Sheet 25M2023
B3: Nom | C3: Club | D3: Matricule | E3: Cat. | F3: Tir 1 | G3: Tir 2 | H3: Tir 3 | I3: Tir 4 | J3: Tir 5 | K3: Total | L3: M/600 | M3: M/300 | S3: PAC | T3: GAU | U3: ANT | V3: ITW | W3: LIE | X3: ANT | Y3: BTS | Z3: CEN | AA3: ANT | AB3: CAS | AC3: HAC | AD3: GAU | AE3: LIE | AF3: ACG | AG3: CMA | AH3: LAC | AI3: RCM | AJ3: MDY | AK3: ECA | AL3: FGV | AM3: GSR | AN3: LIE | AO3: BTS | AP3: FOA
A5: 1 | B5: OLBRECHTS Pierre | C5: LAJ | D5: 56H00822 | E5: RHV | F5: 641 | G5: 625 | H5: 617 | I5: 613 | J5: 603 | K5: =SUM(F5:J5) -> 3099 | L5: =K5/5 -> 619.8 | M5: =L5/2 -> 309.9 | V5: 641 | W5: 601 | Y5: 625 | Z5: 613 | AB5: 602 | AC5: 617 | AE5: 603
A6: =IF(B6<>"",A5+1,"") -> 2 | B6: PIERRE Auguste | C6: CAJ | D6: 56H04788 | E6: RHV | F6: 621 | G6: 605 | H6: 604 | I6: 600 | J6: 598 | K6: 3028 | L6: 605.6 | M6: 302.8 | Y6: 598 | Z6: 605 | AB6: 621 | AC6: 587 | AE6: 600 | AF6: 604
A7: =IF(B7<>"",A6+1,"") -> 3 | B7: SKORUPKA Guy | C7: CEN | D7: 57H01040 | E7: RHV | F7: 620 | G7: 615 | H7: 600 | I7: 598 | J7: 581 | K7: 3014 | L7: 602.8 | M7: 301.4 | Y7: 620 | Z7: 615 | AA7: 581 | AC7: 600 | AD7: 577 | AE7: 568 | AF7: 598
A8: 4 | B8: COCQUYT Francis | C8: ACM | D8: 60H01688 | E8: RHV | F8: 602 | G8: 592 | H8: 573 | I8: 537 | J8: 269 | K8: 2573 | L8: 514.6 | M8: 257.3 | V8: 573 | W8: 269 | AB8: 537 | AC8: 602 | AF8: 592
A9: 5 | B9: PETRONS Joel | C9: LFU | D9: 49H00899 | E9: RHV | F9: 554 | G9: 516 | H9: 504 | I9: 500 | J9: 474 | K9: 2548 | L9: 509.6 | M9: 254.8 | V9: 504 | Y9: 516 | Z9: 554 | AB9: 500 | AC9: 474
A10: 6 | B10: NEYRET Robert | C10: LAJ | D10: 49H00841 | E10: RHV | F10: 533 | G10: 520 | H10: 500 | I10: 427 | J10: 379 | K10: 2359 | L10: 471.8 | M10: 235.9 | W10: 427 | Y10: 533 | AB10: 500 | AC10: 520 | AE10: 379
A11: 7 | B11: DELCOMINETTE guy | C11: LIE | D11: 48H01514 | E11: RHV | F11: 581 | G11: 531 | H11: 512 | I11: 484 | J11: 126 | K11: 2234 | L11: 446.8 | M11: 223.4 | V11: 531 | W11: 484 | Y11: 581 | AB11: 512 | AC11: 126
A12: 8 | B12: FRYNS Guido | C12: ITW | D12: 59H03148 | E12: RHV | F12: 553 | G12: 500 | H12: 494 | I12: 480 | K12: 2027 | L12: 405.4 | M12: 202.7 | W12: 494 | Z12: 500 | AB12: 480 | AC12: 553
A13: 9 | B13: LEJEUNE Paul | C13: LFE | D13: 56H00919 | E13: RHV | F13: 545 | G13: 506 | H13: 476 | K13: 1527 | L13: 305.4 | M13: 152.7 | X13: 506 | Z13: 476 | AA13: 545
A14: 10 | B14: BACOT Paul (recurve) | C14: HUY | D14: 50H01459 | E14: RHV | F14: 519 | G14: 508 | H14: 480 | K14: 1507 | L14: 301.4 | M14: 150.7 | Y14: 508 | AC14: 480 | AF14: 519
A15: 11 | B15: BARBIEUX Romain | C15: CAJ | D15: 57H05709 | E15: RHV | F15: 525 | G15: 480 | H15: 465 | K15: 1470 | L15: 294 | M15: 147 | V15: 525 | AB15: 480 | AC15: 465
A16: 12 | B16: MEYER Marc | C16: GPE | D16: 59H04233 | E16: RHV | F16: 624 | G16: 620 | K16: 1244 | L16: 248.8 | M16: 124.4 | Z16: 620 | AD16: 624
A17: 13 | B17: DEGHAYE Pierre | C17: ACM | D17: 55H01808 | E17: RHV | F17: 597 | G17: 345 | K17: 942 | L17: 188.4 | M17: 94.2 | V17: 597 | W17: 345
A18: 14 | B18: LIBERT Marc | C18: ACG | D18: 60H06362 | E18: RHV | F18: 485 | G18: 435 | K18: 920 | L18: 184 | M18: 92 | AB18: 435 | AF18: 485
A19: 15 | B19: FIORA Joel | C19: SSK | D19: 57H00342 | E19: RHV | F19: 634 | K19: 634 | L19: 126.8 | M19: 63.4 | AD19: 634
A20: 16 | B20: LEJOLY Daniel | C20: LIE | D20: 61H01549 | E20: RHV | F20: 622 | K20: 622 | L20: 124.4 | M20: 62.2 | W20: 622
A21: 17 | B21: NATALIS Joseph | C21: CAJ | D21: 42H01967 | E21: RHV | F21: 575 | K21: 575 | L21: 115 | M21: 57.5 | V21: 575
A22: 18 | B22: METDEPENNINGEN Luc | C22: MDY | D22: 59H02050 | E22: RHV | F22: 487 | K22: 487 | L22: 97.4 | M22: 48.7 | AB22: 487
A23: 19 | B23: DEPROOST Michel | C23: SSK | E23: RHV | F23: 487 | K23: 487 | L23: 97.4 | M23: 48.7 | AC23: 487
A24: 20 | B24: DE BON Pierre | C24: LFE | D24: 57H03719 | E24: RHV | F24: 470 | K24: 470 | L24: 94 | M24: 47 | AA24: 470
A25: 21 | B25: X | E25: RHV | K25: 0 | L25: 0 | M25: 0
A26: 22 | B26: X1 | E26: RHV | K26: 0 | L26: 0 | M26: 0
A27: 23 | B27: D'HEUR Michel | C27: FAO | D27: 46H00532 | E27: RHV | K27: 0 | L27: 0 | M27: 0
A28: 24 | B28: FOURNIER Gérard | C28: BTS | D28: 55H02754 | E28: RHV | K28: 0 | L28: 0 | M28: 0
A29: 25 | B29: VANDEN BOGGAARR Marc | C29: ABA | D29: 57H00558 | E29: RHV | K29: 0 | L29: 0 | M29: 0
A30: 26 | B30: WIGGELEER Patrick | C30: GSR | D30: 56H00096 | E30: RHV | K30: 0 | L30: 0 | M30: 0
A31: 27 | B31: PENA Victor | C31: CTH | D31: 54H01714 | E31: RHV | K31: 0 | L31: 0 | M31: 0
A32: 28 | B32: GRAVAR Pierre | C32: ECA | D32: 52H01303 | E32: RHV | K32: 0 | L32: 0 | M32: 0
A33: 29 | B33: DELNATTE Georges | C33: LIE | D33: 58H02914 | E33: RHV | K33: 0 | L33: 0 | M33: 0
A34: 30 | B34: PETRUS Gus | C34: GAU | D34: 54H00363 | E34: RHV | K34: 0 | L34: 0 | M34: 0
A35: 31 | B35: RANDLE Daniel | C35: CMA | D35: 47H00700 | E35: RHV | K35: 0 | L35: 0 | M35: 0
A36: 32 | B36: NOSSENT Christian | C36: SSK | D36: 53H00269 | E36: RHV | K36: 0 | L36: 0 | M36: 0
A37: 33 | B37: LUCAS André (recurve) | C37: SSC | D37: 55H01262 | E37: RHV | K37: =SUM(F37:J37) -> 0 | L37: =K37/5 -> 0 | M37: =L37/2 -> 0
A38: 34 | B38: DURIEUX Marc | C38: SSC | D38: 57H01263 | E38: RHV | K38: 0 | L38: 0 | M38: 0
A39: 35 | B39: ANTOINE Pol | C39: GAU | E39: RHV | K39: 0 | L39: 0 | M39: 0
A40: 36 | B40: STAINIER Robert | C40: ABA | D40: 46H00639 | E40: RHV | K40: 0 | L40: 0 | M40: 0
A41: 37 | B41: CHABEAU Andre | C41: MDY | D41: 57H03240 | E41: RHV | K41: 0 | L41: 0 | M41: 0
A42: 38 | B42: GESSA Stefano | C42: CAM | D42: 45H01355 | E42: RHV | K42: 0 | L42: 0 | M42: 0
A43: 39 | B43: VANDERVELDEN Daniel | C43: HUY | D43: 51H02731 | E43: RHV | K43: 0 | L43: 0 | M43: 0
A44: 40 | B44: VANMEENEN Philippe | C44: FBG | D44: 57H03948 | E44: RHV | K44: 0 | L44: 0 | M44: 0
A45: 41 | B45: PIETTE Alain | C45: FBG | D45: 54H03645 | E45: RHV | K45: 0 | L45: 0 | M45: 0
A46: 42 | B46: RENARD René | C46: SSK | E46: RHV | K46: 0 | L46: 0 | M46: 0
A47: 43 | B47: DE GREEF Jean | C47: SSK | D47: 46H00331 | E47: RHV | K47: 0 | L47: 0 | M47: 0
A48: 44 | B48: BOEVER Pierre | C48: TAB | D48: 56H02663 | E48: RHV | K48: 0 | L48: 0 | M48: 0
A49: 45 | B49: FASSOTTE Charly | C49: CTH | D49: 46H01723 | E49: RHV | K49: 0 | L49: 0 | M49: 0
A50: 46 | B50: RENNEAU Jean-Noel | C50: ADS | D50: 59H02001 | E50: RHV | K50: 0 | L50: 0 | M50: 0
A51: 47 | B51: REIBER Guy | C51: GSR | D51: 46H00175 | E51: RHV | K51: 0 | L51: 0 | M51: 0
A52: 48 | B52: THEYS Marc | C52: LFU | D52: 56H04345 | E52: RHV | K52: 0 | L52: 0 | M52: 0
A53: 49 | B53: VANDENBERGHE Daniel | C53: CAB | D53: 51H02731 | E53: RHV | K53: 0 | L53: 0 | M53: 0
A54: 50 | B54: DEBATY Dominique | C54: GAU | E54: RHV | K54: 0 | L54: 0 | M54: 0
A55: 51 | B55: MAQUET Gilbert (recurve) | C55: ACF | D55: 53H02240 | E55: RHV | K55: 0 | L55: 0 | M55: 0
A56: 52 | B56: MAQUET Gilbert (recurve) | C56: ACF | D56: 53H02240 | E56: RHV | K56: 0 | L56: 0 | M56: 0
C59: La macro est déclenchée par toute entrée d'une valeur dans le tableau N5:BW20 (modifier le plage si nécessaire dans la macro)
A71: =IF(B71<>"",A70+1,"") -> 
A72: =IF(B72<>"",A71+1,"") -> 
A73: =IF(B73<>"",A72+1,"") -> 
A74: =IF(B74<>"",A73+1,"") -> 

Sheet 25M2024
B3: Nom | C3: Club | D3: Matricule | E3: Cat. | F3: Tir 1 | G3: Tir 2 | H3: Tir 3 | I3: Tir 4 | J3: Tir 5 | K3: Total | L3: M/600 | M3: M/300 | S3: PAC | T3: GAU | U3: ANT | V3: ITW | W3: LIE | X3: ANT | Y3: BTS | Z3: CEN | AA3: ANT | AB3: CAS | AC3: HAC | AD3: GAU | AE3: LIE | AF3: ACG | AG3: CMA | AH3: LAC | AI3: RCM | AJ3: MDY | AK3: ECA | AL3: FGV | AM3: GSR | AN3: LIE | AO3: BTS | AP3: FOA
A5: 1 | B5: OLBRECHTS Pierre | C5: LAJ | D5: 56H00822 | E5: RHV | F5: 641 | G5: 625 | H5: 617 | I5: 613 | J5: 603 | K5: =SUM(F5:J5) -> 3099 | L5: =K5/5 -> 619.8 | M5: =L5/2 -> 309.9 | V5: 641 | W5: 601 | Y5: 625 | Z5: 613 | AB5: 602 | AC5: 617 | AE5: 603
A6: =IF(B6<>"",A5+1,"") -> 2 | B6: PIERRE Auguste | C6: CAJ | D6: 56H04788 | E6: RHV | F6: 621 | G6: 605 | H6: 604 | I6: 600 | J6: 598 | K6: 3028 | L6: 605.6 | M6: 302.8 | Y6: 598 | Z6: 605 | AB6: 621 | AC6: 587 | AE6: 600 | AF6: 604
A7: =IF(B7<>"",A6+1,"") -> 3 | B7: SKORUPKA Guy | C7: CEN | D7: 57H01040 | E7: RHV | F7: 620 | G7: 615 | H7: 600 | I7: 598 | J7: 581 | K7: 3014 | L7: 602.8 | M7: 301.4 | Y7: 620 | Z7: 615 | AA7: 581 | AC7: 600 | AD7: 577 | AE7: 568 | AF7: 598
A8: 4 | B8: COCQUYT Francis | C8: ACM | D8: 60H01688 | E8: RHV | F8: 602 | G8: 592 | H8: 573 | I8: 537 | J8: 269 | K8: 2573 | L8: 514.6 | M8: 257.3 | V8: 573 | W8: 269 | AB8: 537 | AC8: 602 | AF8: 592
A9: 5 | B9: PETRONS Joel | C9: LFU | D9: 49H00899 | E9: RHV | F9: 554 | G9: 516 | H9: 504 | I9: 500 | J9: 474 | K9: 2548 | L9: 509.6 | M9: 254.8 | V9: 504 | Y9: 516 | Z9: 554 | AB9: 500 | AC9: 474
A10: 6 | B10: NEYRET Robert | C10: LAJ | D10: 49H00841 | E10: RHV | F10: 533 | G10: 520 | H10: 500 | I10: 427 | J10: 379 | K10: 2359 | L10: 471.8 | M10: 235.9 | W10: 427 | Y10: 533 | AB10: 500 | AC10: 520 | AE10: 379
A11: 7 | B11: DELCOMINETTE guy | C11: LIE | D11: 48H01514 | E11: RHV | F11: 581 | G11: 531 | H11: 512 | I11: 484 | J11: 126 | K11: 2234 | L11: 446.8 | M11: 223.4 | V11: 531 | W11: 484 | Y11: 581 | AB11: 512 | AC11: 126
A12: 8 | B12: FRYNS Guido | C12: ITW | D12: 59H03148 | E12: RHV | F12: 553 | G12: 500 | H12: 494 | I12: 480 | K12: 2027 | L12: 405.4 | M12: 202.7 | W12: 494 | Z12: 500 | AB12: 480 | AC12: 553
A13: 9 | B13: LEJEUNE Paul | C13: LFE | D13: 56H00919 | E13: RHV | F13: 545 | G13: 506 | H13: 476 | K13: 1527 | L13: 305.4 | M13: 152.7 | X13: 506 | Z13: 476 | AA13: 545
A14: 10 | B14: BACOT Paul (recurve) | C14: HUY | D14: 50H01459 | E14: RHV | F14: 519 | G14: 508 | H14: 480 | K14: 1507 | L14: 301.4 | M14: 150.7 | Y14: 508 | AC14: 480 | AF14: 519
A15: 11 | B15: BARBIEUX Romain | C15: CAJ | D15: 57H05709 | E15: RHV | F15: 525 | G15: 480 | H15: 465 | K15: 1470 | L15: 294 | M15: 147 | V15: 525 | AB15: 480 | AC15: 465
A16: 12 | B16: MEYER Marc | C16: GPE | D16: 59H04233 | E16: RHV | F16: 624 | G16: 620 | K16: 1244 | L16: 248.8 | M16: 124.4 | Z16: 620 | AD16: 624
A17: 13 | B17: DEGHAYE Pierre | C17: ACM | D17: 55H01808 | E17: RHV | F17: 597 | G17: 345 | K17: 942 | L17: 188.4 | M17: 94.2 | V17: 597 | W17: 345
A18: 14 | B18: LIBERT Marc | C18: ACG | D18: 60H06362 | E18: RHV | F18: 485 | G18: 435 | K18: 920 | L18: 184 | M18: 92 | AB18: 435 | AF18: 485
A19: 15 | B19: FIORA Joel | C19: SSK | D19: 57H00342 | E19: RHV | F19: 634 | K19: 634 | L19: 126.8 | M19: 63.4 | AD19: 634
A20: 16 | B20: LEJOLY Daniel | C20: LIE | D20: 61H01549 | E20: RHV | F20: 622 | K20: 622 | L20: 124.4 | M20: 62.2 | W20: 622
A21: 17 | B21: NATALIS Joseph | C21: CAJ | D21: 42H01967 | E21: RHV | F21: 575 | K21: 575 | L21: 115 | M21: 57.5 | V21: 575
A22: 18 | B22: METDEPENNINGEN Luc | C22: MDY | D22: 59H02050 | E22: RHV | F22: 487 | K22: 487 | L22: 97.4 | M22: 48.7 | AB22: 487
A23: 19 | B23: DEPROOST Michel | C23: SSK | E23: RHV | F23: 487 | K23: 487 | L23: 97.4 | M23: 48.7 | AC23: 487
A24: 20 | B24: DE BON Pierre | C24: LFE | D24: 57H03719 | E24: RHV | F24: 470 | K24: 470 | L24: 94 | M24: 47 | AA24: 470
A25: 21 | B25: X1 | E25: RHV | K25: 0 | L25: 0 | M25: 0
A26: 22 | B26: D'HEUR Michel | C26: FAO | D26: 46H00532 | E26: RHV | K26: 0 | L26: 0 | M26: 0
A27: 23 | B27: FOURNIER Gérard | C27: BTS | D27: 55H02754 | E27: RHV | K27: 0 | L27: 0 | M27: 0
A28: 24 | B28: X | E28: RHV | K28: 0 | L28: 0 | M28: 0
A29: 25 | B29: VANDEN BOGGAARR Marc | C29: ABA | D29: 57H00558 | E29: RHV | K29: 0 | L29: 0 | M29: 0
A30: 26 | B30: WIGGELEER Patrick | C30: GSR | D30: 56H00096 | E30: RHV | K30: 0 | L30: 0 | M30: 0
A31: 27 | B31: PENA Victor | C31: CTH | D31: 54H01714 | E31: RHV | K31: 0 | L31: 0 | M31: 0
A32: 28 | B32: GRAVAR Pierre | C32: ECA | D32: 52H01303 | E32: RHV | K32: 0 | L32: 0 | M32: 0
A33: 29 | B33: DELNATTE Georges | C33: LIE | D33: 58H02914 | E33: RHV | K33: 0 | L33: 0 | M33: 0
A34: 30 | B34: PETRUS Gus | C34: GAU | D34: 54H00363 | E34: RHV | K34: 0 | L34: 0 | M34: 0
A35: 31 | B35: RANDLE Daniel | C35: CMA | D35: 47H00700 | E35: RHV | K35: 0 | L35: 0 | M35: 0
A36: 32 | B36: NOSSENT Christian | C36: SSK | D36: 53H00269 | E36: RHV | K36: 0 | L36: 0 | M36: 0
A37: 33 | B37: LUCAS André (recurve) | C37: SSC | D37: 55H01262 | E37: RHV | K37: =SUM(F37:J37) -> 0 | L37: =K37/5 -> 0 | M37: =L37/2 -> 0
A38: 34 | B38: DURIEUX Marc | C38: SSC | D38: 57H01263 | E38: RHV | K38: 0 | L38: 0 | M38: 0
A39: 35 | B39: ANTOINE Pol | C39: GAU | E39: RHV | K39: 0 | L39: 0 | M39: 0
A40: 36 | B40: STAINIER Robert | C40: ABA | D40: 46H00639 | E40: RHV | K40: 0 | L40: 0 | M40: 0
A41: 37 | B41: CHABEAU Andre | C41: MDY | D41: 57H03240 | E41: RHV | K41: 0 | L41: 0 | M41: 0
A42: 38 | B42: GESSA Stefano | C42: CAM | D42: 45H01355 | E42: RHV | K42: 0 | L42: 0 | M42: 0
A43: 39 | B43: VANDERVELDEN Daniel | C43: HUY | D43: 51H02731 | E43: RHV | K43: 0 | L43: 0 | M43: 0
A44: 40 | B44: VANMEENEN Philippe | C44: FBG | D44: 57H03948 | E44: RHV | K44: 0 | L44: 0 | M44: 0
A45: 41 | B45: PIETTE Alain | C45: FBG | D45: 54H03645 | E45: RHV | K45: 0 | L45: 0 | M45: 0
A46: 42 | B46: RENARD René | C46: SSK | E46: RHV | K46: 0 | L46: 0 | M46: 0
A47: 43 | B47: DE GREEF Jean | C47: SSK | D47: 46H00331 | E47: RHV | K47: 0 | L47: 0 | M47: 0
A48: 44 | B48: BOEVER Pierre | C48: TAB | D48: 56H02663 | E48: RHV | K48: 0 | L48: 0 | M48: 0
A49: 45 | B49: FASSOTTE Charly | C49: CTH | D49: 46H01723 | E49: RHV | K49: 0 | L49: 0 | M49: 0
A50: 46 | B50: RENNEAU Jean-Noel | C50: ADS | D50: 59H02001 | E50: RHV | K50: 0 | L50: 0 | M50: 0
A51: 47 | B51: REIBER Guy | C51: GSR | D51: 46H00175 | E51: RHV | K51: 0 | L51: 0 | M51: 0
A52: 48 | B52: THEYS Marc | C52: LFU | D52: 56H04345 | E52: RHV | K52: 0 | L52: 0 | M52: 0
A53: 49 | B53: VANDENBERGHE Daniel | C53: CAB | D53: 51H02731 | E53: RHV | K53: 0 | L53: 0 | M53: 0
A54: 50 | B54: DEBATY Dominique | C54: GAU | E54: RHV | K54: 0 | L54: 0 | M54: 0
A55: 51 | B55: MAQUET Gilbert (recurve) | C55: ACF | D55: 53H02240 | E55: RHV | K55: 0 | L55: 0 | M55: 0
A56: 52 | B56: MAQUET Gilbert (recurve) | C56: ACF | D56: 53H02240 | E56: RHV | K56: 0 | L56: 0 | M56: 0
C59: La macro est déclenchée par toute entrée d'une valeur dans le tableau N5:BW20 (modifier le plage si nécessaire dans la macro)
A71: =IF(B71<>"",A70+1,"") -> 
A72: =IF(B72<>"",A71+1,"") -> 
A73: =IF(B73<>"",A72+1,"") -> 
A74: =IF(B74<>"",A73+1,"") -> 

Sheet 25M2025
B3: Nom | C3: Club | D3: Matricule | E3: Cat. | F3: Tir 1 | G3: Tir 2 | H3: Tir 3 | I3: Tir 4 | J3: Tir 5 | K3: Total | L3: M/600 | M3: M/300 | S3: PAC | T3: GAU | U3: ANT | V3: ITW | W3: LIE | X3: ANT | Y3: BTS | Z3: CEN | AA3: ANT | AB3: CAS | AC3: HAC | AD3: GAU | AE3: LIE | AF3: ACG | AG3: CMA | AH3: LAC | AI3: RCM | AJ3: MDY | AK3: ECA | AL3: FGV | AM3: GSR | AN3: LIE | AO3: BTS | AP3: FOA
A5: =IF(B5<>"",A4+1,"") -> 1 | B5: OLBRECHTS Pierre | C5: LAJ | D5: 56H00822 | E5: RHV | F5: 641 | G5: 625 | H5: 617 | I5: 613 | J5: 603 | K5: =SUM(F5:J5) -> 3099 | L5: =K5/5 -> 619.8 | M5: =L5/2 -> 309.9 | V5: 641 | W5: 601 | Y5: 625 | Z5: 613 | AB5: 602 | AC5: 617 | AE5: 603
A6: 2 | B6: PIERRE Auguste | C6: CAJ | D6: 56H04788 | E6: RHV | F6: 621 | G6: 605 | H6: 604 | I6: 600 | J6: 598 | K6: 3028 | L6: 605.6 | M6: 302.8 | Y6: 598 | Z6: 605 | AB6: 621 | AC6: 587 | AE6: 600 | AF6: 604
A7: 3 | B7: SKORUPKA Guy | C7: CEN | D7: 57H01040 | E7: RHV | F7: 620 | G7: 615 | H7: 600 | I7: 598 | J7: 581 | K7: 3014 | L7: 602.8 | M7: 301.4 | Y7: 620 | Z7: 615 | AA7: 581 | AC7: 600 | AD7: 577 | AE7: 568 | AF7: 598
A8: 4 | B8: COCQUYT Francis | C8: ACM | D8: 60H01688 | E8: RHV | F8: 602 | G8: 592 | H8: 573 | I8: 537 | J8: 269 | K8: 2573 | L8: 514.6 | M8: 257.3 | V8: 573 | W8: 269 | AB8: 537 | AC8: 602 | AF8: 592
A9: 5 | B9: PETRONS Joel | C9: LFU | D9: 49H00899 | E9: RHV | F9: 554 | G9: 516 | H9: 504 | I9: 500 | J9: 474 | K9: 2548 | L9: 509.6 | M9: 254.8 | V9: 504 | Y9: 516 | Z9: 554 | AB9: 500 | AC9: 474
A10: 6 | B10: NEYRET Robert | C10: LAJ | D10: 49H00841 | E10: RHV | F10: 533 | G10: 520 | H10: 500 | I10: 427 | J10: 379 | K10: 2359 | L10: 471.8 | M10: 235.9 | W10: 427 | Y10: 533 | AB10: 500 | AC10: 520 | AE10: 379
A11: 7 | B11: DELCOMINETTE guy | C11: LIE | D11: 48H01514 | E11: RHV | F11: 581 | G11: 531 | H11: 512 | I11: 484 | J11: 126 | K11: 2234 | L11: 446.8 | M11: 223.4 | V11: 531 | W11: 484 | Y11: 581 | AB11: 512 | AC11: 126
A12: 8 | B12: FRYNS Guido | C12: ITW | D12: 59H03148 | E12: RHV | F12: 553 | G12: 500 | H12: 494 | I12: 480 | K12: 2027 | L12: 405.4 | M12: 202.7 | W12: 494 | Z12: 500 | AB12: 480 | AC12: 553
A13: 9 | B13: LEJEUNE Paul | C13: LFE | D13: 56H00919 | E13: RHV | F13: 545 | G13: 506 | H13: 476 | K13: 1527 | L13: 305.4 | M13: 152.7 | X13: 506 | Z13: 476 | AA13: 545
A14: 10 | B14: BACOT Paul (recurve) | C14: HUY | D14: 50H01459 | E14: RHV | F14: 519 | G14: 508 | H14: 480 | K14: 1507 | L14: 301.4 | M14: 150.7 | Y14: 508 | AC14: 480 | AF14: 519
A15: 11 | B15: BARBIEUX Romain | C15: CAJ | D15: 57H05709 | E15: RHV | F15: 525 | G15: 480 | H15: 465 | K15: 1470 | L15: 294 | M15: 147 | V15: 525 | AB15: 480 | AC15: 465
A16: 12 | B16: MEYER Marc | C16: GPE | D16: 59H04233 | E16: RHV | F16: 624 | G16: 620 | K16: 1244 | L16: 248.8 | M16: 124.4 | Z16: 620 | AD16: 624
A17: 13 | B17: DEGHAYE Pierre | C17: ACM | D17: 55H01808 | E17: RHV | F17: 597 | G17: 345 | K17: 942 | L17: 188.4 | M17: 94.2 | V17: 597 | W17: 345
A18: 14 | B18: LIBERT Marc | C18: ACG | D18: 60H06362 | E18: RHV | F18: 485 | G18: 435 | K18: 920 | L18: 184 | M18: 92 | AB18: 435 | AF18: 485
A19: 15 | B19: FIORA Joel | C19: SSK | D19: 57H00342 | E19: RHV | F19: 634 | K19: 634 | L19: 126.8 | M19: 63.4 | AD19: 634
A20: 16 | B20: LEJOLY Daniel | C20: LIE | D20: 61H01549 | E20: RHV | F20: 622 | K20: 622 | L20: 124.4 | M20: 62.2 | W20: 622
A21: 17 | B21: NATALIS Joseph | C21: CAJ | D21: 42H01967 | E21: RHV | F21: 575 | K21: 575 | L21: 115 | M21: 57.5 | V21: 575
A22: 18 | B22: METDEPENNINGEN Luc | C22: MDY | D22: 59H02050 | E22: RHV | F22: 487 | K22: 487 | L22: 97.4 | M22: 48.7 | AB22: 487
A23: 19 | B23: DEPROOST Michel | C23: SSK | E23: RHV | F23: 487 | K23: 487 | L23: 97.4 | M23: 48.7 | AC23: 487
A24: 20 | B24: DE BON Pierre | C24: LFE | D24: 57H03719 | E24: RHV | F24: 470 | K24: 470 | L24: 94 | M24: 47 | AA24: 470
A25: 21 | B25: X1 | E25: RHV | K25: 0 | L25: 0 | M25: 0
A26: 22 | B26: D'HEUR Michel | C26: FAO | D26: 46H00532 | E26: RHV | K26: 0 | L26: 0 | M26: 0
A27: 23 | B27: FOURNIER Gérard | C27: BTS | D27: 55H02754 | E27: RHV | K27: 0 | L27: 0 | M27: 0
A28: 24 | B28: X | E28: RHV | K28: 0 | L28: 0 | M28: 0
A29: 25 | B29: VANDEN BOGGAARR Marc | C29: ABA | D29: 57H00558 | E29: RHV | K29: 0 | L29: 0 | M29: 0
A30: 26 | B30: WIGGELEER Patrick | C30: GSR | D30: 56H00096 | E30: RHV | K30: 0 | L30: 0 | M30: 0
A31: 27 | B31: PENA Victor | C31: CTH | D31: 54H01714 | E31: RHV | K31: 0 | L31: 0 | M31: 0
A32: 28 | B32: GRAVAR Pierre | C32: ECA | D32: 52H01303 | E32: RHV | K32: 0 | L32: 0 | M32: 0
A33: 29 | B33: DELNATTE Georges | C33: LIE | D33: 58H02914 | E33: RHV | K33: 0 | L33: 0 | M33: 0
A34: 30 | B34: PETRUS Gus | C34: GAU | D34: 54H00363 | E34: RHV | K34: 0 | L34: 0 | M34: 0
A35: 31 | B35: RANDLE Daniel | C35: CMA | D35: 47H00700 | E35: RHV | K35: 0 | L35: 0 | M35: 0
A36: 32 | B36: NOSSENT Christian | C36: SSK | D36: 53H00269 | E36: RHV | K36: 0 | L36: 0 | M36: 0
A37: 1 | B37: LUCAS André (recurve) | C37: SSC | D37: 55H01262 | E37: RHV | K37: =SUM(F37:J37) -> 0 | L37: =K37/5 -> 0 | M37: =L37/2 -> 0
A38: =IF(B38<>"",A37+1,"") -> 2 | B38: DURIEUX Marc | C38: SSC | D38: 57H01263 | E38: RHV | K38: 0 | L38: 0 | M38: 0
A39: 3 | B39: ANTOINE Pol | C39: GAU | E39: RHV | K39: 0 | L39: 0 | M39: 0
A40: 4 | B40: STAINIER Robert | C40: ABA | D40: 46H00639 | E40: RHV | K40: 0 | L40: 0 | M40: 0
A41: 5 | B41: CHABEAU Andre | C41: MDY | D41: 57H03240 | E41: RHV | K41: 0 | L41: 0 | M41: 0
A42: 6 | B42: GESSA Stefano | C42: CAM | D42: 45H01355 | E42: RHV | K42: 0 | L42: 0 | M42: 0
A43: 7 | B43: VANDERVELDEN Daniel | C43: HUY | D43: 51H02731 | E43: RHV | K43: 0 | L43: 0 | M43: 0
A44: 8 | B44: VANMEENEN Philippe | C44: FBG | D44: 57H03948 | E44: RHV | K44: 0 | L44: 0 | M44: 0
A45: 9 | B45: PIETTE Alain | C45: FBG | D45: 54H03645 | E45: RHV | K45: 0 | L45: 0 | M45: 0
A46: 10 | B46: RENARD René | C46: SSK | E46: RHV | K46: 0 | L46: 0 | M46: 0
A47: 11 | B47: DE GREEF Jean | C47: SSK | D47: 46H00331 | E47: RHV | K47: 0 | L47: 0 | M47: 0
A48: 12 | B48: BOEVER Pierre | C48: TAB | D48: 56H02663 | E48: RHV | K48: 0 | L48: 0 | M48: 0
A49: 13 | B49: FASSOTTE Charly | C49: CTH | D49: 46H01723 | E49: RHV | K49: 0 | L49: 0 | M49: 0
A50: 14 | B50: RENNEAU Jean-Noel | C50: ADS | D50: 59H02001 | E50: RHV | K50: 0 | L50: 0 | M50: 0
A51: 15 | B51: REIBER Guy | C51: GSR | D51: 46H00175 | E51: RHV | K51: 0 | L51: 0 | M51: 0
A52: 16 | B52: THEYS Marc | C52: LFU | D52: 56H04345 | E52: RHV | K52: 0 | L52: 0 | M52: 0
A53: 17 | B53: VANDENBERGHE Daniel | C53: CAB | D53: 51H02731 | E53: RHV | K53: 0 | L53: 0 | M53: 0
A54: 18 | B54: DEBATY Dominique | C54: GAU | E54: RHV | K54: 0 | L54: 0 | M54: 0
A55: 19 | B55: MAQUET Gilbert (recurve) | C55: ACF | D55: 53H02240 | E55: RHV | K55: 0 | L55: 0 | M55: 0
A56: 20 | B56: MAQUET Gilbert (recurve) | C56: ACF | D56: 53H02240 | E56: RHV | K56: 0 | L56: 0 | M56: 0
D100: La macro est déclenchée par toute entrée d'une valeur dans le tableau N5:BW20 (modifier le plage si nécessaire dans la macro)

Sheet 25M2026
B3: Nom | C3: Club | D3: Matricule | E3: Cat. | F3: Tir 1 | G3: Tir 2 | H3: Tir 3 | I3: Tir 4 | J3: Tir 5 | K3: Total | L3: M/600 | M3: M/300 | S3: PAC | T3: GAU | U3: ANT | V3: ITW | W3: LIE | X3: ANT | Y3: BTS | Z3: CEN | AA3: ANT | AB3: CAS | AC3: HAC | AD3: GAU | AE3: LIE | AF3: ACG | AG3: CMA | AH3: LAC | AI3: RCM | AJ3: MDY | AK3: ECA | AL3: FGV | AM3: GSR | AN3: LIE | AO3: BTS | AP3: FOA
A5: 1 | B5: OLBRECHTS Pierre | C5: LAJ | D5: 56H00822 | E5: RHV | F5: 641 | G5: 625 | H5: 617 | I5: 613 | J5: 603 | K5: =SUM(F5:J5) -> 3099 | L5: =K5/5 -> 619.8 | M5: =L5/2 -> 309.9 | V5: 641 | W5: 601 | Y5: 625 | Z5: 613 | AB5: 602 | AC5: 617 | AE5: 603
A6: =IF(B6<>"",A5+1,"") -> 2 | B6: PIERRE Auguste | C6: CAJ | D6: 56H04788 | E6: RHV | F6: 621 | G6: 605 | H6: 604 | I6: 600 | J6: 598 | K6: 3028 | L6: 605.6 | M6: 302.8 | Y6: 598 | Z6: 605 | AB6: 621 | AC6: 587 | AE6: 600 | AF6: 604
A7: =IF(B7<>"",A6+1,"") -> 3 | B7: SKORUPKA Guy | C7: CEN | D7: 57H01040 | E7: RHV | F7: 620 | G7: 615 | H7: 600 | I7: 598 | J7: 581 | K7: 3014 | L7: 602.8 | M7: 301.4 | Y7: 620 | Z7: 615 | AA7: 581 | AC7: 600 | AD7: 577 | AE7: 568 | AF7: 598
A8: 4 | B8: COCQUYT Francis | C8: ACM | D8: 60H01688 | E8: RHV | F8: 602 | G8: 592 | H8: 573 | I8: 537 | J8: 269 | K8: 2573 | L8: 514.6 | M8: 257.3 | V8: 573 | W8: 269 | AB8: 537 | AC8: 602 | AF8: 592
A9: 5 | B9: PETRONS Joel | C9: LFU | D9: 49H00899 | E9: RHV | F9: 554 | G9: 516 | H9: 504 | I9: 500 | J9: 474 | K9: 2548 | L9: 509.6 | M9: 254.8 | V9: 504 | Y9: 516 | Z9: 554 | AB9: 500 | AC9: 474
A10: 6 | B10: NEYRET Robert | C10: LAJ | D10: 49H00841 | E10: RHV | F10: 533 | G10: 520 | H10: 500 | I10: 427 | J10: 379 | K10: 2359 | L10: 471.8 | M10: 235.9 | W10: 427 | Y10: 533 | AB10: 500 | AC10: 520 | AE10: 379
A11: 7 | B11: DELCOMINETTE guy | C11: LIE | D11: 48H01514 | E11: RHV | F11: 581 | G11: 531 | H11: 512 | I11: 484 | J11: 126 | K11: 2234 | L11: 446.8 | M11: 223.4 | V11: 531 | W11: 484 | Y11: 581 | AB11: 512 | AC11: 126
A12: 8 | B12: FRYNS Guido | C12: ITW | D12: 59H03148 | E12: RHV | F12: 553 | G12: 500 | H12: 494 | I12: 480 | K12: 2027 | L12: 405.4 | M12: 202.7 | W12: 494 | Z12: 500 | AB12: 480 | AC12: 553
A13: 9 | B13: LEJEUNE Paul | C13: LFE | D13: 56H00919 | E13: RHV | F13: 545 | G13: 506 | H13: 476 | K13: 1527 | L13: 305.4 | M13: 152.7 | X13: 506 | Z13: 476 | AA13: 545
A14: 10 | B14: BACOT Paul (recurve) | C14: HUY | D14: 50H01459 | E14: RHV | F14: 519 | G14: 508 | H14: 480 | K14: 1507 | L14: 301.4 | M14: 150.7 | Y14: 508 | AC14: 480 | AF14: 519
A15: 11 | B15: BARBIEUX Romain | C15: CAJ | D15: 57H05709 | E15: RHV | F15: 525 | G15: 480 | H15: 465 | K15: 1470 | L15: 294 | M15: 147 | V15: 525 | AB15: 480 | AC15: 465
A16: 12 | B16: MEYER Marc | C16: GPE | D16: 59H04233 | E16: RHV | F16: 624 | G16: 620 | K16: 1244 | L16: 248.8 | M16: 124.4 | Z16: 620 | AD16: 624
A17: 13 | B17: DEGHAYE Pierre | C17: ACM | D17: 55H01808 | E17: RHV | F17: 597 | G17: 345 | K17: 942 | L17: 188.4 | M17: 94.2 | V17: 597 | W17: 345
A18: 14 | B18: LIBERT Marc | C18: ACG | D18: 60H06362 | E18: RHV | F18: 485 | G18: 435 | K18: 920 | L18: 184 | M18: 92 | AB18: 435 | AF18: 485
A19: 15 | B19: FIORA Joel | C19: SSK | D19: 57H00342 | E19: RHV | F19: 634 | K19: 634 | L19: 126.8 | M19: 63.4 | AD19: 634
A20: 16 | B20: LEJOLY Daniel | C20: LIE | D20: 61H01549 | E20: RHV | F20: 622 | K20: 622 | L20: 124.4 | M20: 62.2 | W20: 622
A21: 17 | B21: NATALIS Joseph | C21: CAJ | D21: 42H01967 | E21: RHV | F21: 575 | K21: 575 | L21: 115 | M21: 57.5 | V21: 575
A22: 18 | B22: METDEPENNINGEN Luc | C22: MDY | D22: 59H02050 | E22: RHV | F22: 487 | K22: 487 | L22: 97.4 | M22: 48.7 | AB22: 487
A23: 19 | B23: DEPROOST Michel | C23: SSK | E23: RHV | F23: 487 | K23: 487 | L23: 97.4 | M23: 48.7 | AC23: 487
A24: 20 | B24: DE BON Pierre | C24: LFE | D24: 57H03719 | E24: RHV | F24: 470 | K24: 470 | L24: 94 | M24: 47 | AA24: 470
A25: 21 | B25: X1 | E25: RHV | K25: 0 | L25: 0 | M25: 0
A26: 22 | B26: D'HEUR Michel | C26: FAO | D26: 46H00532 | E26: RHV | K26: 0 | L26: 0 | M26: 0
A27: 23 | B27: FOURNIER Gérard | C27: BTS | D27: 55H02754 | E27: RHV | K27: 0 | L27: 0 | M27: 0
A28: 24 | B28: X | E28: RHV | K28: 0 | L28: 0 | M28: 0
A29: 25 | B29: VANDEN BOGGAARR Marc | C29: ABA | D29: 57H00558 | E29: RHV | K29: 0 | L29: 0 | M29: 0
A30: 26 | B30: WIGGELEER Patrick | C30: GSR | D30: 56H00096 | E30: RHV | K30: 0 | L30: 0 | M30: 0
A31: 27 | B31: PENA Victor | C31: CTH | D31: 54H01714 | E31: RHV | K31: 0 | L31: 0 | M31: 0
A32: 28 | B32: GRAVAR Pierre | C32: ECA | D32: 52H01303 | E32: RHV | K32: 0 | L32: 0 | M32: 0
A33: 29 | B33: DELNATTE Georges | C33: LIE | D33: 58H02914 | E33: RHV | K33: 0 | L33: 0 | M33: 0
A34: 30 | B34: PETRUS Gus | C34: GAU | D34: 54H00363 | E34: RHV | K34: 0 | L34: 0 | M34: 0
A35: 31 | B35: RANDLE Daniel | C35: CMA | D35: 47H00700 | E35: RHV | K35: 0 | L35: 0 | M35: 0
A36: 32 | B36: NOSSENT Christian | C36: SSK | D36: 53H00269 | E36: RHV | K36: 0 | L36: 0 | M36: 0
A37: 33 | B37: LUCAS André (recurve) | C37: SSC | D37: 55H01262 | E37: RHV | K37: =SUM(F37:J37) -> 0 | L37: =K37/5 -> 0 | M37: =L37/2 -> 0
A38: 34 | B38: DURIEUX Marc | C38: SSC | D38: 57H01263 | E38: RHV | K38: 0 | L38: 0 | M38: 0
A39: 35 | B39: ANTOINE Pol | C39: GAU | E39: RHV | K39: 0 | L39: 0 | M39: 0
A40: 36 | B40: STAINIER Robert | C40: ABA | D40: 46H00639 | E40: RHV | K40: 0 | L40: 0 | M40: 0
A41: 37 | B41: CHABEAU Andre | C41: MDY | D41: 57H03240 | E41: RHV | K41: 0 | L41: 0 | M41: 0
A42: 38 | B42: GESSA Stefano | C42: CAM | D42: 45H01355 | E42: RHV | K42: 0 | L42: 0 | M42: 0
A43: 39 | B43: VANDERVELDEN Daniel | C43: HUY | D43: 51H02731 | E43: RHV | K43: 0 | L43: 0 | M43: 0
A44: 40 | B44: VANMEENEN Philippe | C44: FBG | D44: 57H03948 | E44: RHV | K44: 0 | L44: 0 | M44: 0
A45: 41 | B45: PIETTE Alain | C45: FBG | D45: 54H03645 | E45: RHV | K45: 0 | L45: 0 | M45: 0
A46: 42 | B46: RENARD René | C46: SSK | E46: RHV | K46: 0 | L46: 0 | M46: 0
A47: 43 | B47: DE GREEF Jean | C47: SSK | D47: 46H00331 | E47: RHV | K47: 0 | L47: 0 | M47: 0
A48: 44 | B48: BOEVER Pierre | C48: TAB | D48: 56H02663 | E48: RHV | K48: 0 | L48: 0 | M48: 0
A49: 45 | B49: FASSOTTE Charly | C49: CTH | D49: 46H01723 | E49: RHV | K49: 0 | L49: 0 | M49: 0
A50: 46 | B50: RENNEAU Jean-Noel | C50: ADS | D50: 59H02001 | E50: RHV | K50: 0 | L50: 0 | M50: 0
A51: 47 | B51: REIBER Guy | C51: GSR | D51: 46H00175 | E51: RHV | K51: 0 | L51: 0 | M51: 0
A52: 48 | B52: THEYS Marc | C52: LFU | D52: 56H04345 | E52: RHV | K52: 0 | L52: 0 | M52: 0
A53: 49 | B53: VANDENBERGHE Daniel | C53: CAB | D53: 51H02731 | E53: RHV | K53: 0 | L53: 0 | M53: 0
A54: 50 | B54: DEBATY Dominique | C54: GAU | E54: RHV | K54: 0 | L54: 0 | M54: 0
A55: 51 | B55: MAQUET Gilbert (recurve) | C55: ACF | D55: 53H02240 | E55: RHV | K55: 0 | L55: 0 | M55: 0
A56: 52 | B56: MAQUET Gilbert (recurve) | C56: ACF | D56: 53H02240 | E56: RHV | K56: 0 | L56: 0 | M56: 0
C59: La macro est déclenchée par toute entrée d'une valeur dans le tableau N5:BW20 (modifier le plage si nécessaire dans la macro)
A71: =IF(B71<>"",A70+1,"") -> 
A72: =IF(B72<>"",A71+1,"") -> 
A73: =IF(B73<>"",A72+1,"") -> 
A74: =IF(B74<>"",A73+1,"") -> 

Sheet 25M2027
B3: Nom | C3: Club | D3: Matricule | E3: Cat. | F3: Tir 1 | G3: Tir 2 | H3: Tir 3 | I3: Tir 4 | J3: Tir 5 | K3: Total | L3: M/600 | M3: M/300 | S3: PAC | T3: GAU | U3: ANT | V3: ITW | W3: LIE | X3: ANT | Y3: BTS | Z3: CEN | AA3: ANT | AB3: CAS | AC3: HAC | AD3: GAU | AE3: LIE | AF3: ACG | AG3: CMA | AH3: LAC | AI3: RCM | AJ3: MDY | AK3: ECA | AL3: FGV | AM3: GSR | AN3: LIE | AO3: BTS | AP3: FOA
A5: =IF(B5<>"",A4+1,"") -> 1 | B5: OLBRECHTS Pierre | C5: LAJ | D5: 56H00822 | E5: RHV | F5: 641 | G5: 625 | H5: 617 | I5: 613 | J5: 603 | K5: =SUM(F5:J5) -> 3099 | L5: =K5/5 -> 619.8 | M5: =L5/2 -> 309.9 | V5: 641 | W5: 601 | Y5: 625 | Z5: 613 | AB5: 602 | AC5: 617 | AE5: 603
A6: 2 | B6: PIERRE Auguste | C6: CAJ | D6: 56H04788 | E6: RHV | F6: 621 | G6: 605 | H6: 604 | I6: 600 | J6: 598 | K6: 3028 | L6: 605.6 | M6: 302.8 | Y6: 598 | Z6: 605 | AB6: 621 | AC6: 587 | AE6: 600 | AF6: 604
A7: 3 | B7: SKORUPKA Guy | C7: CEN | D7: 57H01040 | E7: RHV | F7: 620 | G7: 615 | H7: 600 | I7: 598 | J7: 581 | K7: 3014 | L7: 602.8 | M7: 301.4 | Y7: 620 | Z7: 615 | AA7: 581 | AC7: 600 | AD7: 577 | AE7: 568 | AF7: 598
A8: 4 | B8: COCQUYT Francis | C8: ACM | D8: 60H01688 | E8: RHV | F8: 602 | G8: 592 | H8: 573 | I8: 537 | J8: 269 | K8: 2573 | L8: 514.6 | M8: 257.3 | V8: 573 | W8: 269 | AB8: 537 | AC8: 602 | AF8: 592
A9: 5 | B9: PETRONS Joel | C9: LFU | D9: 49H00899 | E9: RHV | F9: 554 | G9: 516 | H9: 504 | I9: 500 | J9: 474 | K9: 2548 | L9: 509.6 | M9: 254.8 | V9: 504 | Y9: 516 | Z9: 554 | AB9: 500 | AC9: 474
A10: 6 | B10: NEYRET Robert | C10: LAJ | D10: 49H00841 | E10: RHV | F10: 533 | G10: 520 | H10: 500 | I10: 427 | J10: 379 | K10: 2359 | L10: 471.8 | M10: 235.9 | W10: 427 | Y10: 533 | AB10: 500 | AC10: 520 | AE10: 379
A11: 7 | B11: DELCOMINETTE guy | C11: LIE | D11: 48H01514 | E11: RHV | F11: 581 | G11: 531 | H11: 512 | I11: 484 | J11: 126 | K11: 2234 | L11: 446.8 | M11: 223.4 | V11: 531 | W11: 484 | Y11: 581 | AB11: 512 | AC11: 126
A12: 8 | B12: FRYNS Guido | C12: ITW | D12: 59H03148 | E12: RHV | F12: 553 | G12: 500 | H12: 494 | I12: 480 | K12: 2027 | L12: 405.4 | M12: 202.7 | W12: 494 | Z12: 500 | AB12: 480 | AC12: 553
A13: 9 | B13: LEJEUNE Paul | C13: LFE | D13: 56H00919 | E13: RHV | F13: 545 | G13: 506 | H13: 476 | K13: 1527 | L13: 305.4 | M13: 152.7 | X13: 506 | Z13: 476 | AA13: 545
A14: 10 | B14: BACOT Paul (recurve) | C14: HUY | D14: 50H01459 | E14: RHV | F14: 519 | G14: 508 | H14: 480 | K14: 1507 | L14: 301.4 | M14: 150.7 | Y14: 508 | AC14: 480 | AF14: 519
A15: 11 | B15: BARBIEUX Romain | C15: CAJ | D15: 57H05709 | E15: RHV | F15: 525 | G15: 480 | H15: 465 | K15: 1470 | L15: 294 | M15: 147 | V15: 525 | AB15: 480 | AC15: 465
A16: 12 | B16: MEYER Marc | C16: GPE | D16: 59H04233 | E16: RHV | F16: 624 | G16: 620 | K16: 1244 | L16: 248.8 | M16: 124.4 | Z16: 620 | AD16: 624
A17: 13 | B17: DEGHAYE Pierre | C17: ACM | D17: 55H01808 | E17: RHV | F17: 597 | G17: 345 | K17: 942 | L17: 188.4 | M17: 94.2 | V17: 597 | W17: 345
A18: 14 | B18: LIBERT Marc | C18: ACG | D18: 60H06362 | E18: RHV | F18: 485 | G18: 435 | K18: 920 | L18: 184 | M18: 92 | AB18: 435 | AF18: 485
A19: 15 | B19: FIORA Joel | C19: SSK | D19: 57H00342 | E19: RHV | F19: 634 | K19: 634 | L19: 126.8 | M19: 63.4 | AD19: 634
A20: 16 | B20: LEJOLY Daniel | C20: LIE | D20: 61H01549 | E20: RHV | F20: 622 | K20: 622 | L20: 124.4 | M20: 62.2 | W20: 622
A21: 17 | B21: NATALIS Joseph | C21: CAJ | D21: 42H01967 | E21: RHV | F21: 575 | K21: 575 | L21: 115 | M21: 57.5 | V21: 575
A22: 18 | B22: METDEPENNINGEN Luc | C22: MDY | D22: 59H02050 | E22: RHV | F22: 487 | K22: 487 | L22: 97.4 | M22: 48.7 | AB22: 487
A23: 19 | B23: DEPROOST Michel | C23: SSK | E23: RHV | F23: 487 | K23: 487 | L23: 97.4 | M23: 48.7 | AC23: 487
A24: 20 | B24: DE BON Pierre | C24: LFE | D24: 57H03719 | E24: RHV | F24: 470 | K24: 470 | L24: 94 | M24: 47 | AA24: 470
A25: 21 | B25: PENA Victor | C25: CTH | D25: 54H01714 | E25: RHV | K25: 0 | L25: 0 | M25: 0
A26: 22 | B26: X1 | E26: RHV | K26: 0 | L26: 0 | M26: 0
A27: 23 | B27: D'HEUR Michel | C27: FAO | D27: 46H00532 | E27: RHV | K27: 0 | L27: 0 | M27: 0
A28: 24 | B28: FOURNIER Gérard | C28: BTS | D28: 55H02754 | E28: RHV | K28: 0 | L28: 0 | M28: 0
A29: 25 | B29: X | E29: RHV | K29: 0 | L29: 0 | M29: 0
A30: 26 | B30: VANDEN BOGGAARR Marc | C30: ABA | D30: 57H00558 | E30: RHV | K30: 0 | L30: 0 | M30: 0
A31: 27 | B31: WIGGELEER Patrick | C31: GSR | D31: 56H00096 | E31: RHV | K31: 0 | L31: 0 | M31: 0
A32: 28 | B32: GRAVAR Pierre | C32: ECA | D32: 52H01303 | E32: RHV | K32: 0 | L32: 0 | M32: 0
A33: 29 | B33: DELNATTE Georges | C33: LIE | D33: 58H02914 | E33: RHV | K33: 0 | L33: 0 | M33: 0
A34: 30 | B34: PETRUS Gus | C34: GAU | D34: 54H00363 | E34: RHV | K34: 0 | L34: 0 | M34: 0
A35: 31 | B35: RANDLE Daniel | C35: CMA | D35: 47H00700 | E35: RHV | K35: 0 | L35: 0 | M35: 0
A36: 32 | B36: NOSSENT Christian | C36: SSK | D36: 53H00269 | E36: RHV | K36: 0 | L36: 0 | M36: 0
A37: 1 | B37: LUCAS André (recurve) | C37: SSC | D37: 55H01262 | E37: RHV | K37: =SUM(F37:J37) -> 0 | L37: =K37/5 -> 0 | M37: =L37/2 -> 0
A38: =IF(B38<>"",A37+1,"") -> 2 | B38: DURIEUX Marc | C38: SSC | D38: 57H01263 | E38: RHV | K38: 0 | L38: 0 | M38: 0
A39: 3 | B39: ANTOINE Pol | C39: GAU | E39: RHV | K39: 0 | L39: 0 | M39: 0
A40: 4 | B40: STAINIER Robert | C40: ABA | D40: 46H00639 | E40: RHV | K40: 0 | L40: 0 | M40: 0
A41: 5 | B41: CHABEAU Andre | C41: MDY | D41: 57H03240 | E41: RHV | K41: 0 | L41: 0 | M41: 0
A42: 6 | B42: GESSA Stefano | C42: CAM | D42: 45H01355 | E42: RHV | K42: 0 | L42: 0 | M42: 0
A43: 7 | B43: VANDERVELDEN Daniel | C43: HUY | D43: 51H02731 | E43: RHV | K43: 0 | L43: 0 | M43: 0
A44: 8 | B44: VANMEENEN Philippe | C44: FBG | D44: 57H03948 | E44: RHV | K44: 0 | L44: 0 | M44: 0
A45: 9 | B45: PIETTE Alain | C45: FBG | D45: 54H03645 | E45: RHV | K45: 0 | L45: 0 | M45: 0
A46: 10 | B46: RENARD René | C46: SSK | E46: RHV | K46: 0 | L46: 0 | M46: 0
A47: 11 | B47: DE GREEF Jean | C47: SSK | D47: 46H00331 | E47: RHV | K47: 0 | L47: 0 | M47: 0
A48: 12 | B48: BOEVER Pierre | C48: TAB | D48: 56H02663 | E48: RHV | K48: 0 | L48: 0 | M48: 0
A49: 13 | B49: FASSOTTE Charly | C49: CTH | D49: 46H01723 | E49: RHV | K49: 0 | L49: 0 | M49: 0
A50: 14 | B50: RENNEAU Jean-Noel | C50: ADS | D50: 59H02001 | E50: RHV | K50: 0 | L50: 0 | M50: 0
A51: 15 | B51: REIBER Guy | C51: GSR | D51: 46H00175 | E51: RHV | K51: 0 | L51: 0 | M51: 0
A52: 16 | B52: THEYS Marc | C52: LFU | D52: 56H04345 | E52: RHV | K52: 0 | L52: 0 | M52: 0
A53: 17 | B53: VANDENBERGHE Daniel | C53: CAB | D53: 51H02731 | E53: RHV | K53: 0 | L53: 0 | M53: 0
A54: 18 | B54: DEBATY Dominique | C54: GAU | E54: RHV | K54: 0 | L54: 0 | M54: 0
A55: 19 | B55: MAQUET Gilbert (recurve) | C55: ACF | D55: 53H02240 | E55: RHV | K55: 0 | L55: 0 | M55: 0
A56: 20 | B56: MAQUET Gilbert (recurve) | C56: ACF | D56: 53H02240 | E56: RHV | K56: 0 | L56: 0 | M56: 0
D100: La macro est déclenchée par toute entrée d'une valeur dans le tableau N5:BW20 (modifier le plage si nécessaire dans la macro)

Sheet 25Mtest
B3: Nom | C3: Club | D3: Matricule | E3: Cat. | F3: Tir 1 | G3: Tir 2 | H3: Tir 3 | I3: Tir 4 | J3: Tir 5 | K3: Total | L3: M/600 | M3: M/300 | S3: PAC | T3: GAU | U3: ANT | V3: ITW | W3: LIE | X3: ANT | Y3: BTS | Z3: CEN | AA3: ANT | AB3: CAS | AC3: HAC | AD3: GAU | AE3: LIE | AF3: ACG | AG3: CMA | AH3: LAC | AI3: RCM | AJ3: MDY | AK3: ECA | AL3: FGV | AM3: GSR | AN3: LIE | AO3: BTS | AP3: FOA
A5: =IF(B5<>"",A4+1,"") -> 1 | B5: OLBRECHTS Pierre | C5: LAJ | D5: 56H00822 | E5: RHV | F5: 641 | G5: 625 | H5: 617 | I5: 613 | J5: 603 | K5: =SUM(F5:J5) -> 3099 | L5: =K5/5 -> 619.8 | M5: =L5/2 -> 309.9 | V5: 641 | W5: 601 | Y5: 625 | Z5: 613 | AB5: 602 | AC5: 617 | AE5: 603
A6: 2 | B6: PIERRE Auguste | C6: CAJ | D6: 56H04788 | E6: RHV | F6: 621 | G6: 605 | H6: 604 | I6: 600 | J6: 598 | K6: 3028 | L6: 605.6 | M6: 302.8 | Y6: 598 | Z6: 605 | AB6: 621 | AC6: 587 | AE6: 600 | AF6: 604
A7: 3 | B7: SKORUPKA Guy | C7: CEN | D7: 57H01040 | E7: RHV | F7: 620 | G7: 615 | H7: 600 | I7: 598 | J7: 581 | K7: 3014 | L7: 602.8 | M7: 301.4 | Y7: 620 | Z7: 615 | AA7: 581 | AC7: 600 | AD7: 577 | AE7: 568 | AF7: 598
A8: 4 | B8: COCQUYT Francis | C8: ACM | D8: 60H01688 | E8: RHV | F8: 602 | G8: 592 | H8: 573 | I8: 537 | J8: 269 | K8: 2573 | L8: 514.6 | M8: 257.3 | V8: 573 | W8: 269 | AB8: 537 | AC8: 602 | AF8: 592
A9: 5 | B9: PETRONS Joel | C9: LFU | D9: 49H00899 | E9: RHV | F9: 554 | G9: 516 | H9: 504 | I9: 500 | J9: 474 | K9: 2548 | L9: 509.6 | M9: 254.8 | V9: 504 | Y9: 516 | Z9: 554 | AB9: 500 | AC9: 474
A10: 6 | B10: NEYRET Robert | C10: LAJ | D10: 49H00841 | E10: RHV | F10: 533 | G10: 520 | H10: 500 | I10: 427 | J10: 379 | K10: 2359 | L10: 471.8 | M10: 235.9 | W10: 427 | Y10: 533 | AB10: 500 | AC10: 520 | AE10: 379
A11: 7 | B11: DELCOMINETTE guy | C11: LIE | D11: 48H01514 | E11: RHV | F11: 581 | G11: 531 | H11: 512 | I11: 484 | J11: 126 | K11: 2234 | L11: 446.8 | M11: 223.4 | V11: 531 | W11: 484 | Y11: 581 | AB11: 512 | AC11: 126
A12: 8 | B12: FRYNS Guido | C12: ITW | D12: 59H03148 | E12: RHV | F12: 553 | G12: 500 | H12: 494 | I12: 480 | K12: 2027 | L12: 405.4 | M12: 202.7 | W12: 494 | Z12: 500 | AB12: 480 | AC12: 553
A13: 9 | B13: LEJEUNE Paul | C13: LFE | D13: 56H00919 | E13: RHV | F13: 545 | G13: 506 | H13: 476 | K13: 1527 | L13: 305.4 | M13: 152.7 | X13: 506 | Z13: 476 | AA13: 545
A14: 10 | B14: BACOT Paul (recurve) | C14: HUY | D14: 50H01459 | E14: RHV | F14: 519 | G14: 508 | H14: 480 | K14: 1507 | L14: 301.4 | M14: 150.7 | Y14: 508 | AC14: 480 | AF14: 519
A15: 11 | B15: BARBIEUX Romain | C15: CAJ | D15: 57H05709 | E15: RHV | F15: 525 | G15: 480 | H15: 465 | K15: 1470 | L15: 294 | M15: 147 | V15: 525 | AB15: 480 | AC15: 465
A16: 12 | B16: MEYER Marc | C16: GPE | D16: 59H04233 | E16: RHV | F16: 624 | G16: 620 | K16: 1244 | L16: 248.8 | M16: 124.4 | Z16: 620 | AD16: 624
A17: 13 | B17: DEGHAYE Pierre | C17: ACM | D17: 55H01808 | E17: RHV | F17: 597 | G17: 345 | K17: 942 | L17: 188.4 | M17: 94.2 | V17: 597 | W17: 345
A18: 14 | B18: LIBERT Marc | C18: ACG | D18: 60H06362 | E18: RHV | F18: 485 | G18: 435 | K18: 920 | L18: 184 | M18: 92 | AB18: 435 | AF18: 485
A19: 15 | B19: FIORA Joel | C19: SSK | D19: 57H00342 | E19: RHV | F19: 634 | K19: 634 | L19: 126.8 | M19: 63.4 | AD19: 634
A20: 16 | B20: LEJOLY Daniel | C20: LIE | D20: 61H01549 | E20: RHV | F20: 622 | K20: 622 | L20: 124.4 | M20: 62.2 | W20: 622
A21: 17 | B21: NATALIS Joseph | C21: CAJ | D21: 42H01967 | E21: RHV | F21: 575 | K21: 575 | L21: 115 | M21: 57.5 | V21: 575
A22: 18 | B22: METDEPENNINGEN Luc | C22: MDY | D22: 59H02050 | E22: RHV | F22: 487 | K22: 487 | L22: 97.4 | M22: 48.7 | AB22: 487
A23: 19 | B23: DEPROOST Michel | C23: SSK | E23: RHV | F23: 487 | K23: 487 | L23: 97.4 | M23: 48.7 | AC23: 487
A24: 20 | B24: DE BON Pierre | C24: LFE | D24: 57H03719 | E24: RHV | F24: 470 | K24: 470 | L24: 94 | M24: 47 | AA24: 470
A25: 21 | B25: X1 | E25: RHV | K25: 0 | L25: 0 | M25: 0
A26: 22 | B26: D'HEUR Michel | C26: FAO | D26: 46H00532 | E26: RHV | K26: 0 | L26: 0 | M26: 0
A27: 23 | B27: FOURNIER Gérard | C27: BTS | D27: 55H02754 | E27: RHV | K27: 0 | L27: 0 | M27: 0
A28: 24 | B28: X | E28: RHV | K28: 0 | L28: 0 | M28: 0
A29: 25 | B29: VANDEN BOGGAARR Marc | C29: ABA | D29: 57H00558 | E29: RHV | K29: 0 | L29: 0 | M29: 0
A30: 26 | B30: WIGGELEER Patrick | C30: GSR | D30: 56H00096 | E30: RHV | K30: 0 | L30: 0 | M30: 0
A31: 27 | B31: PENA Victor | C31: CTH | D31: 54H01714 | E31: RHV | K31: 0 | L31: 0 | M31: 0
A32: 28 | B32: GRAVAR Pierre | C32: ECA | D32: 52H01303 | E32: RHV | K32: 0 | L32: 0 | M32: 0
A33: 29 | B33: DELNATTE Georges | C33: LIE | D33: 58H02914 | E33: RHV | K33: 0 | L33: 0 | M33: 0
A34: 30 | B34: PETRUS Gus | C34: GAU | D34: 54H00363 | E34: RHV | K34: 0 | L34: 0 | M34: 0
A35: 31 | B35: RANDLE Daniel | C35: CMA | D35: 47H00700 | E35: RHV | K35: 0 | L35: 0 | M35: 0
A36: 32 | B36: NOSSENT Christian | C36: SSK | D36: 53H00269 | E36: RHV | K36: 0 | L36: 0 | M36: 0
A37: 1 | B37: LUCAS André (recurve) | C37: SSC | D37: 55H01262 | E37: RHV | K37: =SUM(F37:J37) -> 0 | L37: =K37/5 -> 0 | M37: =L37/2 -> 0
A38: =IF(B38<>"",A37+1,"") -> 2 | B38: DURIEUX Marc | C38: SSC | D38: 57H01263 | E38: RHV | K38: 0 | L38: 0 | M38: 0
A39: 3 | B39: ANTOINE Pol | C39: GAU | E39: RHV | K39: 0 | L39: 0 | M39: 0
A40: 4 | B40: STAINIER Robert | C40: ABA | D40: 46H00639 | E40: RHV | K40: 0 | L40: 0 | M40: 0
A41: 5 | B41: CHABEAU Andre | C41: MDY | D41: 57H03240 | E41: RHV | K41: 0 | L41: 0 | M41: 0
A42: 6 | B42: GESSA Stefano | C42: CAM | D42: 45H01355 | E42: RHV | K42: 0 | L42: 0 | M42: 0
A43: 7 | B43: VANDERVELDEN Daniel | C43: HUY | D43: 51H02731 | E43: RHV | K43: 0 | L43: 0 | M43: 0
A44: 8 | B44: VANMEENEN Philippe | C44: FBG | D44: 57H03948 | E44: RHV | K44: 0 | L44: 0 | M44: 0
A45: 9 | B45: PIETTE Alain | C45: FBG | D45: 54H03645 | E45: RHV | K45: 0 | L45: 0 | M45: 0
A46: 10 | B46: RENARD René | C46: SSK | E46: RHV | K46: 0 | L46: 0 | M46: 0
A47: 11 | B47: DE GREEF Jean | C47: SSK | D47: 46H00331 | E47: RHV | K47: 0 | L47: 0 | M47: 0
A48: 12 | B48: BOEVER Pierre | C48: TAB | D48: 56H02663 | E48: RHV | K48: 0 | L48: 0 | M48: 0
A49: 13 | B49: FASSOTTE Charly | C49: CTH | D49: 46H01723 | E49: RHV | K49: 0 | L49: 0 | M49: 0
A50: 14 | B50: RENNEAU Jean-Noel | C50: ADS | D50: 59H02001 | E50: RHV | K50: 0 | L50: 0 | M50: 0
A51: 15 | B51: REIBER Guy | C51: GSR | D51: 46H00175 | E51: RHV | K51: 0 | L51: 0 | M51: 0
A52: 16 | B52: THEYS Marc | C52: LFU | D52: 56H04345 | E52: RHV | K52: 0 | L52: 0 | M52: 0
A53: 17 | B53: VANDENBERGHE Daniel | C53: CAB | D53: 51H02731 | E53: RHV | K53: 0 | L53: 0 | M53: 0
A54: 18 | B54: DEBATY Dominique | C54: GAU | E54: RHV | K54: 0 | L54: 0 | M54: 0
A55: 19 | B55: MAQUET Gilbert (recurve) | C55: ACF | D55: 53H02240 | E55: RHV | K55: 0 | L55: 0 | M55: 0
A56: 20 | B56: MAQUET Gilbert (recurve) | C56: ACF | D56: 53H02240 | E56: RHV | K56: 0 | L56: 0 | M56: 0
D100: La macro est déclenchée par toute entrée d'une valeur dans le tableau N5:BW20 (modifier le plage si nécessaire dans la macro)

Sheet Feuil1
B3: OLBRECHTS Pierre | C3: LAJ | D3: 56H00822 | E3: RHV | F3: 641 | G3: 625 | H3: 617 | I3: 613 | J3: 603 | L3: 641 | M3: 601 | O3: 625 | P3: 613 | R3: 602 | S3: 617 | U3: 603
B4: PIERRE Auguste | C4: CAJ | D4: 56H04788 | E4: RHV | F4: 621 | G4: 605 | H4: 604 | I4: 600 | J4: 598 | O4: 598 | P4: 605 | R4: 621 | S4: 587 | U4: 600 | V4: 604
B5: SKORUPKA Guy | C5: CEN | D5: 57H01040 | E5: RHV | F5: 620 | G5: 615 | H5: 600 | I5: 598 | J5: 581 | O5: 620 | P5: 615 | Q5: 581 | S5: 600 | T5: 577 | U5: 568 | V5: 598
B6: COCQUYT Francis | C6: ACM | D6: 60H01688 | E6: RHV | F6: 602 | G6: 592 | H6: 573 | I6: 537 | J6: 269 | L6: 573 | M6: 269 | R6: 537 | S6: 602 | V6: 592
B7: PETRONS Joel | C7: LFU | D7: 49H00899 | E7: RHV | F7: 554 | G7: 516 | H7: 504 | I7: 500 | J7: 474 | L7: 504 | O7: 516 | P7: 554 | R7: 500 | S7: 474
B8: NEYRET Robert | C8: LAJ | D8: 49H00841 | E8: RHV | F8: 533 | G8: 520 | H8: 500 | I8: 427 | J8: 379 | M8: 427 | O8: 533 | R8: 500 | S8: 520 | U8: 379
B9: DELCOMINETTE guy | C9: LIE | D9: 48H01514 | E9: RHV | F9: 581 | G9: 531 | H9: 512 | I9: 484 | J9: 126 | L9: 531 | M9: 484 | O9: 581 | R9: 512 | S9: 126
B10: FRYNS Guido | C10: ITW | D10: 59H03148 | E10: RHV | F10: 553 | G10: 500 | H10: 494 | I10: 480 | M10: 494 | P10: 500 | R10: 480 | S10: 553
B11: LEJEUNE Paul | C11: LFE | D11: 56H00919 | E11: RHV | F11: 545 | G11: 506 | H11: 476 | N11: 506 | P11: 476 | Q11: 545
B12: BACOT Paul (recurve) | C12: HUY | D12: 50H01459 | E12: RHV | F12: 519 | G12: 508 | H12: 480 | O12: 508 | S12: 480 | V12: 519
B13: BARBIEUX Romain | C13: CAJ | D13: 57H05709 | E13: RHV | F13: 525 | G13: 480 | H13: 465 | L13: 525 | R13: 480 | S13: 465
B14: MEYER Marc | C14: GPE | D14: 59H04233 | E14: RHV | F14: 624 | G14: 620 | P14: 620 | T14: 624
B15: DEGHAYE Pierre | C15: ACM | D15: 55H01808 | E15: RHV | F15: 597 | G15: 345 | L15: 597 | M15: 345
B16: LIBERT Marc | C16: ACG | D16: 60H06362 | E16: RHV | F16: 485 | G16: 435 | R16: 435 | V16: 485
B17: FIORA Joel | C17: SSK | D17: 57H00342 | E17: RHV | F17: 634 | T17: 634
B18: LEJOLY Daniel | C18: LIE | D18: 61H01549 | E18: RHV | F18: 622 | M18: 622
B19: NATALIS Joseph | C19: CAJ | D19: 42H01967 | E19: RHV | F19: 575 | L19: 575
B20: METDEPENNINGEN Luc | C20: MDY | D20: 59H02050 | E20: RHV | F20: 487 | R20: 487
B21: DEPROOST Michel | C21: SSK | E21: RHV | F21: 487 | S21: 487
B22: DE BON Pierre | C22: LFE | D22: 57H03719 | E22: RHV | F22: 470 | Q22: 470
B23: X1 | E23: RHV
B24: D'HEUR Michel | C24: FAO | D24: 46H00532 | E24: RHV
B25: FOURNIER Gérard | C25: BTS | D25: 55H02754 | E25: RHV
B26: X | E26: RHV
B27: VANDEN BOGGAARR Marc | C27: ABA | D27: 57H00558 | E27: RHV
B28: WIGGELEER Patrick | C28: GSR | D28: 56H00096 | E28: RHV
B29: PENA Victor | C29: CTH | D29: 54H01714 | E29: RHV
B30: GRAVAR Pierre | C30: ECA | D30: 52H01303 | E30: RHV
B31: DELNATTE Georges | C31: LIE | D31: 58H02914 | E31: RHV
B32: PETRUS Gus | C32: GAU | D32: 54H00363 | E32: RHV
B33: RANDLE Daniel | C33: CMA | D33: 47H00700 | E33: RHV
B34: NOSSENT Christian | C34: SSK | D34: 53H00269 | E34: RHV
B35: LUCAS André (recurve) | C35: SSC | D35: 55H01262 | E35: RHV
B36: DURIEUX Marc | C36: SSC | D36: 57H01263 | E36: RHV
B37: ANTOINE Pol | C37: GAU | E37: RHV
B38: STAINIER Robert | C38: ABA | D38: 46H00639 | E38: RHV
B39: CHABEAU Andre | C39: MDY | D39: 57H03240 | E39: RHV
B40: GESSA Stefano | C40: CAM | D40: 45H01355 | E40: RHV
B41: VANDERVELDEN Daniel | C41: HUY | D41: 51H02731 | E41: RHV
B42: VANMEENEN Philippe | C42: FBG | D42: 57H03948 | E42: RHV
B43: PIETTE Alain | C43: FBG | D43: 54H03645 | E43: RHV
B44: RENARD René | C44: SSK | E44: RHV
B45: DE GREEF Jean | C45: SSK | D45: 46H00331 | E45: RHV
B46: BOEVER Pierre | C46: TAB | D46: 56H02663 | E46: RHV
B47: FASSOTTE Charly | C47: CTH | D47: 46H01723 | E47: RHV
B48: RENNEAU Jean-Noel | C48: ADS | D48: 59H02001 | E48: RHV
B49: REIBER Guy | C49: GSR | D49: 46H00175 | E49: RHV
B50: THEYS Marc | C50: LFU | D50: 56H04345 | E50: RHV
B51: VANDENBERGHE Daniel | C51: CAB | D51: 51H02731 | E51: RHV
B52: DEBATY Dominique | C52: GAU | E52: RHV
B53: MAQUET Gilbert (recurve) | C53: ACF | D53: 53H02240 | E53: RHV
B54: MAQUET Gilbert (recurve) | C54: ACF | D54: 53H02240 | E54: RHV

Sheet Feuil3
A4: 1 VANDEN BOGGAARR Marc | B4: ABA | C4: 57H00558 | D4: RHV | E4: 526 | F4: 518 | G4: 518 | H4: 513 | I4: 508 | J4: =SUM(E4:I4) -> 2583 | K4: 516.6
A5: 2 NATALIS Joseph | B5: CAJ | C5: 42H01967 | D5: RHV | E5: 527 | F5: 524 | G5: 510 | H5: 510 | I5: 510 | J5: =SUM(E5:I5) -> 2581 | K5: 516.2
A6: 3 LUCAS André (recurve) | B6: SSC | C6: 55H01262 | D6: RHV | E6: 527 | F6: 523 | G6: 521 | H6: 502 | I6: 487 | J6: 2560 | K6: 512
A7: 4 VANDERVELDEN Daniel | B7: HUY | C7: 51H02731 | D7: RHV | E7: 532 | F7: 506 | G7: 506 | H7: 502 | I7: 496 | J7: 2542 | K7: 508.4
A8: 5 PETRONS Joel | B8: LFU | C8: 49H00899 | D8: RHV | E8: 512 | F8: 510 | G8: 508 | H8: 499 | I8: 499 | J8: 2528 | K8: 505.6
A9: 6 SKORUPKA Guy | B9: CEN | C9: 57H01040 | D9: RHV | E9: 510 | F9: 505 | G9: 504 | H9: 502 | I9: 496 | J9: 2517 | K9: 503.4
A10: 7 MAQUET Gilbert (recurve) | B10: ACF | C10: 53H02240 | D10: RHV | E10: 525 | F10: 524 | G10: 508 | H10: 480 | I10: 466 | J10: 2503 | K10: 500.6
A11: 8 OLBRECHTS Pierre | B11: LAJ | C11: 56H00822 | D11: RHV | E11: 521 | F11: 499 | G11: 495 | H11: 486 | I11: 486 | J11: 2487 | K11: 497.4
A12: 9 DEGHAYE Pierre | B12: ACM | C12: 55H01808 | D12: RHV | E12: 518 | F12: 505 | G12: 489 | H12: 486 | I12: 476 | J12: 2474 | K12: 494.8
A13: 10 FOURNIER Gérard | B13: BTS | C13: 55H02754 | D13: RHV | E13: 509 | F13: 501 | G13: 499 | H13: 486 | I13: 474 | J13: 2469 | K13: 493.8
A14: 11 GRAVAR Pierre | B14: ECA | C14: 52H01303 | D14: RHV | E14: 503 | F14: 496 | G14: 490 | H14: 490 | I14: 485 | J14: 2464 | K14: 492.8
A15: 12 PENA Victor | B15: CTH | C15: 54H01714 | D15: RHV | E15: 493 | F15: 493 | G15: 484 | H15: 467 | I15: 465 | J15: 2402 | K15: 480.4
A16: 13 PETRUS Gus | B16: GAU | C16: 54H00363 | D16: RHV | E16: 484 | F16: 483 | G16: 469 | H16: 458 | I16: 455 | J16: 2349 | K16: 469.8
A17: 14 BACOT Paul (recurve) | B17: HUY | C17: 50H01459 | D17: RHV | E17: 483 | F17: 480 | G17: 474 | H17: 447 | I17: 443 | J17: 2327 | K17: 465.4
A18: 15 RANDLE Daniel | B18: CMA | C18: 47H00700 | D18: RHV | E18: 470 | F18: 463 | G18: 456 | H18: 448 | I18: 441 | J18: 2278 | K18: 455.6
A19: 16 NEYRET Robert | B19: LAJ | C19: 49H00841 | D19: RHV | E19: 468 | F19: 444 | G19: 428 | H19: 416 | I19: 347 | J19: 2103 | K19: 420.6
